Workbook

Sheet Dashboard
A1: Select the station along with the respective voltage from the dropdowns in the table below. 22kV and 66kV at the same station would require two separate rows for each voltage. Add project name in cell directly above the table. | F1: This table gives the summated result for the stations and the respective voltages.
F2: Coincident demand forecasts are calculated for the time when the entire region expereiences its peak demand Non-coincident forecasts are individual, independent calculations of maximum demand for each connection point
B4: Project Name | C4: BATS
B5: Coincedence | C5: Coincident
B7: Station ID | C7: Voltage | F7: 2024 AEMO Forecast | J7: 2024 | K7: 2025 | L7: 2026 | M7: 2027 | N7: 2028 | O7: 2029 | P7: 2030 | Q7: 2031 | R7: 2032 | S7: 2033
F8: =IF(C4="","Insert Project Name in C4", C4) -> BATS
F9: Summer POE10 MW | G9: =$C$5 -> Coincident | H9: summer | I9: poe10 | J9: =SUM(SUMIFS(AEMO_DATA_2024[MW],AEMO_DATA_2024[Station], Dashboard!$B$8:$B$33,AEMO_DATA_2024[Voltage],Dashboard!$C$8:$C$33,AEMO_DATA_2024[season],H9,AEMO_DATA_2024[Type],I9,AEMO_DATA_2024[seasonYr],J$7,AEMO_DATA_2024[coincidence],G9)) -> 636.86383 | K9: =SUM(SUMIFS(AEMO_DATA_2024[MW],AEMO_DATA_2024[Station], Dashboard!$B$8:$B$33,AEMO_DATA_2024[Voltage],Dashboard!$C$8:$C$33,AEMO_DATA_2024[season],H9,AEMO_DATA_2024[Type],I9,AEMO_DATA_2024[seasonYr],K$7,AEMO_DATA_2024[coincidence],G9)) -> 645.97245 | L9: =SUM(SUMIFS(AEMO_DATA_2024[MW],AEMO_DATA_2024[Station], Dashboard!$B$8:$B$33,AEMO_DATA_2024[Voltage],Dashboard!$C$8:$C$33,AEMO_DATA_2024[season],H9,AEMO_DATA_2024[Type],I9,AEMO_DATA_2024[seasonYr],L$7,AEMO_DATA_2024[coincidence],G9)) -> 713.02949 | M9: =SUM(SUMIFS(AEMO_DATA_2024[MW],AEMO_DATA_2024[Station], Dashboard!$B$8:$B$33,AEMO_DATA_2024[Voltage],Dashboard!$C$8:$C$33,AEMO_DATA_2024[season],H9,AEMO_DATA_2024[Type],I9,AEMO_DATA_2024[seasonYr],M$7,AEMO_DATA_2024[coincidence],G9)) -> 731.41716 | N9: =SUM(SUMIFS(AEMO_DATA_2024[MW],AEMO_DATA_2024[Station], Dashboard!$B$8:$B$33,AEMO_DATA_2024[Voltage],Dashboard!$C$8:$C$33,AEMO_DATA_2024[season],H9,AEMO_DATA_2024[Type],I9,AEMO_DATA_2024[seasonYr],N$7,AEMO_DATA_2024[coincidence],G9)) -> 747.55161 | O9: =SUM(SUMIFS(AEMO_DATA_2024[MW],AEMO_DATA_2024[Station], Dashboard!$B$8:$B$33,AEMO_DATA_2024[Voltage],Dashboard!$C$8:$C$33,AEMO_DATA_2024[season],H9,AEMO_DATA_2024[Type],I9,AEMO_DATA_2024[seasonYr],O$7,AEMO_DATA_2024[coincidence],G9)) -> 770.08933 | P9: =SUM(SUMIFS(AEMO_DATA_2024[MW],AEMO_DATA_2024[Station], Dashboard!$B$8:$B$33,AEMO_DATA_2024[Voltage],Dashboard!$C$8:$C$33,AEMO_DATA_2024[season],H9,AEMO_DATA_2024[Type],I9,AEMO_DATA_2024[seasonYr],P$7,AEMO_DATA_2024[coincidence],G9)) -> 792.14916 | Q9: =SUM(SUMIFS(AEMO_DATA_2024[MW],AEMO_DATA_2024[Station], Dashboard!$B$8:$B$33,AEMO_DATA_2024[Voltage],Dashboard!$C$8:$C$33,AEMO_DATA_2024[season],H9,AEMO_DATA_2024[Type],I9,AEMO_DATA_2024[seasonYr],Q$7,AEMO_DATA_2024[coincidence],G9)) -> 813.92244 | R9: =SUM(SUMIFS(AEMO_DATA_2024[MW],AEMO_DATA_2024[Station], Dashboard!$B$8:$B$33,AEMO_DATA_2024[Voltage],Dashboard!$C$8:$C$33,AEMO_DATA_2024[season],H9,AEMO_DATA_2024[Type],I9,AEMO_DATA_2024[seasonYr],R$7,AEMO_DATA_2024[coincidence],G9)) -> 838.42187 | S9: =SUM(SUMIFS(AEMO_DATA_2024[MW],AEMO_DATA_2024[Station], Dashboard!$B$8:$B$33,AEMO_DATA_2024[Voltage],Dashboard!$C$8:$C$33,AEMO_DATA_2024[season],H9,AEMO_DATA_2024[Type],I9,AEMO_DATA_2024[seasonYr],S$7,AEMO_DATA_2024[coincidence],G9)) -> 860.91971
F10: Summer POE10 MVAR | G10: =$C$5 -> Coincident | H10: summer | I10: poe10 | J10: =SUM(SUMIFS(AEMO_DATA_2024[MVAr],AEMO_DATA_2024[Station], Dashboard!$B$8:$B$33,AEMO_DATA_2024[Voltage],Dashboard!$C$8:$C$33,AEMO_DATA_2024[season],H10,AEMO_DATA_2024[Type],I10,AEMO_DATA_2024[seasonYr],J$7,AEMO_DATA_2024[coincidence],G10)) -> 124.6886793 | K10: =SUM(SUMIFS(AEMO_DATA_2024[MVAr],AEMO_DATA_2024[Station], Dashboard!$B$8:$B$33,AEMO_DATA_2024[Voltage],Dashboard!$C$8:$C$33,AEMO_DATA_2024[season],H10,AEMO_DATA_2024[Type],I10,AEMO_DATA_2024[seasonYr],K$7,AEMO_DATA_2024[coincidence],G10)) -> 127.1691932 | L10: =SUM(SUMIFS(AEMO_DATA_2024[MVAr],AEMO_DATA_2024[Station], Dashboard!$B$8:$B$33,AEMO_DATA_2024[Voltage],Dashboard!$C$8:$C$33,AEMO_DATA_2024[season],H10,AEMO_DATA_2024[Type],I10,AEMO_DATA_2024[seasonYr],L$7,AEMO_DATA_2024[coincidence],G10)) -> 140.6152073 | M10: =SUM(SUMIFS(AEMO_DATA_2024[MVAr],AEMO_DATA_2024[Station], Dashboard!$B$8:$B$33,AEMO_DATA_2024[Voltage],Dashboard!$C$8:$C$33,AEMO_DATA_2024[season],H10,AEMO_DATA_2024[Type],I10,AEMO_DATA_2024[seasonYr],M$7,AEMO_DATA_2024[coincidence],G10)) -> 144.9167918 | N10: =SUM(SUMIFS(AEMO_DATA_2024[MVAr],AEMO_DATA_2024[Station], Dashboard!$B$8:$B$33,AEMO_DATA_2024[Voltage],Dashboard!$C$8:$C$33,AEMO_DATA_2024[season],H10,AEMO_DATA_2024[Type],I10,AEMO_DATA_2024[seasonYr],N$7,AEMO_DATA_2024[coincidence],G10)) -> 148.8309158 | O10: =SUM(SUMIFS(AEMO_DATA_2024[MVAr],AEMO_DATA_2024[Station], Dashboard!$B$8:$B$33,AEMO_DATA_2024[Voltage],Dashboard!$C$8:$C$33,AEMO_DATA_2024[season],H10,AEMO_DATA_2024[Type],I10,AEMO_DATA_2024[seasonYr],O$7,AEMO_DATA_2024[coincidence],G10)) -> 153.9774487 | P10: =SUM(SUMIFS(AEMO_DATA_2024[MVAr],AEMO_DATA_2024[Station], Dashboard!$B$8:$B$33,AEMO_DATA_2024[Voltage],Dashboard!$C$8:$C$33,AEMO_DATA_2024[season],H10,AEMO_DATA_2024[Type],I10,AEMO_DATA_2024[seasonYr],P$7,AEMO_DATA_2024[coincidence],G10)) -> 158.981637 | Q10: =SUM(SUMIFS(AEMO_DATA_2024[MVAr],AEMO_DATA_2024[Station], Dashboard!$B$8:$B$33,AEMO_DATA_2024[Voltage],Dashboard!$C$8:$C$33,AEMO_DATA_2024[season],H10,AEMO_DATA_2024[Type],I10,AEMO_DATA_2024[seasonYr],Q$7,AEMO_DATA_2024[coincidence],G10)) -> 163.7960014 | R10: =SUM(SUMIFS(AEMO_DATA_2024[MVAr],AEMO_DATA_2024[Station], Dashboard!$B$8:$B$33,AEMO_DATA_2024[Voltage],Dashboard!$C$8:$C$33,AEMO_DATA_2024[season],H10,AEMO_DATA_2024[Type],I10,AEMO_DATA_2024[seasonYr],R$7,AEMO_DATA_2024[coincidence],G10)) -> 169.1353396 | S10: =SUM(SUMIFS(AEMO_DATA_2024[MVAr],AEMO_DATA_2024[Station], Dashboard!$B$8:$B$33,AEMO_DATA_2024[Voltage],Dashboard!$C$8:$C$33,AEMO_DATA_2024[season],H10,AEMO_DATA_2024[Type],I10,AEMO_DATA_2024[seasonYr],S$7,AEMO_DATA_2024[coincidence],G10)) -> 174.0803101
F11: Summer POE50 MW | G11: Coincident | H11: summer | I11: poe50 | J11: =SUM(SUMIFS(AEMO_DATA_2024[MW],AEMO_DATA_2024[Station], Dashboard!$B$8:$B$33,AEMO_DATA_2024[Voltage],Dashboard!$C$8:$C$33,AEMO_DATA_2024[season],H11,AEMO_DATA_2024[Type],I11,AEMO_DATA_2024[seasonYr],J$7,AEMO_DATA_2024[coincidence],G11)) -> 587.95285 | K11: =SUM(SUMIFS(AEMO_DATA_2024[MW],AEMO_DATA_2024[Station], Dashboard!$B$8:$B$33,AEMO_DATA_2024[Voltage],Dashboard!$C$8:$C$33,AEMO_DATA_2024[season],H11,AEMO_DATA_2024[Type],I11,AEMO_DATA_2024[seasonYr],K$7,AEMO_DATA_2024[coincidence],G11)) -> 596.79514 | L11: =SUM(SUMIFS(AEMO_DATA_2024[MW],AEMO_DATA_2024[Station], Dashboard!$B$8:$B$33,AEMO_DATA_2024[Voltage],Dashboard!$C$8:$C$33,AEMO_DATA_2024[season],H11,AEMO_DATA_2024[Type],I11,AEMO_DATA_2024[seasonYr],L$7,AEMO_DATA_2024[coincidence],G11)) -> 663.78699 | M11: =SUM(SUMIFS(AEMO_DATA_2024[MW],AEMO_DATA_2024[Station], Dashboard!$B$8:$B$33,AEMO_DATA_2024[Voltage],Dashboard!$C$8:$C$33,AEMO_DATA_2024[season],H11,AEMO_DATA_2024[Type],I11,AEMO_DATA_2024[seasonYr],M$7,AEMO_DATA_2024[coincidence],G11)) -> 681.44223 | N11: =SUM(SUMIFS(AEMO_DATA_2024[MW],AEMO_DATA_2024[Station], Dashboard!$B$8:$B$33,AEMO_DATA_2024[Voltage],Dashboard!$C$8:$C$33,AEMO_DATA_2024[season],H11,AEMO_DATA_2024[Type],I11,AEMO_DATA_2024[seasonYr],N$7,AEMO_DATA_2024[coincidence],G11)) -> 698.45719 | O11: =SUM(SUMIFS(AEMO_DATA_2024[MW],AEMO_DATA_2024[Station], Dashboard!$B$8:$B$33,AEMO_DATA_2024[Voltage],Dashboard!$C$8:$C$33,AEMO_DATA_2024[season],H11,AEMO_DATA_2024[Type],I11,AEMO_DATA_2024[seasonYr],O$7,AEMO_DATA_2024[coincidence],G11)) -> 718.68997 | P11: =SUM(SUMIFS(AEMO_DATA_2024[MW],AEMO_DATA_2024[Station], Dashboard!$B$8:$B$33,AEMO_DATA_2024[Voltage],Dashboard!$C$8:$C$33,AEMO_DATA_2024[season],H11,AEMO_DATA_2024[Type],I11,AEMO_DATA_2024[seasonYr],P$7,AEMO_DATA_2024[coincidence],G11)) -> 740.94894 | Q11: =SUM(SUMIFS(AEMO_DATA_2024[MW],AEMO_DATA_2024[Station], Dashboard!$B$8:$B$33,AEMO_DATA_2024[Voltage],Dashboard!$C$8:$C$33,AEMO_DATA_2024[season],H11,AEMO_DATA_2024[Type],I11,AEMO_DATA_2024[seasonYr],Q$7,AEMO_DATA_2024[coincidence],G11)) -> 762.54332 | R11: =SUM(SUMIFS(AEMO_DATA_2024[MW],AEMO_DATA_2024[Station], Dashboard!$B$8:$B$33,AEMO_DATA_2024[Voltage],Dashboard!$C$8:$C$33,AEMO_DATA_2024[season],H11,AEMO_DATA_2024[Type],I11,AEMO_DATA_2024[seasonYr],R$7,AEMO_DATA_2024[coincidence],G11)) -> 785.04325 | S11: =SUM(SUMIFS(AEMO_DATA_2024[MW],AEMO_DATA_2024[Station], Dashboard!$B$8:$B$33,AEMO_DATA_2024[Voltage],Dashboard!$C$8:$C$33,AEMO_DATA_2024[season],H11,AEMO_DATA_2024[Type],I11,AEMO_DATA_2024[seasonYr],S$7,AEMO_DATA_2024[coincidence],G11)) -> 806.76105
F12: Summer POE50 MVAr | G12: Coincident | H12: summer | I12: poe50 | J12: =SUM(SUMIFS(AEMO_DATA_2024[MVAr],AEMO_DATA_2024[Station], Dashboard!$B$8:$B$33,AEMO_DATA_2024[Voltage],Dashboard!$C$8:$C$33,AEMO_DATA_2024[season],H12,AEMO_DATA_2024[Type],I12,AEMO_DATA_2024[seasonYr],J$7,AEMO_DATA_2024[coincidence],G12)) -> 115.4747246 | K12: =SUM(SUMIFS(AEMO_DATA_2024[MVAr],AEMO_DATA_2024[Station], Dashboard!$B$8:$B$33,AEMO_DATA_2024[Voltage],Dashboard!$C$8:$C$33,AEMO_DATA_2024[season],H12,AEMO_DATA_2024[Type],I12,AEMO_DATA_2024[seasonYr],K$7,AEMO_DATA_2024[coincidence],G12)) -> 117.9050666 | L12: =SUM(SUMIFS(AEMO_DATA_2024[MVAr],AEMO_DATA_2024[Station], Dashboard!$B$8:$B$33,AEMO_DATA_2024[Voltage],Dashboard!$C$8:$C$33,AEMO_DATA_2024[season],H12,AEMO_DATA_2024[Type],I12,AEMO_DATA_2024[seasonYr],L$7,AEMO_DATA_2024[coincidence],G12)) -> 131.3388001 | M12: =SUM(SUMIFS(AEMO_DATA_2024[MVAr],AEMO_DATA_2024[Station], Dashboard!$B$8:$B$33,AEMO_DATA_2024[Voltage],Dashboard!$C$8:$C$33,AEMO_DATA_2024[season],H12,AEMO_DATA_2024[Type],I12,AEMO_DATA_2024[seasonYr],M$7,AEMO_DATA_2024[coincidence],G12)) -> 135.5024078 | N12: =SUM(SUMIFS(AEMO_DATA_2024[MVAr],AEMO_DATA_2024[Station], Dashboard!$B$8:$B$33,AEMO_DATA_2024[Voltage],Dashboard!$C$8:$C$33,AEMO_DATA_2024[season],H12,AEMO_DATA_2024[Type],I12,AEMO_DATA_2024[seasonYr],N$7,AEMO_DATA_2024[coincidence],G12)) -> 139.5824042 | O12: =SUM(SUMIFS(AEMO_DATA_2024[MVAr],AEMO_DATA_2024[Station], Dashboard!$B$8:$B$33,AEMO_DATA_2024[Voltage],Dashboard!$C$8:$C$33,AEMO_DATA_2024[season],H12,AEMO_DATA_2024[Type],I12,AEMO_DATA_2024[seasonYr],O$7,AEMO_DATA_2024[coincidence],G12)) -> 144.2947276 | P12: =SUM(SUMIFS(AEMO_DATA_2024[MVAr],AEMO_DATA_2024[Station], Dashboard!$B$8:$B$33,AEMO_DATA_2024[Voltage],Dashboard!$C$8:$C$33,AEMO_DATA_2024[season],H12,AEMO_DATA_2024[Type],I12,AEMO_DATA_2024[seasonYr],P$7,AEMO_DATA_2024[coincidence],G12)) -> 149.3364303 | Q12: =SUM(SUMIFS(AEMO_DATA_2024[MVAr],AEMO_DATA_2024[Station], Dashboard!$B$8:$B$33,AEMO_DATA_2024[Voltage],Dashboard!$C$8:$C$33,AEMO_DATA_2024[season],H12,AEMO_DATA_2024[Type],I12,AEMO_DATA_2024[seasonYr],Q$7,AEMO_DATA_2024[coincidence],G12)) -> 154.1170932 | R12: =SUM(SUMIFS(AEMO_DATA_2024[MVAr],AEMO_DATA_2024[Station], Dashboard!$B$8:$B$33,AEMO_DATA_2024[Voltage],Dashboard!$C$8:$C$33,AEMO_DATA_2024[season],H12,AEMO_DATA_2024[Type],I12,AEMO_DATA_2024[seasonYr],R$7,AEMO_DATA_2024[coincidence],G12)) -> 159.0797612 | S12: =SUM(SUMIFS(AEMO_DATA_2024[MVAr],AEMO_DATA_2024[Station], Dashboard!$B$8:$B$33,AEMO_DATA_2024[Voltage],Dashboard!$C$8:$C$33,AEMO_DATA_2024[season],H12,AEMO_DATA_2024[Type],I12,AEMO_DATA_2024[seasonYr],S$7,AEMO_DATA_2024[coincidence],G12)) -> 163.8777862
B13: KTS | C13: 66 kV | F13: Winter POE10 MW | G13: Coincident | H13: winter | I13: poe10 | J13: =SUM(SUMIFS(AEMO_DATA_2024[MW],AEMO_DATA_2024[Station], Dashboard!$B$8:$B$33,AEMO_DATA_2024[Voltage],Dashboard!$C$8:$C$33,AEMO_DATA_2024[season],H13,AEMO_DATA_2024[Type],I13,AEMO_DATA_2024[seasonYr],J$7,AEMO_DATA_2024[coincidence],G13)) -> 499.54375 | K13: =SUM(SUMIFS(AEMO_DATA_2024[MW],AEMO_DATA_2024[Station], Dashboard!$B$8:$B$33,AEMO_DATA_2024[Voltage],Dashboard!$C$8:$C$33,AEMO_DATA_2024[season],H13,AEMO_DATA_2024[Type],I13,AEMO_DATA_2024[seasonYr],K$7,AEMO_DATA_2024[coincidence],G13)) -> 506.4048 | L13: =SUM(SUMIFS(AEMO_DATA_2024[MW],AEMO_DATA_2024[Station], Dashboard!$B$8:$B$33,AEMO_DATA_2024[Voltage],Dashboard!$C$8:$C$33,AEMO_DATA_2024[season],H13,AEMO_DATA_2024[Type],I13,AEMO_DATA_2024[seasonYr],L$7,AEMO_DATA_2024[coincidence],G13)) -> 579.75322 | M13: =SUM(SUMIFS(AEMO_DATA_2024[MW],AEMO_DATA_2024[Station], Dashboard!$B$8:$B$33,AEMO_DATA_2024[Voltage],Dashboard!$C$8:$C$33,AEMO_DATA_2024[season],H13,AEMO_DATA_2024[Type],I13,AEMO_DATA_2024[seasonYr],M$7,AEMO_DATA_2024[coincidence],G13)) -> 601.38263 | N13: =SUM(SUMIFS(AEMO_DATA_2024[MW],AEMO_DATA_2024[Station], Dashboard!$B$8:$B$33,AEMO_DATA_2024[Voltage],Dashboard!$C$8:$C$33,AEMO_DATA_2024[season],H13,AEMO_DATA_2024[Type],I13,AEMO_DATA_2024[seasonYr],N$7,AEMO_DATA_2024[coincidence],G13)) -> 626.94751 | O13: =SUM(SUMIFS(AEMO_DATA_2024[MW],AEMO_DATA_2024[Station], Dashboard!$B$8:$B$33,AEMO_DATA_2024[Voltage],Dashboard!$C$8:$C$33,AEMO_DATA_2024[season],H13,AEMO_DATA_2024[Type],I13,AEMO_DATA_2024[seasonYr],O$7,AEMO_DATA_2024[coincidence],G13)) -> 654.21603 | P13: =SUM(SUMIFS(AEMO_DATA_2024[MW],AEMO_DATA_2024[Station], Dashboard!$B$8:$B$33,AEMO_DATA_2024[Voltage],Dashboard!$C$8:$C$33,AEMO_DATA_2024[season],H13,AEMO_DATA_2024[Type],I13,AEMO_DATA_2024[seasonYr],P$7,AEMO_DATA_2024[coincidence],G13)) -> 680.04283 | Q13: =SUM(SUMIFS(AEMO_DATA_2024[MW],AEMO_DATA_2024[Station], Dashboard!$B$8:$B$33,AEMO_DATA_2024[Voltage],Dashboard!$C$8:$C$33,AEMO_DATA_2024[season],H13,AEMO_DATA_2024[Type],I13,AEMO_DATA_2024[seasonYr],Q$7,AEMO_DATA_2024[coincidence],G13)) -> 705.73351 | R13: =SUM(SUMIFS(AEMO_DATA_2024[MW],AEMO_DATA_2024[Station], Dashboard!$B$8:$B$33,AEMO_DATA_2024[Voltage],Dashboard!$C$8:$C$33,AEMO_DATA_2024[season],H13,AEMO_DATA_2024[Type],I13,AEMO_DATA_2024[seasonYr],R$7,AEMO_DATA_2024[coincidence],G13)) -> 733.79969 | S13: =SUM(SUMIFS(AEMO_DATA_2024[MW],AEMO_DATA_2024[Station], Dashboard!$B$8:$B$33,AEMO_DATA_2024[Voltage],Dashboard!$C$8:$C$33,AEMO_DATA_2024[season],H13,AEMO_DATA_2024[Type],I13,AEMO_DATA_2024[seasonYr],S$7,AEMO_DATA_2024[coincidence],G13)) -> 0
F14: Winter POE10 MVAr | G14: Coincident | H14: winter | I14: poe10 | J14: =SUM(SUMIFS(AEMO_DATA_2024[MVAr],AEMO_DATA_2024[Station], Dashboard!$B$8:$B$33,AEMO_DATA_2024[Voltage],Dashboard!$C$8:$C$33,AEMO_DATA_2024[season],H14,AEMO_DATA_2024[Type],I14,AEMO_DATA_2024[seasonYr],J$7,AEMO_DATA_2024[coincidence],G14)) -> 0 | K14: =SUM(SUMIFS(AEMO_DATA_2024[MVAr],AEMO_DATA_2024[Station], Dashboard!$B$8:$B$33,AEMO_DATA_2024[Voltage],Dashboard!$C$8:$C$33,AEMO_DATA_2024[season],H14,AEMO_DATA_2024[Type],I14,AEMO_DATA_2024[seasonYr],K$7,AEMO_DATA_2024[coincidence],G14)) -> 0 | L14: =SUM(SUMIFS(AEMO_DATA_2024[MVAr],AEMO_DATA_2024[Station], Dashboard!$B$8:$B$33,AEMO_DATA_2024[Voltage],Dashboard!$C$8:$C$33,AEMO_DATA_2024[season],H14,AEMO_DATA_2024[Type],I14,AEMO_DATA_2024[seasonYr],L$7,AEMO_DATA_2024[coincidence],G14)) -> 0 | M14: =SUM(SUMIFS(AEMO_DATA_2024[MVAr],AEMO_DATA_2024[Station], Dashboard!$B$8:$B$33,AEMO_DATA_2024[Voltage],Dashboard!$C$8:$C$33,AEMO_DATA_2024[season],H14,AEMO_DATA_2024[Type],I14,AEMO_DATA_2024[seasonYr],M$7,AEMO_DATA_2024[coincidence],G14)) -> 0 | N14: =SUM(SUMIFS(AEMO_DATA_2024[MVAr],AEMO_DATA_2024[Station], Dashboard!$B$8:$B$33,AEMO_DATA_2024[Voltage],Dashboard!$C$8:$C$33,AEMO_DATA_2024[season],H14,AEMO_DATA_2024[Type],I14,AEMO_DATA_2024[seasonYr],N$7,AEMO_DATA_2024[coincidence],G14)) -> 0 | O14: =SUM(SUMIFS(AEMO_DATA_2024[MVAr],AEMO_DATA_2024[Station], Dashboard!$B$8:$B$33,AEMO_DATA_2024[Voltage],Dashboard!$C$8:$C$33,AEMO_DATA_2024[season],H14,AEMO_DATA_2024[Type],I14,AEMO_DATA_2024[seasonYr],O$7,AEMO_DATA_2024[coincidence],G14)) -> 0 | P14: =SUM(SUMIFS(AEMO_DATA_2024[MVAr],AEMO_DATA_2024[Station], Dashboard!$B$8:$B$33,AEMO_DATA_2024[Voltage],Dashboard!$C$8:$C$33,AEMO_DATA_2024[season],H14,AEMO_DATA_2024[Type],I14,AEMO_DATA_2024[seasonYr],P$7,AEMO_DATA_2024[coincidence],G14)) -> 0 | Q14: =SUM(SUMIFS(AEMO_DATA_2024[MVAr],AEMO_DATA_2024[Station], Dashboard!$B$8:$B$33,AEMO_DATA_2024[Voltage],Dashboard!$C$8:$C$33,AEMO_DATA_2024[season],H14,AEMO_DATA_2024[Type],I14,AEMO_DATA_2024[seasonYr],Q$7,AEMO_DATA_2024[coincidence],G14)) -> 0 | R14: =SUM(SUMIFS(AEMO_DATA_2024[MVAr],AEMO_DATA_2024[Station], Dashboard!$B$8:$B$33,AEMO_DATA_2024[Voltage],Dashboard!$C$8:$C$33,AEMO_DATA_2024[season],H14,AEMO_DATA_2024[Type],I14,AEMO_DATA_2024[seasonYr],R$7,AEMO_DATA_2024[coincidence],G14)) -> 0 | S14: =SUM(SUMIFS(AEMO_DATA_2024[MVAr],AEMO_DATA_2024[Station], Dashboard!$B$8:$B$33,AEMO_DATA_2024[Voltage],Dashboard!$C$8:$C$33,AEMO_DATA_2024[season],H14,AEMO_DATA_2024[Type],I14,AEMO_DATA_2024[seasonYr],S$7,AEMO_DATA_2024[coincidence],G14)) -> 0
F15: Winter POE50 MW | G15: Coincident | H15: winter | I15: poe50 | J15: =SUM(SUMIFS(AEMO_DATA_2024[MW],AEMO_DATA_2024[Station], Dashboard!$B$8:$B$33,AEMO_DATA_2024[Voltage],Dashboard!$C$8:$C$33,AEMO_DATA_2024[season],H15,AEMO_DATA_2024[Type],I15,AEMO_DATA_2024[seasonYr],J$7,AEMO_DATA_2024[coincidence],G15)) -> 488.31734 | K15: =SUM(SUMIFS(AEMO_DATA_2024[MW],AEMO_DATA_2024[Station], Dashboard!$B$8:$B$33,AEMO_DATA_2024[Voltage],Dashboard!$C$8:$C$33,AEMO_DATA_2024[season],H15,AEMO_DATA_2024[Type],I15,AEMO_DATA_2024[seasonYr],K$7,AEMO_DATA_2024[coincidence],G15)) -> 495.0095 | L15: =SUM(SUMIFS(AEMO_DATA_2024[MW],AEMO_DATA_2024[Station], Dashboard!$B$8:$B$33,AEMO_DATA_2024[Voltage],Dashboard!$C$8:$C$33,AEMO_DATA_2024[season],H15,AEMO_DATA_2024[Type],I15,AEMO_DATA_2024[seasonYr],L$7,AEMO_DATA_2024[coincidence],G15)) -> 568.00839 | M15: =SUM(SUMIFS(AEMO_DATA_2024[MW],AEMO_DATA_2024[Station], Dashboard!$B$8:$B$33,AEMO_DATA_2024[Voltage],Dashboard!$C$8:$C$33,AEMO_DATA_2024[season],H15,AEMO_DATA_2024[Type],I15,AEMO_DATA_2024[seasonYr],M$7,AEMO_DATA_2024[coincidence],G15)) -> 589.54744 | N15: =SUM(SUMIFS(AEMO_DATA_2024[MW],AEMO_DATA_2024[Station], Dashboard!$B$8:$B$33,AEMO_DATA_2024[Voltage],Dashboard!$C$8:$C$33,AEMO_DATA_2024[season],H15,AEMO_DATA_2024[Type],I15,AEMO_DATA_2024[seasonYr],N$7,AEMO_DATA_2024[coincidence],G15)) -> 614.99458 | O15: =SUM(SUMIFS(AEMO_DATA_2024[MW],AEMO_DATA_2024[Station], Dashboard!$B$8:$B$33,AEMO_DATA_2024[Voltage],Dashboard!$C$8:$C$33,AEMO_DATA_2024[season],H15,AEMO_DATA_2024[Type],I15,AEMO_DATA_2024[seasonYr],O$7,AEMO_DATA_2024[coincidence],G15)) -> 642.20349 | P15: =SUM(SUMIFS(AEMO_DATA_2024[MW],AEMO_DATA_2024[Station], Dashboard!$B$8:$B$33,AEMO_DATA_2024[Voltage],Dashboard!$C$8:$C$33,AEMO_DATA_2024[season],H15,AEMO_DATA_2024[Type],I15,AEMO_DATA_2024[seasonYr],P$7,AEMO_DATA_2024[coincidence],G15)) -> 667.7301 | Q15: =SUM(SUMIFS(AEMO_DATA_2024[MW],AEMO_DATA_2024[Station], Dashboard!$B$8:$B$33,AEMO_DATA_2024[Voltage],Dashboard!$C$8:$C$33,AEMO_DATA_2024[season],H15,AEMO_DATA_2024[Type],I15,AEMO_DATA_2024[seasonYr],Q$7,AEMO_DATA_2024[coincidence],G15)) -> 693.03172 | R15: =SUM(SUMIFS(AEMO_DATA_2024[MW],AEMO_DATA_2024[Station], Dashboard!$B$8:$B$33,AEMO_DATA_2024[Voltage],Dashboard!$C$8:$C$33,AEMO_DATA_2024[season],H15,AEMO_DATA_2024[Type],I15,AEMO_DATA_2024[seasonYr],R$7,AEMO_DATA_2024[coincidence],G15)) -> 720.37751 | S15: =SUM(SUMIFS(AEMO_DATA_2024[MW],AEMO_DATA_2024[Station], Dashboard!$B$8:$B$33,AEMO_DATA_2024[Voltage],Dashboard!$C$8:$C$33,AEMO_DATA_2024[season],H15,AEMO_DATA_2024[Type],I15,AEMO_DATA_2024[seasonYr],S$7,AEMO_DATA_2024[coincidence],G15)) -> 0
F16: Winter POE50 MVAr | G16: Coincident | H16: winter | I16: poe50 | J16: =SUM(SUMIFS(AEMO_DATA_2024[MVAr],AEMO_DATA_2024[Station], Dashboard!$B$8:$B$33,AEMO_DATA_2024[Voltage],Dashboard!$C$8:$C$33,AEMO_DATA_2024[season],H16,AEMO_DATA_2024[Type],I16,AEMO_DATA_2024[seasonYr],J$7,AEMO_DATA_2024[coincidence],G16)) -> 0 | K16: =SUM(SUMIFS(AEMO_DATA_2024[MVAr],AEMO_DATA_2024[Station], Dashboard!$B$8:$B$33,AEMO_DATA_2024[Voltage],Dashboard!$C$8:$C$33,AEMO_DATA_2024[season],H16,AEMO_DATA_2024[Type],I16,AEMO_DATA_2024[seasonYr],K$7,AEMO_DATA_2024[coincidence],G16)) -> 0 | L16: =SUM(SUMIFS(AEMO_DATA_2024[MVAr],AEMO_DATA_2024[Station], Dashboard!$B$8:$B$33,AEMO_DATA_2024[Voltage],Dashboard!$C$8:$C$33,AEMO_DATA_2024[season],H16,AEMO_DATA_2024[Type],I16,AEMO_DATA_2024[seasonYr],L$7,AEMO_DATA_2024[coincidence],G16)) -> 0 | M16: =SUM(SUMIFS(AEMO_DATA_2024[MVAr],AEMO_DATA_2024[Station], Dashboard!$B$8:$B$33,AEMO_DATA_2024[Voltage],Dashboard!$C$8:$C$33,AEMO_DATA_2024[season],H16,AEMO_DATA_2024[Type],I16,AEMO_DATA_2024[seasonYr],M$7,AEMO_DATA_2024[coincidence],G16)) -> 0 | N16: =SUM(SUMIFS(AEMO_DATA_2024[MVAr],AEMO_DATA_2024[Station], Dashboard!$B$8:$B$33,AEMO_DATA_2024[Voltage],Dashboard!$C$8:$C$33,AEMO_DATA_2024[season],H16,AEMO_DATA_2024[Type],I16,AEMO_DATA_2024[seasonYr],N$7,AEMO_DATA_2024[coincidence],G16)) -> 0 | O16: =SUM(SUMIFS(AEMO_DATA_2024[MVAr],AEMO_DATA_2024[Station], Dashboard!$B$8:$B$33,AEMO_DATA_2024[Voltage],Dashboard!$C$8:$C$33,AEMO_DATA_2024[season],H16,AEMO_DATA_2024[Type],I16,AEMO_DATA_2024[seasonYr],O$7,AEMO_DATA_2024[coincidence],G16)) -> 0 | P16: =SUM(SUMIFS(AEMO_DATA_2024[MVAr],AEMO_DATA_2024[Station], Dashboard!$B$8:$B$33,AEMO_DATA_2024[Voltage],Dashboard!$C$8:$C$33,AEMO_DATA_2024[season],H16,AEMO_DATA_2024[Type],I16,AEMO_DATA_2024[seasonYr],P$7,AEMO_DATA_2024[coincidence],G16)) -> 0 | Q16: =SUM(SUMIFS(AEMO_DATA_2024[MVAr],AEMO_DATA_2024[Station], Dashboard!$B$8:$B$33,AEMO_DATA_2024[Voltage],Dashboard!$C$8:$C$33,AEMO_DATA_2024[season],H16,AEMO_DATA_2024[Type],I16,AEMO_DATA_2024[seasonYr],Q$7,AEMO_DATA_2024[coincidence],G16)) -> 0 | R16: =SUM(SUMIFS(AEMO_DATA_2024[MVAr],AEMO_DATA_2024[Station], Dashboard!$B$8:$B$33,AEMO_DATA_2024[Voltage],Dashboard!$C$8:$C$33,AEMO_DATA_2024[season],H16,AEMO_DATA_2024[Type],I16,AEMO_DATA_2024[seasonYr],R$7,AEMO_DATA_2024[coincidence],G16)) -> 0 | S16: =SUM(SUMIFS(AEMO_DATA_2024[MVAr],AEMO_DATA_2024[Station], Dashboard!$B$8:$B$33,AEMO_DATA_2024[Voltage],Dashboard!$C$8:$C$33,AEMO_DATA_2024[season],H16,AEMO_DATA_2024[Type],I16,AEMO_DATA_2024[seasonYr],S$7,AEMO_DATA_2024[coincidence],G16)) -> 0

Sheet KTS
B2: 2024 AEMO Forecast | F2: 2024 | G2: 2025 | H2: 2026 | I2: 2027 | J2: 2028 | K2: 2029 | L2: 2030 | M2: 2031 | N2: 2032 | O2: 2033 | Q2: 2024 AEMO Forecast | U2: 2024 | V2: 2025 | W2: 2026 | X2: 2027 | Y2: 2028 | Z2: 2029 | AA2: 2030 | AB2: 2031 | AC2: 2032 | AD2: 2033
B3: KTS Subsystem | Q3: KTS 66kV
B4: Summer POE10 MW | C4: Coincident | D4: summer | E4: poe10 | F4: 2537.07692 | G4: 2581.15619 | H4: 2672.97758 | I4: 2741.02747 | J4: 2799.91483 | K4: 2881.00886 | L4: 2952.64006 | M4: 3028.92253 | N4: 3116.10402 | O4: 3195.3565 | Q4: Summer POE10 MW | R4: Coincident | S4: summer | T4: poe10 | U4: 344.17587 | V4: 350.59549 | W4: 413.33529 | X4: 422.97477 | Y4: 431.29456 | Z4: 443.12866 | AA4: 454.70342 | AB4: 466.37993 | AC4: 479.51319 | AD4: 491.49452
B5: Summer POE10 MVAR | C5: Coincident | D5: summer | E5: poe10 | F5: 548.3142278 | G5: 559.8817918 | H5: 580.9892372 | I5: 598.2084227 | J5: 613.7363911 | K5: 633.8958669 | L5: 652.1034629 | M5: 670.6666699 | N5: 691.1784543 | O5: 710.095841 | Q5: Summer POE10 MVAR | R5: Coincident | S5: summer | T5: poe10 | U5: 67.64235552 | V5: 69.34111007 | W5: 81.71602618 | X5: 84.11212939 | Y5: 86.27709223 | Z5: 89.1450772 | AA5: 91.92756322 | AB5: 94.60133323 | AC5: 97.56017966 | AD5: 100.2951539
B6: Summer POE50 MW | C6: Coincident | D6: summer | E6: poe50 | F6: 2355.87214 | G6: 2398.93472 | H6: 2485.18608 | I6: 2550.29347 | J6: 2611.91366 | K6: 2684.39581 | L6: 2756.00763 | M6: 2831.10047 | N6: 2910.71045 | O6: 2986.68867 | Q6: Summer POE50 MW | R6: Coincident | S6: summer | T6: poe50 | U6: 314.83569 | V6: 321.15263 | W6: 384.66932 | X6: 393.88189 | Y6: 402.70501 | Z6: 413.19739 | AA6: 424.87215 | AB6: 436.44076 | AC6: 448.42245 | AD6: 459.95029
B7: Summer POE50 MVAr | C7: Coincident | D7: summer | E7: poe50 | F7: 511.3568657 | G7: 522.7051666 | H7: 542.6354767 | I7: 559.2765475 | J7: 575.3951614 | K7: 593.8052818 | L7: 612.0425983 | M7: 630.3821512 | N7: 649.3554466 | O7: 667.6211611 | Q7: Summer POE50 MVAr | R7: Coincident | S7: summer | T7: poe50 | U7: 62.11518981 | V7: 63.79460128 | W7: 76.31586958 | X7: 78.63155058 | Y7: 80.8913318 | Z7: 83.50656069 | AA7: 86.30788493 | AB7: 88.9613285 | AC7: 91.70323972 | AD7: 94.35278452
B8: Winter POE10 MW | C8: Coincident | D8: winter | E8: poe10 | F8: 2050.1572 | G8: 2098.31434 | H8: 2214.18297 | I8: 2294.06975 | J8: 2387.39466 | K8: 2486.12951 | L8: 2571.9514 | M8: 2664.03499 | N8: 2764.30127 | O8: 0 | Q8: Winter POE10 MW | R8: Coincident | S8: winter | T8: poe10 | U8: 262.49953 | V8: 265.88682 | W8: 332.29567 | X8: 344.21328 | Y8: 358.34855 | Z8: 373.42304 | AA8: 387.64722 | AB8: 401.75537 | AC8: 417.17448 | AD8: 0
B9: Winter POE10 MVAr | C9: Coincident | D9: winter | E9: poe10 | F9: 0 | G9: 0 | H9: 0 | I9: 0 | J9: 0 | K9: 0 | L9: 0 | M9: 0 | N9: 0 | O9: 0 | Q9: Winter POE10 MVAr | R9: Coincident | S9: winter | T9: poe10 | U9: 0 | V9: 0 | W9: 0 | X9: 0 | Y9: 0 | Z9: 0 | AA9: 0 | AB9: 0 | AC9: 0 | AD9: 0
B10: Winter POE50 MW | C10: Coincident | D10: winter | E10: poe50 | F10: 2001.67419 | G10: 2048.95772 | H10: 2164.1995 | I10: 2243.53766 | J10: 2336.19674 | K10: 2434.47268 | L10: 2519.01014 | M10: 2609.47323 | N10: 2706.91877 | O10: 0 | Q10: Winter POE50 MW | R10: Coincident | S10: winter | T10: poe50 | U10: 256.56383 | V10: 259.86671 | W10: 325.95648 | X10: 337.84248 | Y10: 351.93209 | Z10: 366.99423 | AA10: 381.06708 | AB10: 394.97323 | AC10: 410.00353 | AD10: 0
B11: Winter POE50 MVAr | C11: Coincident | D11: winter | E11: poe50 | F11: 0 | G11: 0 | H11: 0 | I11: 0 | J11: 0 | K11: 0 | L11: 0 | M11: 0 | N11: 0 | O11: 0 | Q11: Winter POE50 MVAr | R11: Coincident | S11: winter | T11: poe50 | U11: 0 | V11: 0 | W11: 0 | X11: 0 | Y11: 0 | Z11: 0 | AA11: 0 | AB11: 0 | AC11: 0 | AD11: 0
B13: Stations | Q13: Stations | R13: CP_ID | S13: CP_NAME | T13: Voltages
B14: ATS_West | C14: 66 kV | Q14: KTS | R14: KTSEJ | S14: Keilor East (Jemena) 66 kV | T14: 66 kV
B15: BLTS | C15: 66 kV | Q15: KTS | R15: KTSEP | S15: Keilor East (Powercor) 66 kV | T15: 66 kV
B16: BLTS | C16: 22 kV
B17: DPTS | C17: 66 kV
B18: FBTS | C18: 66 kV
B19: KTS | C19: 66 kV
B20: TTS | C20: 66 kV
B21: WMTS | C21: 66 kV
B22: WMTS | C22: 22 kV

Sheet SMTS H
B2: 2024 AEMO Forecast | F2: 2024 | G2: 2025 | H2: 2026 | I2: 2027 | J2: 2028 | K2: 2029 | L2: 2030 | M2: 2031 | N2: 2032 | O2: 2033
B3: SMTS H
B4: Summer POE10 MW | C4: Coincident | D4: summer | E4: poe10 | F4: 7247.51804 | G4: 7311.9635 | H4: 7447.35482 | I4: 7626.55213 | J4: 7777.60939 | K4: 8004.56693 | L4: 8208.97979 | M4: 8413.74304 | N4: 8649.74471 | O4: 8861.33778
B5: Summer POE10 MVAR | C5: Coincident | D5: summer | E5: poe10 | F5: 1233.47844 | G5: 1253.690687 | H5: 1286.970781 | I5: 1326.040148 | J5: 1361.147417 | K5: 1408.214714 | L5: 1451.225738 | M5: 1493.514074 | N5: 1540.078322 | O5: 1582.985405
B6: Summer POE50 MW | C6: Coincident | D6: summer | E6: poe50 | F6: 6667.40056 | G6: 6727.34621 | H6: 6842.30895 | I6: 7011.11539 | J6: 7168.63082 | K6: 7368.92357 | L6: 7571.97875 | M6: 7771.82805 | N6: 7984.31682 | O6: 8185.00276
B7: Summer POE50 MVAr | C7: Coincident | D7: summer | E7: poe50 | F7: 1143.453035 | G7: 1162.988849 | H7: 1193.017382 | I7: 1230.523165 | J7: 1266.82213 | K7: 1309.649014 | L7: 1352.578634 | M7: 1394.1888 | N7: 1437.020492 | O7: 1478.263249
B8: Winter POE10 MW | C8: Coincident | D8: winter | E8: poe10 | F8: 5530.87872 | G8: 5623.08185 | H8: 5833.84057 | I8: 6048.9849 | J8: 6310.89224 | K8: 6581.19991 | L8: 6828.88947 | M8: 7081.22964 | N8: 7356.33606 | O8: 0
B9: Winter POE10 MVAr | C9: Coincident | D9: winter | E9: poe10 | F9: 0 | G9: 0 | H9: 0 | I9: 0 | J9: 0 | K9: 0 | L9: 0 | M9: 0 | N9: 0 | O9: 0
B10: Winter POE50 MW | C10: Coincident | D10: winter | E10: poe50 | F10: 5397.13436 | G10: 5487.22628 | H10: 5696.86499 | I10: 5910.48259 | J10: 6170.47532 | K10: 6439.47679 | L10: 6683.54477 | M10: 6931.39169 | N10: 7198.65712 | O10: 0
B11: Winter POE50 MVAr | C11: Coincident | D11: winter | E11: poe50 | F11: 0 | G11: 0 | H11: 0 | I11: 0 | J11: 0 | K11: 0 | L11: 0 | M11: 0 | N11: 0 | O11: 0
B13: Stations | C13: Voltages
B14: ATS_West | C14: 66 kV
B15: BLTS | C15: 22 kV
B16: BTS | C16: 66 kV
B17: BTS | C17: 22 kV
B18: CBTS | C18: 66 kV
B19: DPTS | C19: 66 kV
B20: ERTS | C20: 66 kV
B21: FBTS | C21: 66 kV
B22: GTS | C22: 66 kV
B23: HTS | C23: 66 kV
B24: KTS | C24: 66 kV
B25: MTS | C25: 66 kV
B26: MTS | C26: 22 kV
B27: RTS | C27: 66 kV
B28: RTS | C28: 22 kV
B29: RWTS | C29: 66 kV
B30: RWTS | C30: 22 kV
B31: SMTS | C31: 66 kV
B32: SVTS | C32: 66 kV
B33: TSTS | C33: 66 kV
B34: TTS | C34: 66 kV
B35: WMTS | C35: 66 kV
B36: WMTS | C36: 22 kV
B37: ATS_BLTS | C37: 66 kV

Sheet SMTS GIS
B2: 2024 AEMO Forecast | F2: 2024 | G2: 2025 | H2: 2026 | I2: 2027 | J2: 2028 | K2: 2029 | L2: 2030 | M2: 2031 | N2: 2032 | O2: 2033
B3: SMTS GIS
B4: Summer POE10 MW | C4: Coincident | D4: summer | E4: poe10 | F4: 7247.51804 | G4: 7311.9635 | H4: 7447.35482 | I4: 7626.55213 | J4: 7777.60939 | K4: 8004.56693 | L4: 8208.97979 | M4: 8413.74304 | N4: 8649.74471 | O4: 8861.33778
B5: Summer POE10 MVAR | C5: Coincident | D5: summer | E5: poe10 | F5: 1233.47844 | G5: 1253.690687 | H5: 1286.970781 | I5: 1326.040148 | J5: 1361.147417 | K5: 1408.214714 | L5: 1451.225738 | M5: 1493.514074 | N5: 1540.078322 | O5: 1582.985405
B6: Summer POE50 MW | C6: Coincident | D6: summer | E6: poe50 | F6: 6667.40056 | G6: 6727.34621 | H6: 6842.30895 | I6: 7011.11539 | J6: 7168.63082 | K6: 7368.92357 | L6: 7571.97875 | M6: 7771.82805 | N6: 7984.31682 | O6: 8185.00276
B7: Summer POE50 MVAr | C7: Coincident | D7: summer | E7: poe50 | F7: 1143.453035 | G7: 1162.988849 | H7: 1193.017382 | I7: 1230.523165 | J7: 1266.82213 | K7: 1309.649014 | L7: 1352.578634 | M7: 1394.1888 | N7: 1437.020492 | O7: 1478.263249
B8: Winter POE10 MW | C8: Coincident | D8: winter | E8: poe10 | F8: 5530.87872 | G8: 5623.08185 | H8: 5833.84057 | I8: 6048.9849 | J8: 6310.89224 | K8: 6581.19991 | L8: 6828.88947 | M8: 7081.22964 | N8: 7356.33606 | O8: 0
B9: Winter POE10 MVAr | C9: Coincident | D9: winter | E9: poe10 | F9: 0 | G9: 0 | H9: 0 | I9: 0 | J9: 0 | K9: 0 | L9: 0 | M9: 0 | N9: 0 | O9: 0
B10: Winter POE50 MW | C10: Coincident | D10: winter | E10: poe50 | F10: 5397.13436 | G10: 5487.22628 | H10: 5696.86499 | I10: 5910.48259 | J10: 6170.47532 | K10: 6439.47679 | L10: 6683.54477 | M10: 6931.39169 | N10: 7198.65712 | O10: 0
B11: Winter POE50 MVAr | C11: Coincident | D11: winter | E11: poe50 | F11: 0 | G11: 0 | H11: 0 | I11: 0 | J11: 0 | K11: 0 | L11: 0 | M11: 0 | N11: 0 | O11: 0
B13: Stations | C13: Voltages
B14: ATS_West | C14: 66 kV
B15: BLTS | C15: 22 kV
B16: BTS | C16: 66 kV
B17: BTS | C17: 22 kV
B18: CBTS | C18: 66 kV
B19: DPTS | C19: 66 kV
B20: ERTS | C20: 66 kV
B21: FBTS | C21: 66 kV
B22: GTS | C22: 66 kV
B23: HTS | C23: 66 kV
B24: KTS | C24: 66 kV
B25: MTS | C25: 66 kV
B26: MTS | C26: 22 kV
B27: RTS | C27: 66 kV
B28: RTS | C28: 22 kV
B29: RWTS | C29: 66 kV
B30: RWTS | C30: 22 kV
B31: SMTS | C31: 66 kV
B32: SVTS | C32: 66 kV
B33: TSTS | C33: 66 kV
B34: TTS | C34: 66 kV
B35: WMTS | C35: 66 kV
B36: WMTS | C36: 22 kV
B37: ATS_BLTS | C37: 66 kV

Sheet ROTS GIL
B2: 2024 AEMO Forecast | F2: 2024 | G2: 2025 | H2: 2026 | I2: 2027 | J2: 2028 | K2: 2029 | L2: 2030 | M2: 2031 | N2: 2032 | O2: 2033
B3: ROTS GIL
B4: Summer POE10 MW | C4: Coincident | D4: summer | E4: poe10 | F4: 5002.84875 | G4: 5039.16985 | H4: 5080.41478 | I4: 5190.50115 | J4: 5279.69908 | K4: 5423.09265 | L4: 5544.39458 | M4: 5668.34588 | N4: 5813.94627 | O4: 5941.63048
B5: Summer POE10 MVAR | C5: Coincident | D5: summer | E5: poe10 | F5: 747.4129878 | G5: 759.4396786 | H5: 771.7750569 | I5: 794.0608994 | J5: 813.8440755 | K5: 841.0313874 | L5: 864.6916151 | M5: 888.3342328 | N5: 914.34889 | O5: 938.1745318
B6: Summer POE50 MW | C6: Coincident | D6: summer | E6: poe50 | F6: 4611.80497 | G6: 4645.53572 | H6: 4671.86017 | I6: 4775.2358 | J6: 4869.10093 | K6: 4994.76928 | L6: 5115.2742 | M6: 5236.08367 | N6: 5366.05909 | O6: 5486.53778
B7: Summer POE50 MVAr | C7: Coincident | D7: summer | E7: poe50 | F7: 694.3351648 | G7: 706.0502333 | H7: 716.2898915 | I7: 737.7019433 | J7: 758.2334323 | K7: 782.9740108 | L7: 806.603906 | M7: 829.8812707 | N7: 853.7451946 | O7: 876.6218615
B8: Winter POE10 MW | C8: Coincident | D8: winter | E8: poe10 | F8: 3701.51757 | G8: 3764.18572 | H8: 3860.16397 | I8: 3997.124 | J8: 4167.04194 | K8: 4339.15422 | L8: 4493.17913 | M8: 4652.20451 | N8: 4825.79849 | O8: 0
B9: Winter POE10 MVAr | C9: Coincident | D9: winter | E9: poe10 | F9: 0 | G9: 0 | H9: 0 | I9: 0 | J9: 0 | K9: 0 | L9: 0 | M9: 0 | N9: 0 | O9: 0
B10: Winter POE50 MW | C10: Coincident | D10: winter | E10: poe50 | F10: 3612.48051 | G10: 3673.81883 | H10: 3769.36324 | I10: 3905.40802 | J10: 4074.14415 | K10: 4245.48861 | L10: 4397.22902 | M10: 4553.39528 | N10: 4721.93961 | O10: 0
B11: Winter POE50 MVAr | C11: Coincident | D11: winter | E11: poe50 | F11: 0 | G11: 0 | H11: 0 | I11: 0 | J11: 0 | K11: 0 | L11: 0 | M11: 0 | N11: 0 | O11: 0
B13: Stations | C13: Voltages
B14: ERTS | C14: 66 kV
B15: CBTS | C15: 66 kV
B16: TBTS | C16: 66 kV
B17: TTS | C17: 66 kV
B18: SMTS | C18: 66 kV
B19: BTS | C19: 66 kV
B20: BTS | C20: 22 kV
B21: RTS | C21: 66 kV
B22: RTS | C22: 22 kV
B23: RWTS | C23: 66 kV
B24: RWTS | C24: 22 kV
B25: TSTS | C25: 66 kV
B26: SVTS | C26: 66 kV
B27: HTS | C27: 66 kV
B28: MTS | C28: 66 kV
B29: MTS | C29: 22 kV

Sheet DDTS
B2: 2024 AEMO Forecast | F2: 2024 | G2: 2025 | H2: 2026 | I2: 2027 | J2: 2028 | K2: 2029 | L2: 2030 | M2: 2031 | N2: 2032 | O2: 2033
B3: DDTS
B4: Summer POE10 MW | C4: Coincident | D4: summer | E4: poe10 | F4: 1144.53287 | G4: 1167.43253 | H4: 1178.17785 | I4: 1204.61934 | J4: 1227.31711 | K4: 1259.60859 | L4: 1283.49693 | M4: 1313.03658 | N4: 1346.96122 | O4: 1376.80618
B5: Summer POE10 MVAR | C5: Coincident | D5: summer | E5: poe10 | F5: 155.9275919 | G5: 160.7163487 | H5: 163.0179286 | I5: 167.5754004 | J5: 171.5765831 | K5: 176.9329138 | L5: 180.7723738 | M5: 185.5503538 | N5: 190.891532 | O5: 195.7520258
B6: Summer POE50 MW | C6: Coincident | D6: summer | E6: poe50 | F6: 1041.44182 | G6: 1064.21983 | H6: 1071.53659 | I6: 1096.26323 | J6: 1119.96646 | K6: 1147.92913 | L6: 1171.29882 | M6: 1199.99295 | N6: 1230.15521 | O6: 1258.20635
B7: Summer POE50 MVAr | C7: Coincident | D7: summer | E7: poe50 | F7: 143.7658148 | G7: 148.5787697 | H7: 150.4392041 | I7: 154.8027115 | J7: 158.9658466 | K7: 163.780401 | L7: 167.5750052 | M7: 172.271604 | N7: 177.1449353 | O7: 181.7953868
B8: Winter POE10 MW | C8: Coincident | D8: winter | E8: poe10 | F8: 876.25147 | G8: 904.26424 | H8: 926.44116 | I8: 958.43748 | J8: 996.25031 | K8: 1036.32637 | L8: 1066.59512 | M8: 1103.24882 | N8: 1143.2825 | O8: 0
B9: Winter POE10 MVAr | C9: Coincident | D9: winter | E9: poe10 | F9: 0 | G9: 0 | H9: 0 | I9: 0 | J9: 0 | K9: 0 | L9: 0 | M9: 0 | N9: 0 | O9: 0
B10: Winter POE50 MW | C10: Coincident | D10: winter | E10: poe50 | F10: 853.88578 | G10: 881.53284 | H10: 903.62071 | I10: 935.40243 | J10: 972.94165 | K10: 1012.83568 | L10: 1042.58297 | M10: 1078.56364 | N10: 1117.40356 | O10: 0
B11: Winter POE50 MVAr | C11: Coincident | D11: winter | E11: poe50 | F11: 0 | G11: 0 | H11: 0 | I11: 0 | J11: 0 | K11: 0 | L11: 0 | M11: 0 | N11: 0 | O11: 0
B13: Stations | C13: Voltages
B14: BETS | C14: 66 kV
B15: BETS | C15: 22 kV
B16: GNTS | C16: 66 kV
B17: MBTS | C17: 66 kV
B18: SHTS | C18: 66 kV
B19: TTS | C19: 66 kV

Sheet NPSD
B2: 2024 AEMO Forecast | F2: 2024 | G2: 2025 | H2: 2026 | I2: 2027 | J2: 2028 | K2: 2029 | L2: 2030 | M2: 2031 | N2: 2032 | O2: 2033
B3: NPSD
B4: Summer POE10 MW | C4: Coincident | D4: summer | E4: poe10 | F4: 2034.84333 | G4: 2059.0954 | H4: 2147.60276 | I4: 2207.18781 | J4: 2259.41214 | K4: 2330.72976 | L4: 2399.83854 | M4: 2467.29791 | N4: 2543.94673 | O4: 2614.4707
B5: Summer POE10 MVAR | C5: Coincident | D5: summer | E5: poe10 | F5: 454.6733343 | G5: 462.3538888 | H5: 482.5563916 | I5: 498.0716692 | J5: 512.1336961 | K5: 530.3570412 | L5: 548.0047841 | M5: 564.943131 | N5: 583.6358712 | O5: 600.9456999
B6: Summer POE50 MW | C6: Coincident | D6: summer | E6: poe50 | F6: 1884.62158 | G6: 1907.44491 | H6: 1991.43627 | I6: 2048.29312 | J6: 2102.65175 | K6: 2166.44545 | L6: 2235.54724 | M6: 2301.8439 | N6: 2371.84948 | O6: 2439.44362
B7: Summer POE50 MVAr | C7: Coincident | D7: summer | E7: poe50 | F7: 422.6864204 | G7: 430.0608983 | H7: 449.2410111 | I7: 464.1836872 | J7: 478.7212297 | K7: 495.3367804 | L7: 512.9977057 | M7: 529.6969426 | N7: 546.9709025 | O7: 563.6631732
B8: Winter POE10 MW | C8: Coincident | D8: winter | E8: poe10 | F8: 1667.83951 | G8: 1694.08104 | H8: 1802.44401 | I8: 1871.83869 | J8: 1953.0193 | K8: 2039.09828 | L8: 2120.45173 | M8: 2201.25616 | N8: 2289.30572 | O8: 0
B9: Winter POE10 MVAr | C9: Coincident | D9: winter | E9: poe10 | F9: 0 | G9: 0 | H9: 0 | I9: 0 | J9: 0 | K9: 0 | L9: 0 | M9: 0 | N9: 0 | O9: 0
B10: Winter POE50 MW | C10: Coincident | D10: winter | E10: poe50 | F10: 1627.31196 | G10: 1652.85716 | H10: 1760.59111 | I10: 1829.45573 | J10: 1909.99844 | K10: 1995.61677 | L10: 2075.78238 | M10: 2155.12831 | N10: 2240.67217 | O10: 0
B11: Winter POE50 MVAr | C11: Coincident | D11: winter | E11: poe50 | F11: 0 | G11: 0 | H11: 0 | I11: 0 | J11: 0 | K11: 0 | L11: 0 | M11: 0 | N11: 0 | O11: 0
B13: Stations | C13: Voltages
B14: ATS_BLTS | C14: 66 kV
B15: ATS_West | C15: 66 kV
B16: DPTS | C16: 66 kV
B17: BLTS | C17: 22 kV
B18: FBTS | C18: 66 kV
B19: WMTS | C19: 22 kV
B20: WMTS | C20: 66 kV
B21: KTS | C21: 66 kV

Sheet WOTS Spare
B2: 2024 AEMO Forecast | F2: 2024 | G2: 2025 | H2: 2026 | I2: 2027 | J2: 2028 | K2: 2029 | L2: 2030 | M2: 2031 | N2: 2032 | O2: 2033
B3: WOTS Spare
B4: Summer POE10 MW | C4: Non-coincident | D4: summer | E4: poe10 | F4: 101.76121 | G4: 101.66653 | H4: 101.3554 | I4: 101.42287 | J4: 102.05107 | K4: 103.04546 | L4: 104.01903 | M4: 105.06796 | N4: 106.19219 | O4: 107.81797
B5: Summer POE10 MVAR | C5: Non-coincident | D5: summer | E5: poe10 | F5: 19.26738444 | G5: 19.39492932 | H5: 19.54891847 | I5: 19.7278892 | J5: 19.93397807 | K5: 20.16563402 | L5: 20.42199211 | M5: 20.68685124 | N5: 20.94818751 | O5: 21.3368503
B6: Summer POE50 MW | C6: Non-coincident | D6: summer | E6: poe50 | F6: 88.44524 | G6: 88.23578 | H6: 87.79327 | I6: 87.72979 | J6: 88.18366 | K6: 89.84961 | L6: 91.81208 | M6: 94.1792 | N6: 96.87865 | O6: 99.43557
B7: Summer POE50 MVAr | C7: Non-coincident | D7: summer | E7: poe50 | F7: 16.81505921 | G7: 16.91922589 | H7: 17.04360383 | I7: 17.19034791 | J7: 17.36274836 | K7: 17.68628683 | L7: 18.07916905 | M7: 18.5759385 | N7: 19.12326274 | O7: 19.64949285
B8: Winter POE10 MW | C8: Non-coincident | D8: winter | E8: poe10 | F8: 76.99358 | G8: 77.23218 | H8: 77.34681 | I8: 77.61664 | J8: 78.48148 | K8: 81.29896 | L8: 84.29872 | M8: 87.25194 | N8: 90.47215 | O8: 0
B9: Winter POE10 MVAr | C9: Non-coincident | D9: winter | E9: poe10 | F9: 0 | G9: 0 | H9: 0 | I9: 0 | J9: 0 | K9: 0 | L9: 0 | M9: 0 | N9: 0 | O9: 0
B10: Winter POE50 MW | C10: Non-coincident | D10: winter | E10: poe50 | F10: 73.96223 | G10: 74.18265 | H10: 74.57424 | I10: 75.15868 | J10: 76.65093 | K10: 79.86605 | L10: 82.83232 | M10: 85.74127 | N10: 88.87685 | O10: 0
B11: Winter POE50 MVAr | C11: Non-coincident | D11: winter | E11: poe50 | F11: 0 | G11: 0 | H11: 0 | I11: 0 | J11: 0 | K11: 0 | L11: 0 | M11: 0 | N11: 0 | O11: 0
B13: Stations | C13: Voltages
B14: WOTS | C14: 22 kV
B15: WOTS | C15: 66 kV

Sheet BATS
B2: 2024 AEMO Forecast | F2: 2024 | G2: 2025 | H2: 2026 | I2: 2027 | J2: 2028 | K2: 2029 | L2: 2030 | M2: 2031 | N2: 2032 | O2: 2033
B3: BATS
B4: Summer POE10 MW | C4: Non-coincident | D4: summer | E4: poe10 | F4: 204.13482 | G4: 204.22716 | H4: 204.73309 | I4: 205.56367 | J4: 206.48961 | K4: 207.87221 | L4: 209.7067 | M4: 211.50975 | N4: 216.06447 | O4: 221.44866
B5: Summer POE10 MVAR | C5: Non-coincident | D5: summer | E5: poe10 | F5: 34.10135784 | G5: 34.30840196 | H5: 34.56604271 | I5: 34.87611805 | J5: 35.24422117 | K5: 35.66790359 | L5: 36.13620326 | M5: 36.62096795 | N5: 37.56547887 | O5: 38.62923894
B6: Summer POE50 MW | C6: Non-coincident | D6: summer | E6: poe50 | F6: 184.14953 | G6: 184.13718 | H6: 184.53867 | I6: 185.26576 | J6: 186.08826 | K6: 187.3674 | L6: 191.44892 | M6: 196.71188 | N6: 202.06441 | O6: 207.26047
B7: Summer POE50 MVAr | C7: Non-coincident | D7: summer | E7: poe50 | F7: 30.89580268 | G7: 31.08605497 | H7: 31.32694399 | I7: 31.62041998 | J7: 31.97193177 | K7: 32.37901964 | L7: 33.20773333 | M7: 34.24745281 | N7: 35.31992904 | O7: 36.35351386
B8: Winter POE10 MW | C8: Non-coincident | D8: winter | E8: poe10 | F8: 187.19266 | G8: 188.25428 | H8: 189.69128 | I8: 191.3712 | J8: 198.88543 | K8: 207.14148 | L8: 214.88325 | M8: 222.52631 | N8: 230.85772 | O8: 0
B9: Winter POE10 MVAr | C9: Non-coincident | D9: winter | E9: poe10 | F9: 0 | G9: 0 | H9: 0 | I9: 0 | J9: 0 | K9: 0 | L9: 0 | M9: 0 | N9: 0 | O9: 0
B10: Winter POE50 MW | C10: Non-coincident | D10: winter | E10: poe50 | F10: 182.88155 | G10: 183.92055 | H10: 185.33501 | I10: 186.99253 | J10: 193.60202 | K10: 201.79363 | L10: 209.40101 | M10: 216.88446 | N10: 224.9497 | O10: 0
B11: Winter POE50 MVAr | C11: Non-coincident | D11: winter | E11: poe50 | F11: 0 | G11: 0 | H11: 0 | I11: 0 | J11: 0 | K11: 0 | L11: 0 | M11: 0 | N11: 0 | O11: 0
B13: Stations | C13: Voltages
B14: BATS | C14: 66 kV

Sheet TTS
B2: 2024 AEMO Forecast | F2: 2024 | G2: 2025 | H2: 2026 | I2: 2027 | J2: 2028 | K2: 2029 | L2: 2030 | M2: 2031 | N2: 2032 | O2: 2033 | Q2: 2024 AEMO Forecast | U2: 2024 | V2: 2025 | W2: 2026 | X2: 2027 | Y2: 2028 | Z2: 2029 | AA2: 2030 | AB2: 2031 | AC2: 2032 | AD2: 2033
B3: TTS (B12 and B34) | Q3: TTS B34
B4: Summer POE10 MW | C4: Non-coincident | D4: summer | E4: poe10 | F4: 515.56635 | G4: 534.47342 | H4: 535.30456 | I4: 539.96446 | J4: 550.47975 | K4: 565.5635 | L4: 573.46022 | M4: 587.68589 | N4: 604.17942 | O4: 618.57569 | Q4: Summer POE10 MW | R4: =$C$5 -> Non-coincident | S4: summer | T4: poe10 | U4: 282.23058 | V4: 282.95818 | W4: 283.97304 | X4: 287.01811 | Y4: 293.21822 | Z4: 301.70052 | AA4: 309.86305 | AB4: 317.76983 | AC4: 326.79694 | AD4: 334.85465
B5: Summer POE10 MVAR | C5: Non-coincident | D5: summer | E5: poe10 | F5: 97.27154637 | G5: 101.2650271 | H5: 102.0492941 | I5: 103.534662 | J5: 106.1593274 | K5: 109.6163935 | L5: 111.7039854 | M5: 114.8497737 | N5: 118.33165 | O5: 121.5238886 | Q5: Summer POE10 MVAR | R5: =$C$5 -> Non-coincident | S5: summer | T5: poe10 | U5: 52.82387384 | V5: 53.19653227 | W5: 53.62486928 | X5: 54.4150922 | Y5: 55.78639485 | Z5: 57.59533278 | AA5: 59.32427884 | AB5: 60.96769867 | AC5: 62.79234156 | AD5: 64.46235581
B6: Summer POE50 MW | C6: Non-coincident | D6: summer | E6: poe50 | F6: 460.97391 | G6: 482.13869 | H6: 485.99964 | I6: 498.01658 | J6: 509.03832 | K6: 522.26107 | L6: 529.88452 | M6: 543.80084 | N6: 558.69161 | O6: 572.35009 | Q6: Summer POE50 MW | R6: Non-coincident | S6: summer | T6: poe50 | U6: 251.08021 | V6: 253.01063 | W6: 255.58717 | X6: 262.38516 | Y6: 268.80862 | Z6: 276.24171 | AA6: 284.32713 | AB6: 292.01805 | AC6: 300.12437 | AD6: 307.73808
B7: Summer POE50 MVAr | C7: Non-coincident | D7: summer | E7: poe50 | F7: 87.3751791 | G7: 91.77793129 | H7: 93.11143392 | I7: 95.93046572 | J7: 98.64693897 | K7: 101.7666481 | L7: 103.8047024 | M7: 106.8944126 | N7: 110.085745 | O7: 113.1442391 | Q7: Summer POE50 MVAr | R7: Non-coincident | S7: summer | T7: poe50 | U7: 47.17702049 | V7: 47.76772283 | W7: 48.47915689 | X7: 49.94969882 | Y7: 51.36148974 | Z7: 52.98022977 | AA7: 54.69519754 | AB7: 56.29948687 | AC7: 57.95721148 | AD7: 59.54673863
B8: Winter POE10 MW | C8: Non-coincident | D8: winter | E8: poe10 | F8: 418.03089 | G8: 437.71451 | H8: 440.10874 | I8: 444.20474 | J8: 455.43207 | K8: 473.6787 | L8: 484.20868 | M8: 501.58399 | N8: 520.51916 | O8: 0 | Q8: Winter POE10 MW | R8: Non-coincident | S8: winter | T8: poe10 | U8: 223.87905 | V8: 224.74867 | W8: 226.27814 | X8: 228.05289 | Y8: 233.42953 | Z8: 242.96235 | AA8: 251.83376 | AB8: 260.57658 | AC8: 270.12009 | AD8: 0
B9: Winter POE10 MVAr | C9: Non-coincident | D9: winter | E9: poe10 | F9: 0 | G9: 0 | H9: 0 | I9: 0 | J9: 0 | K9: 0 | L9: 0 | M9: 0 | N9: 0 | O9: 0 | Q9: Winter POE10 MVAr | R9: Non-coincident | S9: winter | T9: poe10 | U9: 0 | V9: 0 | W9: 0 | X9: 0 | Y9: 0 | Z9: 0 | AA9: 0 | AB9: 0 | AC9: 0 | AD9: 0
B10: Winter POE50 MW | C10: Non-coincident | D10: winter | E10: poe50 | F10: 404.16085 | G10: 423.85302 | H10: 426.1628 | I10: 431.08411 | J10: 446.22152 | K10: 465.11345 | L10: 475.46345 | M10: 492.57351 | N10: 511.00989 | O10: 0 | Q10: Winter POE50 MW | R10: Non-coincident | S10: winter | T10: poe50 | U10: 216.88541 | V10: 217.80115 | W10: 219.28428 | X10: 221.0151 | Y10: 229.41433 | Z10: 238.9443 | AA10: 247.72183 | AB10: 256.33803 | AC10: 265.6347 | AD10: 0
B11: Winter POE50 MVAr | C11: Non-coincident | D11: winter | E11: poe50 | F11: 0 | G11: 0 | H11: 0 | I11: 0 | J11: 0 | K11: 0 | L11: 0 | M11: 0 | N11: 0 | O11: 0 | Q11: Winter POE50 MVAr | R11: Non-coincident | S11: winter | T11: poe50 | U11: 0 | V11: 0 | W11: 0 | X11: 0 | Y11: 0 | Z11: 0 | AA11: 0 | AB11: 0 | AC11: 0 | AD11: 0
B13: Stations | C13: Voltages | Q13: Stations | R13: Voltages
B14: TTS | C14: 66 kV | Q14: TTS B34 | R14: 66 kV

Sheet MWTS
B2: 2024 AEMO Forecast | F2: 2024 | G2: 2025 | H2: 2026 | I2: 2027 | J2: 2028 | K2: 2029 | L2: 2030 | M2: 2031 | N2: 2032 | O2: 2033
B3: MWTS
B4: Summer POE10 MW | C4: Non-coincident | D4: summer | E4: poe10 | F4: 462.43039 | G4: 459.71391 | H4: 458.408 | I4: 457.82955 | J4: 458.09525 | K4: 458.16158 | L4: 458.78768 | M4: 460.69889 | N4: 463.18639 | O4: 464.68193
B5: Summer POE10 MVAR | C5: Non-coincident | D5: summer | E5: poe10 | F5: 26.63800283 | G5: 26.75920962 | H5: 26.92053696 | I5: 27.12671297 | J5: 27.37587569 | K5: 27.66561581 | L5: 27.98935708 | M5: 28.32734234 | N5: 28.6661424 | O5: 29.00184533
B6: Summer POE50 MW | C6: Non-coincident | D6: summer | E6: poe50 | F6: 381.76327 | G6: 378.73169 | H6: 377.11009 | I6: 376.20266 | J6: 376.13878 | K6: 375.87532 | L6: 376.17192 | M6: 377.75447 | N6: 380.48484 | O6: 388.1396
B7: Summer POE50 MVAr | C7: Non-coincident | D7: summer | E7: poe50 | F7: 22.34588786 | G7: 22.45032889 | H7: 22.59485907 | I7: 22.7835308 | J7: 23.01515733 | K7: 23.28735006 | L7: 23.59355938 | M7: 23.91405738 | N7: 24.26578001 | O7: 24.9292011
B8: Winter POE10 MW | C8: Non-coincident | D8: winter | E8: poe10 | F8: 360.63749 | G8: 362.11916 | H8: 364.51504 | I8: 367.51438 | J8: 371.31149 | K8: 380.27584 | L8: 394.54499 | M8: 408.62993 | N8: 423.98126 | O8: 0
B9: Winter POE10 MVAr | C9: Non-coincident | D9: winter | E9: poe10 | F9: 0 | G9: 0 | H9: 0 | I9: 0 | J9: 0 | K9: 0 | L9: 0 | M9: 0 | N9: 0 | O9: 0
B10: Winter POE50 MW | C10: Non-coincident | D10: winter | E10: poe50 | F10: 353.97892 | G10: 355.43374 | H10: 357.80215 | I10: 360.77339 | J10: 364.54239 | K10: 372.168 | L10: 386.24775 | M10: 400.09554 | N10: 415.01842 | O10: 0
B11: Winter POE50 MVAr | C11: Non-coincident | D11: winter | E11: poe50 | F11: 0 | G11: 0 | H11: 0 | I11: 0 | J11: 0 | K11: 0 | L11: 0 | M11: 0 | N11: 0 | O11: 0
B13: Stations | C13: Voltages
B14: MWTS | C14: 66 kV

Sheet AEMO Data 2024
A1: Region | B1: CP_ID | C1: Station | D1: Voltage | E1: CP_NAME | F1: NSP | G1: min_max | H1: season | I1: coincidence | J1: seasonYr | K1: Type | L1: MW | M1: L_L | N1: pf | O1: MVAr
A2: VIC | B2: ATSBJ | C2: =VLOOKUP(AEMO_DATA_2024[[#This Row],[CP_NAME]],'2024 Lookup'!$A$3:$B$76,2,FALSE) -> ATS_BLTS | D2: =VLOOKUP(AEMO_DATA_2024[[#This Row],[CP_NAME]],'2024 Lookup'!$A$3:$C$76,3,FALSE) -> 66 kV | E2: Altona-Brooklyn (Jemena) 66 kV | F2: Jemena | G2: MAX_DEMAND | H2: Summer | I2: Non-coincident | J2: 2024 | K2: poe10 | L2: 145.30519 | M2: Lag | N2: 0.9679179706 | O2: 37.72046045
A3: VIC | B3: ATSBJ | C3: =VLOOKUP(AEMO_DATA_2024[[#This Row],[CP_NAME]],'2024 Lookup'!$A$3:$B$76,2,FALSE) -> ATS_BLTS | D3: =VLOOKUP(AEMO_DATA_2024[[#This Row],[CP_NAME]],'2024 Lookup'!$A$3:$C$76,3,FALSE) -> 66 kV | E3: Altona-Brooklyn (Jemena) 66 kV | F3: Jemena | G3: MAX_DEMAND | H3: Summer | I3: Non-coincident | J3: 2024 | K3: poe50 | L3: 125.86857 | M3: Lag | N3: 0.9676880918 | O3: 32.79754477
A4: VIC | B4: ATSBJ | C4: =VLOOKUP(AEMO_DATA_2024[[#This Row],[CP_NAME]],'2024 Lookup'!$A$3:$B$76,2,FALSE) -> ATS_BLTS | D4: =VLOOKUP(AEMO_DATA_2024[[#This Row],[CP_NAME]],'2024 Lookup'!$A$3:$C$76,3,FALSE) -> 66 kV | E4: Altona-Brooklyn (Jemena) 66 kV | F4: Jemena | G4: MAX_DEMAND | H4: Summer | I4: Non-coincident | J4: 2025 | K4: poe10 | L4: 145.83711 | M4: Lag | N4: 0.9675923882 | O4: 38.05981624
A5: VIC | B5: ATSBJ | C5: =VLOOKUP(AEMO_DATA_2024[[#This Row],[CP_NAME]],'2024 Lookup'!$A$3:$B$76,2,FALSE) -> ATS_BLTS | D5: =VLOOKUP(AEMO_DATA_2024[[#This Row],[CP_NAME]],'2024 Lookup'!$A$3:$C$76,3,FALSE) -> 66 kV | E5: Altona-Brooklyn (Jemena) 66 kV | F5: Jemena | G5: MAX_DEMAND | H5: Summer | I5: Non-coincident | J5: 2025 | K5: poe50 | L5: 126.94694 | M5: Lag | N5: 0.9673212234 | O5: 33.27530566
A6: VIC | B6: ATSBJ | C6: =VLOOKUP(AEMO_DATA_2024[[#This Row],[CP_NAME]],'2024 Lookup'!$A$3:$B$76,2,FALSE) -> ATS_BLTS | D6: =VLOOKUP(AEMO_DATA_2024[[#This Row],[CP_NAME]],'2024 Lookup'!$A$3:$C$76,3,FALSE) -> 66 kV | E6: Altona-Brooklyn (Jemena) 66 kV | F6: Jemena | G6: MAX_DEMAND | H6: Summer | I6: Non-coincident | J6: 2026 | K6: poe10 | L6: 146.3432 | M6: Lag | N6: 0.9671903437 | O6: 38.44011055
A7: VIC | B7: ATSBJ | C7: =VLOOKUP(AEMO_DATA_2024[[#This Row],[CP_NAME]],'2024 Lookup'!$A$3:$B$76,2,FALSE) -> ATS_BLTS | D7: =VLOOKUP(AEMO_DATA_2024[[#This Row],[CP_NAME]],'2024 Lookup'!$A$3:$C$76,3,FALSE) -> 66 kV | E7: Altona-Brooklyn (Jemena) 66 kV | F7: Jemena | G7: MAX_DEMAND | H7: Summer | I7: Non-coincident | J7: 2026 | K7: poe50 | L7: 128.17768 | M7: Lag | N7: 0.966873417 | O7: 33.83913964
A8: VIC | B8: ATSBJ | C8: =VLOOKUP(AEMO_DATA_2024[[#This Row],[CP_NAME]],'2024 Lookup'!$A$3:$B$76,2,FALSE) -> ATS_BLTS | D8: =VLOOKUP(AEMO_DATA_2024[[#This Row],[CP_NAME]],'2024 Lookup'!$A$3:$C$76,3,FALSE) -> 66 kV | E8: Altona-Brooklyn (Jemena) 66 kV | F8: Jemena | G8: MAX_DEMAND | H8: Summer | I8: Non-coincident | J8: 2027 | K8: poe10 | L8: 149.29173 | M8: Lag | N8: 0.9668332881 | O8: 39.43838663
A9: VIC | B9: ATSBJ | C9: =VLOOKUP(AEMO_DATA_2024[[#This Row],[CP_NAME]],'2024 Lookup'!$A$3:$B$76,2,FALSE) -> ATS_BLTS | D9: =VLOOKUP(AEMO_DATA_2024[[#This Row],[CP_NAME]],'2024 Lookup'!$A$3:$C$76,3,FALSE) -> 66 kV | E9: Altona-Brooklyn (Jemena) 66 kV | F9: Jemena | G9: MAX_DEMAND | H9: Summer | I9: Non-coincident | J9: 2027 | K9: poe50 | L9: 131.50765 | M9: Lag | N9: 0.9664809191 | O9: 34.93402701
A10: VIC | B10: ATSBJ | C10: =VLOOKUP(AEMO_DATA_2024[[#This Row],[CP_NAME]],'2024 Lookup'!$A$3:$B$76,2,FALSE) -> ATS_BLTS | D10: =VLOOKUP(AEMO_DATA_2024[[#This Row],[CP_NAME]],'2024 Lookup'!$A$3:$C$76,3,FALSE) -> 66 kV | E10: Altona-Brooklyn (Jemena) 66 kV | F10: Jemena | G10: MAX_DEMAND | H10: Summer | I10: Non-coincident | J10: 2028 | K10: poe10 | L10: 152.43361 | M10: Lag | N10: 0.9664754174 | O10: 40.49634925
A11: VIC | B11: ATSBJ | C11: =VLOOKUP(AEMO_DATA_2024[[#This Row],[CP_NAME]],'2024 Lookup'!$A$3:$B$76,2,FALSE) -> ATS_BLTS | D11: =VLOOKUP(AEMO_DATA_2024[[#This Row],[CP_NAME]],'2024 Lookup'!$A$3:$C$76,3,FALSE) -> 66 kV | E11: Altona-Brooklyn (Jemena) 66 kV | F11: Jemena | G11: MAX_DEMAND | H11: Summer | I11: Non-coincident | J11: 2028 | K11: poe50 | L11: 134.60452 | M11: Lag | N11: 0.9660810077 | O11: 35.98058948
A12: VIC | B12: ATSBJ | C12: =VLOOKUP(AEMO_DATA_2024[[#This Row],[CP_NAME]],'2024 Lookup'!$A$3:$B$76,2,FALSE) -> ATS_BLTS | D12: =VLOOKUP(AEMO_DATA_2024[[#This Row],[CP_NAME]],'2024 Lookup'!$A$3:$C$76,3,FALSE) -> 66 kV | E12: Altona-Brooklyn (Jemena) 66 kV | F12: Jemena | G12: MAX_DEMAND | H12: Summer | I12: Non-coincident | J12: 2029 | K12: poe10 | L12: 156.83536 | M12: Lag | N12: 0.9661716328 | O12: 41.86402047
A13: VIC | B13: ATSBJ | C13: =VLOOKUP(AEMO_DATA_2024[[#This Row],[CP_NAME]],'2024 Lookup'!$A$3:$B$76,2,FALSE) -> ATS_BLTS | D13: =VLOOKUP(AEMO_DATA_2024[[#This Row],[CP_NAME]],'2024 Lookup'!$A$3:$C$76,3,FALSE) -> 66 kV | E13: Altona-Brooklyn (Jemena) 66 kV | F13: Jemena | G13: MAX_DEMAND | H13: Summer | I13: Non-coincident | J13: 2029 | K13: poe50 | L13: 138.28527 | M13: Lag | N13: 0.9657296261 | O13: 37.16564549
A14: VIC | B14: ATSBJ | C14: =VLOOKUP(AEMO_DATA_2024[[#This Row],[CP_NAME]],'2024 Lookup'!$A$3:$B$76,2,FALSE) -> ATS_BLTS | D14: =VLOOKUP(AEMO_DATA_2024[[#This Row],[CP_NAME]],'2024 Lookup'!$A$3:$C$76,3,FALSE) -> 66 kV | E14: Altona-Brooklyn (Jemena) 66 kV | F14: Jemena | G14: MAX_DEMAND | H14: Summer | I14: Non-coincident | J14: 2030 | K14: poe10 | L14: 161.01611 | M14: Lag | N14: 0.9658859469 | O14: 43.17072106
A15: VIC | B15: ATSBJ | C15: =VLOOKUP(AEMO_DATA_2024[[#This Row],[CP_NAME]],'2024 Lookup'!$A$3:$B$76,2,FALSE) -> ATS_BLTS | D15: =VLOOKUP(AEMO_DATA_2024[[#This Row],[CP_NAME]],'2024 Lookup'!$A$3:$C$76,3,FALSE) -> 66 kV | E15: Altona-Brooklyn (Jemena) 66 kV | F15: Jemena | G15: MAX_DEMAND | H15: Summer | I15: Non-coincident | J15: 2030 | K15: poe50 | L15: 142.24287 | M15: Lag | N15: 0.9654115706 | O15: 38.41582656
A16: VIC | B16: ATSBJ | C16: =VLOOKUP(AEMO_DATA_2024[[#This Row],[CP_NAME]],'2024 Lookup'!$A$3:$B$76,2,FALSE) -> ATS_BLTS | D16: =VLOOKUP(AEMO_DATA_2024[[#This Row],[CP_NAME]],'2024 Lookup'!$A$3:$C$76,3,FALSE) -> 66 kV | E16: Altona-Brooklyn (Jemena) 66 kV | F16: Jemena | G16: MAX_DEMAND | H16: Summer | I16: Non-coincident | J16: 2031 | K16: poe10 | L16: 165.09874 | M16: Lag | N16: 0.9656646216 | O16: 44.41637053
A17: VIC | B17: ATSBJ | C17: =VLOOKUP(AEMO_DATA_2024[[#This Row],[CP_NAME]],'2024 Lookup'!$A$3:$B$76,2,FALSE) -> ATS_BLTS | D17: =VLOOKUP(AEMO_DATA_2024[[#This Row],[CP_NAME]],'2024 Lookup'!$A$3:$C$76,3,FALSE) -> 66 kV | E17: Altona-Brooklyn (Jemena) 66 kV | F17: Jemena | G17: MAX_DEMAND | H17: Summer | I17: Non-coincident | J17: 2031 | K17: poe50 | L17: 146.04611 | M17: Lag | N17: 0.9651653856 | O17: 39.59071201
A18: VIC | B18: ATSBJ | C18: =VLOOKUP(AEMO_DATA_2024[[#This Row],[CP_NAME]],'2024 Lookup'!$A$3:$B$76,2,FALSE) -> ATS_BLTS | D18: =VLOOKUP(AEMO_DATA_2024[[#This Row],[CP_NAME]],'2024 Lookup'!$A$3:$C$76,3,FALSE) -> 66 kV | E18: Altona-Brooklyn (Jemena) 66 kV | F18: Jemena | G18: MAX_DEMAND | H18: Summer | I18: Non-coincident | J18: 2032 | K18: poe10 | L18: 169.48428 | M18: Lag | N18: 0.9654416949 | O18: 45.75195659
A19: VIC | B19: ATSBJ | C19: =VLOOKUP(AEMO_DATA_2024[[#This Row],[CP_NAME]],'2024 Lookup'!$A$3:$B$76,2,FALSE) -> ATS_BLTS | D19: =VLOOKUP(AEMO_DATA_2024[[#This Row],[CP_NAME]],'2024 Lookup'!$A$3:$C$76,3,FALSE) -> 66 kV | E19: Altona-Brooklyn (Jemena) 66 kV | F19: Jemena | G19: MAX_DEMAND | H19: Summer | I19: Non-coincident | J19: 2032 | K19: poe50 | L19: 149.78901 | M19: Lag | N19: 0.9649076062 | O19: 40.76352992
A20: VIC | B20: ATSBJ | C20: =VLOOKUP(AEMO_DATA_2024[[#This Row],[CP_NAME]],'2024 Lookup'!$A$3:$B$76,2,FALSE) -> ATS_BLTS | D20: =VLOOKUP(AEMO_DATA_2024[[#This Row],[CP_NAME]],'2024 Lookup'!$A$3:$C$76,3,FALSE) -> 66 kV | E20: Altona-Brooklyn (Jemena) 66 kV | F20: Jemena | G20: MAX_DEMAND | H20: Summer | I20: Non-coincident | J20: 2033 | K20: poe10 | L20: 173.4553 | M20: Lag | N20: 0.9652286273 | O20: 46.97587077
A21: VIC | B21: ATSBJ | C21: =VLOOKUP(AEMO_DATA_2024[[#This Row],[CP_NAME]],'2024 Lookup'!$A$3:$B$76,2,FALSE) -> ATS_BLTS | D21: =VLOOKUP(AEMO_DATA_2024[[#This Row],[CP_NAME]],'2024 Lookup'!$A$3:$C$76,3,FALSE) -> 66 kV | E21: Altona-Brooklyn (Jemena) 66 kV | F21: Jemena | G21: MAX_DEMAND | H21: Summer | I21: Non-coincident | J21: 2033 | K21: poe50 | L21: 153.37739 | M21: Lag | N21: 0.9646674332 | O21: 41.89052888
A22: VIC | B22: ATSBJ | C22: =VLOOKUP(AEMO_DATA_2024[[#This Row],[CP_NAME]],'2024 Lookup'!$A$3:$B$76,2,FALSE) -> ATS_BLTS | D22: =VLOOKUP(AEMO_DATA_2024[[#This Row],[CP_NAME]],'2024 Lookup'!$A$3:$C$76,3,FALSE) -> 66 kV | E22: Altona-Brooklyn (Jemena) 66 kV | F22: Jemena | G22: MAX_DEMAND | H22: Winter | I22: Non-coincident | J22: 2024 | K22: poe10 | L22: 121.38103 | M22: Lag | N22: NA | O22: NA
A23: VIC | B23: ATSBJ | C23: =VLOOKUP(AEMO_DATA_2024[[#This Row],[CP_NAME]],'2024 Lookup'!$A$3:$B$76,2,FALSE) -> ATS_BLTS | D23: =VLOOKUP(AEMO_DATA_2024[[#This Row],[CP_NAME]],'2024 Lookup'!$A$3:$C$76,3,FALSE) -> 66 kV | E23: Altona-Brooklyn (Jemena) 66 kV | F23: Jemena | G23: MAX_DEMAND | H23: Winter | I23: Non-coincident | J23: 2024 | K23: poe50 | L23: 118.25532 | M23: Lag | N23: NA | O23: NA
A24: VIC | B24: ATSBJ | C24: =VLOOKUP(AEMO_DATA_2024[[#This Row],[CP_NAME]],'2024 Lookup'!$A$3:$B$76,2,FALSE) -> ATS_BLTS | D24: =VLOOKUP(AEMO_DATA_2024[[#This Row],[CP_NAME]],'2024 Lookup'!$A$3:$C$76,3,FALSE) -> 66 kV | E24: Altona-Brooklyn (Jemena) 66 kV | F24: Jemena | G24: MAX_DEMAND | H24: Winter | I24: Non-coincident | J24: 2025 | K24: poe10 | L24: 122.48891 | M24: Lag | N24: NA | O24: NA
A25: VIC | B25: ATSBJ | C25: =VLOOKUP(AEMO_DATA_2024[[#This Row],[CP_NAME]],'2024 Lookup'!$A$3:$B$76,2,FALSE) -> ATS_BLTS | D25: =VLOOKUP(AEMO_DATA_2024[[#This Row],[CP_NAME]],'2024 Lookup'!$A$3:$C$76,3,FALSE) -> 66 kV | E25: Altona-Brooklyn (Jemena) 66 kV | F25: Jemena | G25: MAX_DEMAND | H25: Winter | I25: Non-coincident | J25: 2025 | K25: poe50 | L25: 119.33645 | M25: Lag | N25: NA | O25: NA
A26: VIC | B26: ATSBJ | C26: =VLOOKUP(AEMO_DATA_2024[[#This Row],[CP_NAME]],'2024 Lookup'!$A$3:$B$76,2,FALSE) -> ATS_BLTS | D26: =VLOOKUP(AEMO_DATA_2024[[#This Row],[CP_NAME]],'2024 Lookup'!$A$3:$C$76,3,FALSE) -> 66 kV | E26: Altona-Brooklyn (Jemena) 66 kV | F26: Jemena | G26: MAX_DEMAND | H26: Winter | I26: Non-coincident | J26: 2026 | K26: poe10 | L26: 124.39455 | M26: Lag | N26: NA | O26: NA
A27: VIC | B27: ATSBJ | C27: =VLOOKUP(AEMO_DATA_2024[[#This Row],[CP_NAME]],'2024 Lookup'!$A$3:$B$76,2,FALSE) -> ATS_BLTS | D27: =VLOOKUP(AEMO_DATA_2024[[#This Row],[CP_NAME]],'2024 Lookup'!$A$3:$C$76,3,FALSE) -> 66 kV | E27: Altona-Brooklyn (Jemena) 66 kV | F27: Jemena | G27: MAX_DEMAND | H27: Winter | I27: Non-coincident | J27: 2026 | K27: poe50 | L27: 120.59689 | M27: Lag | N27: NA | O27: NA
A28: VIC | B28: ATSBJ | C28: =VLOOKUP(AEMO_DATA_2024[[#This Row],[CP_NAME]],'2024 Lookup'!$A$3:$B$76,2,FALSE) -> ATS_BLTS | D28: =VLOOKUP(AEMO_DATA_2024[[#This Row],[CP_NAME]],'2024 Lookup'!$A$3:$C$76,3,FALSE) -> 66 kV | E28: Altona-Brooklyn (Jemena) 66 kV | F28: Jemena | G28: MAX_DEMAND | H28: Winter | I28: Non-coincident | J28: 2027 | K28: poe10 | L28: 129.08977 | M28: Lag | N28: NA | O28: NA
A29: VIC | B29: ATSBJ | C29: =VLOOKUP(AEMO_DATA_2024[[#This Row],[CP_NAME]],'2024 Lookup'!$A$3:$B$76,2,FALSE) -> ATS_BLTS | D29: =VLOOKUP(AEMO_DATA_2024[[#This Row],[CP_NAME]],'2024 Lookup'!$A$3:$C$76,3,FALSE) -> 66 kV | E29: Altona-Brooklyn (Jemena) 66 kV | F29: Jemena | G29: MAX_DEMAND | H29: Winter | I29: Non-coincident | J29: 2027 | K29: poe50 | L29: 125.22537 | M29: Lag | N29: NA | O29: NA
A30: VIC | B30: ATSBJ | C30: =VLOOKUP(AEMO_DATA_2024[[#This Row],[CP_NAME]],'2024 Lookup'!$A$3:$B$76,2,FALSE) -> ATS_BLTS | D30: =VLOOKUP(AEMO_DATA_2024[[#This Row],[CP_NAME]],'2024 Lookup'!$A$3:$C$76,3,FALSE) -> 66 kV | E30: Altona-Brooklyn (Jemena) 66 kV | F30: Jemena | G30: MAX_DEMAND | H30: Winter | I30: Non-coincident | J30: 2028 | K30: poe10 | L30: 134.52785 | M30: Lag | N30: NA | O30: NA
A31: VIC | B31: ATSBJ | C31: =VLOOKUP(AEMO_DATA_2024[[#This Row],[CP_NAME]],'2024 Lookup'!$A$3:$B$76,2,FALSE) -> ATS_BLTS | D31: =VLOOKUP(AEMO_DATA_2024[[#This Row],[CP_NAME]],'2024 Lookup'!$A$3:$C$76,3,FALSE) -> 66 kV | E31: Altona-Brooklyn (Jemena) 66 kV | F31: Jemena | G31: MAX_DEMAND | H31: Winter | I31: Non-coincident | J31: 2028 | K31: poe50 | L31: 130.58545 | M31: Lag | N31: NA | O31: NA
A32: VIC | B32: ATSBJ | C32: =VLOOKUP(AEMO_DATA_2024[[#This Row],[CP_NAME]],'2024 Lookup'!$A$3:$B$76,2,FALSE) -> ATS_BLTS | D32: =VLOOKUP(AEMO_DATA_2024[[#This Row],[CP_NAME]],'2024 Lookup'!$A$3:$C$76,3,FALSE) -> 66 kV | E32: Altona-Brooklyn (Jemena) 66 kV | F32: Jemena | G32: MAX_DEMAND | H32: Winter | I32: Non-coincident | J32: 2029 | K32: poe10 | L32: 140.22756 | M32: Lag | N32: NA | O32: NA
A33: VIC | B33: ATSBJ | C33: =VLOOKUP(AEMO_DATA_2024[[#This Row],[CP_NAME]],'2024 Lookup'!$A$3:$B$76,2,FALSE) -> ATS_BLTS | D33: =VLOOKUP(AEMO_DATA_2024[[#This Row],[CP_NAME]],'2024 Lookup'!$A$3:$C$76,3,FALSE) -> 66 kV | E33: Altona-Brooklyn (Jemena) 66 kV | F33: Jemena | G33: MAX_DEMAND | H33: Winter | I33: Non-coincident | J33: 2029 | K33: poe50 | L33: 136.21893 | M33: Lag | N33: NA | O33: NA
A34: VIC | B34: ATSBJ | C34: =VLOOKUP(AEMO_DATA_2024[[#This Row],[CP_NAME]],'2024 Lookup'!$A$3:$B$76,2,FALSE) -> ATS_BLTS | D34: =VLOOKUP(AEMO_DATA_2024[[#This Row],[CP_NAME]],'2024 Lookup'!$A$3:$C$76,3,FALSE) -> 66 kV | E34: Altona-Brooklyn (Jemena) 66 kV | F34: Jemena | G34: MAX_DEMAND | H34: Winter | I34: Non-coincident | J34: 2030 | K34: poe10 | L34: 145.57932 | M34: Lag | N34: NA | O34: NA
A35: VIC | B35: ATSBJ | C35: =VLOOKUP(AEMO_DATA_2024[[#This Row],[CP_NAME]],'2024 Lookup'!$A$3:$B$76,2,FALSE) -> ATS_BLTS | D35: =VLOOKUP(AEMO_DATA_2024[[#This Row],[CP_NAME]],'2024 Lookup'!$A$3:$C$76,3,FALSE) -> 66 kV | E35: Altona-Brooklyn (Jemena) 66 kV | F35: Jemena | G35: MAX_DEMAND | H35: Winter | I35: Non-coincident | J35: 2030 | K35: poe50 | L35: 141.45823 | M35: Lag | N35: NA | O35: NA
A36: VIC | B36: ATSBJ | C36: =VLOOKUP(AEMO_DATA_2024[[#This Row],[CP_NAME]],'2024 Lookup'!$A$3:$B$76,2,FALSE) -> ATS_BLTS | D36: =VLOOKUP(AEMO_DATA_2024[[#This Row],[CP_NAME]],'2024 Lookup'!$A$3:$C$76,3,FALSE) -> 66 kV | E36: Altona-Brooklyn (Jemena) 66 kV | F36: Jemena | G36: MAX_DEMAND | H36: Winter | I36: Non-coincident | J36: 2031 | K36: poe10 | L36: 150.79765 | M36: Lag | N36: NA | O36: NA
A37: VIC | B37: ATSBJ | C37: =VLOOKUP(AEMO_DATA_2024[[#This Row],[CP_NAME]],'2024 Lookup'!$A$3:$B$76,2,FALSE) -> ATS_BLTS | D37: =VLOOKUP(AEMO_DATA_2024[[#This Row],[CP_NAME]],'2024 Lookup'!$A$3:$C$76,3,FALSE) -> 66 kV | E37: Altona-Brooklyn (Jemena) 66 kV | F37: Jemena | G37: MAX_DEMAND | H37: Winter | I37: Non-coincident | J37: 2031 | K37: poe50 | L37: 146.54879 | M37: Lag | N37: NA | O37: NA
A38: VIC | B38: ATSBJ | C38: =VLOOKUP(AEMO_DATA_2024[[#This Row],[CP_NAME]],'2024 Lookup'!$A$3:$B$76,2,FALSE) -> ATS_BLTS | D38: =VLOOKUP(AEMO_DATA_2024[[#This Row],[CP_NAME]],'2024 Lookup'!$A$3:$C$76,3,FALSE) -> 66 kV | E38: Altona-Brooklyn (Jemena) 66 kV | F38: Jemena | G38: MAX_DEMAND | H38: Winter | I38: Non-coincident | J38: 2032 | K38: poe10 | L38: 156.40567 | M38: Lag | N38: NA | O38: NA
A39: VIC | B39: ATSBJ | C39: =VLOOKUP(AEMO_DATA_2024[[#This Row],[CP_NAME]],'2024 Lookup'!$A$3:$B$76,2,FALSE) -> ATS_BLTS | D39: =VLOOKUP(AEMO_DATA_2024[[#This Row],[CP_NAME]],'2024 Lookup'!$A$3:$C$76,3,FALSE) -> 66 kV | E39: Altona-Brooklyn (Jemena) 66 kV | F39: Jemena | G39: MAX_DEMAND | H39: Winter | I39: Non-coincident | J39: 2032 | K39: poe50 | L39: 151.95738 | M39: Lag | N39: NA | O39: NA
A40: VIC | B40: ATSBP | C40: =VLOOKUP(AEMO_DATA_2024[[#This Row],[CP_NAME]],'2024 Lookup'!$A$3:$B$76,2,FALSE) -> ATS_BLTS | D40: =VLOOKUP(AEMO_DATA_2024[[#This Row],[CP_NAME]],'2024 Lookup'!$A$3:$C$76,3,FALSE) -> 66 kV | E40: Altona-Brooklyn (Powercor) 66 kV | F40: Powercor | G40: MAX_DEMAND | H40: Summer | I40: Non-coincident | J40: 2024 | K40: poe10 | L40: 160.59339 | M40: Lag | N40: 0.9668165958 | O40: 42.43517229
A41: VIC | B41: ATSBP | C41: =VLOOKUP(AEMO_DATA_2024[[#This Row],[CP_NAME]],'2024 Lookup'!$A$3:$B$76,2,FALSE) -> ATS_BLTS | D41: =VLOOKUP(AEMO_DATA_2024[[#This Row],[CP_NAME]],'2024 Lookup'!$A$3:$C$76,3,FALSE) -> 66 kV | E41: Altona-Brooklyn (Powercor) 66 kV | F41: Powercor | G41: MAX_DEMAND | H41: Summer | I41: Non-coincident | J41: 2024 | K41: poe50 | L41: 153.37543 | M41: Lag | N41: 0.9666933373 | O41: 40.6070042
A42: VIC | B42: ATSBP | C42: =VLOOKUP(AEMO_DATA_2024[[#This Row],[CP_NAME]],'2024 Lookup'!$A$3:$B$76,2,FALSE) -> ATS_BLTS | D42: =VLOOKUP(AEMO_DATA_2024[[#This Row],[CP_NAME]],'2024 Lookup'!$A$3:$C$76,3,FALSE) -> 66 kV | E42: Altona-Brooklyn (Powercor) 66 kV | F42: Powercor | G42: MAX_DEMAND | H42: Summer | I42: Non-coincident | J42: 2025 | K42: poe10 | L42: 162.02825 | M42: Lag | N42: 0.966512295 | O42: 43.02039402
A43: VIC | B43: ATSBP | C43: =VLOOKUP(AEMO_DATA_2024[[#This Row],[CP_NAME]],'2024 Lookup'!$A$3:$B$76,2,FALSE) -> ATS_BLTS | D43: =VLOOKUP(AEMO_DATA_2024[[#This Row],[CP_NAME]],'2024 Lookup'!$A$3:$C$76,3,FALSE) -> 66 kV | E43: Altona-Brooklyn (Powercor) 66 kV | F43: Powercor | G43: MAX_DEMAND | H43: Summer | I43: Non-coincident | J43: 2025 | K43: poe50 | L43: 154.73161 | M43: Lag | N43: 0.966373907 | O43: 41.17229782
A44: VIC | B44: ATSBP | C44: =VLOOKUP(AEMO_DATA_2024[[#This Row],[CP_NAME]],'2024 Lookup'!$A$3:$B$76,2,FALSE) -> ATS_BLTS | D44: =VLOOKUP(AEMO_DATA_2024[[#This Row],[CP_NAME]],'2024 Lookup'!$A$3:$C$76,3,FALSE) -> 66 kV | E44: Altona-Brooklyn (Powercor) 66 kV | F44: Powercor | G44: MAX_DEMAND | H44: Summer | I44: Non-coincident | J44: 2026 | K44: poe10 | L44: 164.20539 | M44: Lag | N44: 0.9662804252 | O44: 43.75704639
A45: VIC | B45: ATSBP | C45: =VLOOKUP(AEMO_DATA_2024[[#This Row],[CP_NAME]],'2024 Lookup'!$A$3:$B$76,2,FALSE) -> ATS_BLTS | D45: =VLOOKUP(AEMO_DATA_2024[[#This Row],[CP_NAME]],'2024 Lookup'!$A$3:$C$76,3,FALSE) -> 66 kV | E45: Altona-Brooklyn (Powercor) 66 kV | F45: Powercor | G45: MAX_DEMAND | H45: Summer | I45: Non-coincident | J45: 2026 | K45: poe50 | L45: 156.83034 | M45: Lag | N45: 0.9661310812 | O45: 41.88909047
A46: VIC | B46: ATSBP | C46: =VLOOKUP(AEMO_DATA_2024[[#This Row],[CP_NAME]],'2024 Lookup'!$A$3:$B$76,2,FALSE) -> ATS_BLTS | D46: =VLOOKUP(AEMO_DATA_2024[[#This Row],[CP_NAME]],'2024 Lookup'!$A$3:$C$76,3,FALSE) -> 66 kV | E46: Altona-Brooklyn (Powercor) 66 kV | F46: Powercor | G46: MAX_DEMAND | H46: Summer | I46: Non-coincident | J46: 2027 | K46: poe10 | L46: 166.83445 | M46: Lag | N46: 0.9660890227 | O46: 44.59029331
A47: VIC | B47: ATSBP | C47: =VLOOKUP(AEMO_DATA_2024[[#This Row],[CP_NAME]],'2024 Lookup'!$A$3:$B$76,2,FALSE) -> ATS_BLTS | D47: =VLOOKUP(AEMO_DATA_2024[[#This Row],[CP_NAME]],'2024 Lookup'!$A$3:$C$76,3,FALSE) -> 66 kV | E47: Altona-Brooklyn (Powercor) 66 kV | F47: Powercor | G47: MAX_DEMAND | H47: Summer | I47: Non-coincident | J47: 2027 | K47: poe50 | L47: 159.38623 | M47: Lag | N47: 0.9659312906 | O47: 42.70380487
A48: VIC | B48: ATSBP | C48: =VLOOKUP(AEMO_DATA_2024[[#This Row],[CP_NAME]],'2024 Lookup'!$A$3:$B$76,2,FALSE) -> ATS_BLTS | D48: =VLOOKUP(AEMO_DATA_2024[[#This Row],[CP_NAME]],'2024 Lookup'!$A$3:$C$76,3,FALSE) -> 66 kV | E48: Altona-Brooklyn (Powercor) 66 kV | F48: Powercor | G48: MAX_DEMAND | H48: Summer | I48: Non-coincident | J48: 2028 | K48: poe10 | L48: 169.84327 | M48: Lag | N48: 0.9658795551 | O48: 45.54190206
A49: VIC | B49: ATSBP | C49: =VLOOKUP(AEMO_DATA_2024[[#This Row],[CP_NAME]],'2024 Lookup'!$A$3:$B$76,2,FALSE) -> ATS_BLTS | D49: =VLOOKUP(AEMO_DATA_2024[[#This Row],[CP_NAME]],'2024 Lookup'!$A$3:$C$76,3,FALSE) -> 66 kV | E49: Altona-Brooklyn (Powercor) 66 kV | F49: Powercor | G49: MAX_DEMAND | H49: Summer | I49: Non-coincident | J49: 2028 | K49: poe50 | L49: 162.32221 | M49: Lag | N49: 0.9657130201 | O49: 43.63696467
A50: VIC | B50: ATSBP | C50: =VLOOKUP(AEMO_DATA_2024[[#This Row],[CP_NAME]],'2024 Lookup'!$A$3:$B$76,2,FALSE) -> ATS_BLTS | D50: =VLOOKUP(AEMO_DATA_2024[[#This Row],[CP_NAME]],'2024 Lookup'!$A$3:$C$76,3,FALSE) -> 66 kV | E50: Altona-Brooklyn (Powercor) 66 kV | F50: Powercor | G50: MAX_DEMAND | H50: Summer | I50: Non-coincident | J50: 2029 | K50: poe10 | L50: 173.31062 | M50: Lag | N50: 0.9656959021 | O50: 46.60322322
A51: VIC | B51: ATSBP | C51: =VLOOKUP(AEMO_DATA_2024[[#This Row],[CP_NAME]],'2024 Lookup'!$A$3:$B$76,2,FALSE) -> ATS_BLTS | D51: =VLOOKUP(AEMO_DATA_2024[[#This Row],[CP_NAME]],'2024 Lookup'!$A$3:$C$76,3,FALSE) -> 66 kV | E51: Altona-Brooklyn (Powercor) 66 kV | F51: Powercor | G51: MAX_DEMAND | H51: Summer | I51: Non-coincident | J51: 2029 | K51: poe50 | L51: 165.71672 | M51: Lag | N51: 0.9655223862 | O51: 44.67983688
A52: VIC | B52: ATSBP | C52: =VLOOKUP(AEMO_DATA_2024[[#This Row],[CP_NAME]],'2024 Lookup'!$A$3:$B$76,2,FALSE) -> ATS_BLTS | D52: =VLOOKUP(AEMO_DATA_2024[[#This Row],[CP_NAME]],'2024 Lookup'!$A$3:$C$76,3,FALSE) -> 66 kV | E52: Altona-Brooklyn (Powercor) 66 kV | F52: Powercor | G52: MAX_DEMAND | H52: Summer | I52: Non-coincident | J52: 2030 | K52: poe10 | L52: 177.34595 | M52: Lag | N52: 0.9655515688 | O52: 47.79393042
A53: VIC | B53: ATSBP | C53: =VLOOKUP(AEMO_DATA_2024[[#This Row],[CP_NAME]],'2024 Lookup'!$A$3:$B$76,2,FALSE) -> ATS_BLTS | D53: =VLOOKUP(AEMO_DATA_2024[[#This Row],[CP_NAME]],'2024 Lookup'!$A$3:$C$76,3,FALSE) -> 66 kV | E53: Altona-Brooklyn (Powercor) 66 kV | F53: Powercor | G53: MAX_DEMAND | H53: Summer | I53: Non-coincident | J53: 2030 | K53: poe50 | L53: 169.67918 | M53: Lag | N53: 0.9653736387 | O53: 45.85208754
A54: VIC | B54: ATSBP | C54: =VLOOKUP(AEMO_DATA_2024[[#This Row],[CP_NAME]],'2024 Lookup'!$A$3:$B$76,2,FALSE) -> ATS_BLTS | D54: =VLOOKUP(AEMO_DATA_2024[[#This Row],[CP_NAME]],'2024 Lookup'!$A$3:$C$76,3,FALSE) -> 66 kV | E54: Altona-Brooklyn (Powercor) 66 kV | F54: Powercor | G54: MAX_DEMAND | H54: Summer | I54: Non-coincident | J54: 2031 | K54: poe10 | L54: 181.62404 | M54: Lag | N54: 0.965429263 | O54: 49.0383559
A55: VIC | B55: ATSBP | C55: =VLOOKUP(AEMO_DATA_2024[[#This Row],[CP_NAME]],'2024 Lookup'!$A$3:$B$76,2,FALSE) -> ATS_BLTS | D55: =VLOOKUP(AEMO_DATA_2024[[#This Row],[CP_NAME]],'2024 Lookup'!$A$3:$C$76,3,FALSE) -> 66 kV | E55: Altona-Brooklyn (Powercor) 66 kV | F55: Powercor | G55: MAX_DEMAND | H55: Summer | I55: Non-coincident | J55: 2031 | K55: poe50 | L55: 173.88439 | M55: Lag | N55: 0.9652482682 | O55: 47.07805394
A56: VIC | B56: ATSBP | C56: =VLOOKUP(AEMO_DATA_2024[[#This Row],[CP_NAME]],'2024 Lookup'!$A$3:$B$76,2,FALSE) -> ATS_BLTS | D56: =VLOOKUP(AEMO_DATA_2024[[#This Row],[CP_NAME]],'2024 Lookup'!$A$3:$C$76,3,FALSE) -> 66 kV | E56: Altona-Brooklyn (Powercor) 66 kV | F56: Powercor | G56: MAX_DEMAND | H56: Summer | I56: Non-coincident | J56: 2032 | K56: poe10 | L56: 185.79142 | M56: Lag | N56: 0.9653160206 | O56: 50.25008458
A57: VIC | B57: ATSBP | C57: =VLOOKUP(AEMO_DATA_2024[[#This Row],[CP_NAME]],'2024 Lookup'!$A$3:$B$76,2,FALSE) -> ATS_BLTS | D57: =VLOOKUP(AEMO_DATA_2024[[#This Row],[CP_NAME]],'2024 Lookup'!$A$3:$C$76,3,FALSE) -> 66 kV | E57: Altona-Brooklyn (Powercor) 66 kV | F57: Powercor | G57: MAX_DEMAND | H57: Summer | I57: Non-coincident | J57: 2032 | K57: poe50 | L57: 177.97843 | M57: Lag | N57: 0.9651322863 | O57: 48.27120702
A58: VIC | B58: ATSBP | C58: =VLOOKUP(AEMO_DATA_2024[[#This Row],[CP_NAME]],'2024 Lookup'!$A$3:$B$76,2,FALSE) -> ATS_BLTS | D58: =VLOOKUP(AEMO_DATA_2024[[#This Row],[CP_NAME]],'2024 Lookup'!$A$3:$C$76,3,FALSE) -> 66 kV | E58: Altona-Brooklyn (Powercor) 66 kV | F58: Powercor | G58: MAX_DEMAND | H58: Summer | I58: Non-coincident | J58: 2033 | K58: poe10 | L58: 189.93501 | M58: Lag | N58: 0.9652116938 | O58: 51.45217769
A59: VIC | B59: ATSBP | C59: =VLOOKUP(AEMO_DATA_2024[[#This Row],[CP_NAME]],'2024 Lookup'!$A$3:$B$76,2,FALSE) -> ATS_BLTS | D59: =VLOOKUP(AEMO_DATA_2024[[#This Row],[CP_NAME]],'2024 Lookup'!$A$3:$C$76,3,FALSE) -> 66 kV | E59: Altona-Brooklyn (Powercor) 66 kV | F59: Powercor | G59: MAX_DEMAND | H59: Summer | I59: Non-coincident | J59: 2033 | K59: poe50 | L59: 182.05233 | M59: Lag | N59: 0.9650257137 | O59: 49.45564902
A60: VIC | B60: ATSBP | C60: =VLOOKUP(AEMO_DATA_2024[[#This Row],[CP_NAME]],'2024 Lookup'!$A$3:$B$76,2,FALSE) -> ATS_BLTS | D60: =VLOOKUP(AEMO_DATA_2024[[#This Row],[CP_NAME]],'2024 Lookup'!$A$3:$C$76,3,FALSE) -> 66 kV | E60: Altona-Brooklyn (Powercor) 66 kV | F60: Powercor | G60: MAX_DEMAND | H60: Winter | I60: Non-coincident | J60: 2024 | K60: poe10 | L60: 159.32687 | M60: Lag | N60: NA | O60: NA
A61: VIC | B61: ATSBP | C61: =VLOOKUP(AEMO_DATA_2024[[#This Row],[CP_NAME]],'2024 Lookup'!$A$3:$B$76,2,FALSE) -> ATS_BLTS | D61: =VLOOKUP(AEMO_DATA_2024[[#This Row],[CP_NAME]],'2024 Lookup'!$A$3:$C$76,3,FALSE) -> 66 kV | E61: Altona-Brooklyn (Powercor) 66 kV | F61: Powercor | G61: MAX_DEMAND | H61: Winter | I61: Non-coincident | J61: 2024 | K61: poe50 | L61: 151.1137 | M61: Lag | N61: NA | O61: NA
A62: VIC | B62: ATSBP | C62: =VLOOKUP(AEMO_DATA_2024[[#This Row],[CP_NAME]],'2024 Lookup'!$A$3:$B$76,2,FALSE) -> ATS_BLTS | D62: =VLOOKUP(AEMO_DATA_2024[[#This Row],[CP_NAME]],'2024 Lookup'!$A$3:$C$76,3,FALSE) -> 66 kV | E62: Altona-Brooklyn (Powercor) 66 kV | F62: Powercor | G62: MAX_DEMAND | H62: Winter | I62: Non-coincident | J62: 2025 | K62: poe10 | L62: 160.70622 | M62: Lag | N62: NA | O62: NA
A63: VIC | B63: ATSBP | C63: =VLOOKUP(AEMO_DATA_2024[[#This Row],[CP_NAME]],'2024 Lookup'!$A$3:$B$76,2,FALSE) -> ATS_BLTS | D63: =VLOOKUP(AEMO_DATA_2024[[#This Row],[CP_NAME]],'2024 Lookup'!$A$3:$C$76,3,FALSE) -> 66 kV | E63: Altona-Brooklyn (Powercor) 66 kV | F63: Powercor | G63: MAX_DEMAND | H63: Winter | I63: Non-coincident | J63: 2025 | K63: poe50 | L63: 152.40263 | M63: Lag | N63: NA | O63: NA
A64: VIC | B64: ATSBP | C64: =VLOOKUP(AEMO_DATA_2024[[#This Row],[CP_NAME]],'2024 Lookup'!$A$3:$B$76,2,FALSE) -> ATS_BLTS | D64: =VLOOKUP(AEMO_DATA_2024[[#This Row],[CP_NAME]],'2024 Lookup'!$A$3:$C$76,3,FALSE) -> 66 kV | E64: Altona-Brooklyn (Powercor) 66 kV | F64: Powercor | G64: MAX_DEMAND | H64: Winter | I64: Non-coincident | J64: 2026 | K64: poe10 | L64: 162.96987 | M64: Lag | N64: NA | O64: NA
A65: VIC | B65: ATSBP | C65: =VLOOKUP(AEMO_DATA_2024[[#This Row],[CP_NAME]],'2024 Lookup'!$A$3:$B$76,2,FALSE) -> ATS_BLTS | D65: =VLOOKUP(AEMO_DATA_2024[[#This Row],[CP_NAME]],'2024 Lookup'!$A$3:$C$76,3,FALSE) -> 66 kV | E65: Altona-Brooklyn (Powercor) 66 kV | F65: Powercor | G65: MAX_DEMAND | H65: Winter | I65: Non-coincident | J65: 2026 | K65: poe50 | L65: 154.57918 | M65: Lag | N65: NA | O65: NA
A66: VIC | B66: ATSBP | C66: =VLOOKUP(AEMO_DATA_2024[[#This Row],[CP_NAME]],'2024 Lookup'!$A$3:$B$76,2,FALSE) -> ATS_BLTS | D66: =VLOOKUP(AEMO_DATA_2024[[#This Row],[CP_NAME]],'2024 Lookup'!$A$3:$C$76,3,FALSE) -> 66 kV | E66: Altona-Brooklyn (Powercor) 66 kV | F66: Powercor | G66: MAX_DEMAND | H66: Winter | I66: Non-coincident | J66: 2027 | K66: poe10 | L66: 165.50432 | M66: Lag | N66: NA | O66: NA
A67: VIC | B67: ATSBP | C67: =VLOOKUP(AEMO_DATA_2024[[#This Row],[CP_NAME]],'2024 Lookup'!$A$3:$B$76,2,FALSE) -> ATS_BLTS | D67: =VLOOKUP(AEMO_DATA_2024[[#This Row],[CP_NAME]],'2024 Lookup'!$A$3:$C$76,3,FALSE) -> 66 kV | E67: Altona-Brooklyn (Powercor) 66 kV | F67: Powercor | G67: MAX_DEMAND | H67: Winter | I67: Non-coincident | J67: 2027 | K67: poe50 | L67: 157.02992 | M67: Lag | N67: NA | O67: NA
A68: VIC | B68: ATSBP | C68: =VLOOKUP(AEMO_DATA_2024[[#This Row],[CP_NAME]],'2024 Lookup'!$A$3:$B$76,2,FALSE) -> ATS_BLTS | D68: =VLOOKUP(AEMO_DATA_2024[[#This Row],[CP_NAME]],'2024 Lookup'!$A$3:$C$76,3,FALSE) -> 66 kV | E68: Altona-Brooklyn (Powercor) 66 kV | F68: Powercor | G68: MAX_DEMAND | H68: Winter | I68: Non-coincident | J68: 2028 | K68: poe10 | L68: 168.43485 | M68: Lag | N68: NA | O68: NA
A69: VIC | B69: ATSBP | C69: =VLOOKUP(AEMO_DATA_2024[[#This Row],[CP_NAME]],'2024 Lookup'!$A$3:$B$76,2,FALSE) -> ATS_BLTS | D69: =VLOOKUP(AEMO_DATA_2024[[#This Row],[CP_NAME]],'2024 Lookup'!$A$3:$C$76,3,FALSE) -> 66 kV | E69: Altona-Brooklyn (Powercor) 66 kV | F69: Powercor | G69: MAX_DEMAND | H69: Winter | I69: Non-coincident | J69: 2028 | K69: poe50 | L69: 159.87675 | M69: Lag | N69: NA | O69: NA
A70: VIC | B70: ATSBP | C70: =VLOOKUP(AEMO_DATA_2024[[#This Row],[CP_NAME]],'2024 Lookup'!$A$3:$B$76,2,FALSE) -> ATS_BLTS | D70: =VLOOKUP(AEMO_DATA_2024[[#This Row],[CP_NAME]],'2024 Lookup'!$A$3:$C$76,3,FALSE) -> 66 kV | E70: Altona-Brooklyn (Powercor) 66 kV | F70: Powercor | G70: MAX_DEMAND | H70: Winter | I70: Non-coincident | J70: 2029 | K70: poe10 | L70: 171.90551 | M70: Lag | N70: NA | O70: NA
A71: VIC | B71: ATSBP | C71: =VLOOKUP(AEMO_DATA_2024[[#This Row],[CP_NAME]],'2024 Lookup'!$A$3:$B$76,2,FALSE) -> ATS_BLTS | D71: =VLOOKUP(AEMO_DATA_2024[[#This Row],[CP_NAME]],'2024 Lookup'!$A$3:$C$76,3,FALSE) -> 66 kV | E71: Altona-Brooklyn (Powercor) 66 kV | F71: Powercor | G71: MAX_DEMAND | H71: Winter | I71: Non-coincident | J71: 2029 | K71: poe50 | L71: 163.26369 | M71: Lag | N71: NA | O71: NA
A72: VIC | B72: ATSBP | C72: =VLOOKUP(AEMO_DATA_2024[[#This Row],[CP_NAME]],'2024 Lookup'!$A$3:$B$76,2,FALSE) -> ATS_BLTS | D72: =VLOOKUP(AEMO_DATA_2024[[#This Row],[CP_NAME]],'2024 Lookup'!$A$3:$C$76,3,FALSE) -> 66 kV | E72: Altona-Brooklyn (Powercor) 66 kV | F72: Powercor | G72: MAX_DEMAND | H72: Winter | I72: Non-coincident | J72: 2030 | K72: poe10 | L72: 175.93601 | M72: Lag | N72: NA | O72: NA
A73: VIC | B73: ATSBP | C73: =VLOOKUP(AEMO_DATA_2024[[#This Row],[CP_NAME]],'2024 Lookup'!$A$3:$B$76,2,FALSE) -> ATS_BLTS | D73: =VLOOKUP(AEMO_DATA_2024[[#This Row],[CP_NAME]],'2024 Lookup'!$A$3:$C$76,3,FALSE) -> 66 kV | E73: Altona-Brooklyn (Powercor) 66 kV | F73: Powercor | G73: MAX_DEMAND | H73: Winter | I73: Non-coincident | J73: 2030 | K73: poe50 | L73: 167.21046 | M73: Lag | N73: NA | O73: NA
A74: VIC | B74: ATSBP | C74: =VLOOKUP(AEMO_DATA_2024[[#This Row],[CP_NAME]],'2024 Lookup'!$A$3:$B$76,2,FALSE) -> ATS_BLTS | D74: =VLOOKUP(AEMO_DATA_2024[[#This Row],[CP_NAME]],'2024 Lookup'!$A$3:$C$76,3,FALSE) -> 66 kV | E74: Altona-Brooklyn (Powercor) 66 kV | F74: Powercor | G74: MAX_DEMAND | H74: Winter | I74: Non-coincident | J74: 2031 | K74: poe10 | L74: 179.93041 | M74: Lag | N74: NA | O74: NA
A75: VIC | B75: ATSBP | C75: =VLOOKUP(AEMO_DATA_2024[[#This Row],[CP_NAME]],'2024 Lookup'!$A$3:$B$76,2,FALSE) -> ATS_BLTS | D75: =VLOOKUP(AEMO_DATA_2024[[#This Row],[CP_NAME]],'2024 Lookup'!$A$3:$C$76,3,FALSE) -> 66 kV | E75: Altona-Brooklyn (Powercor) 66 kV | F75: Powercor | G75: MAX_DEMAND | H75: Winter | I75: Non-coincident | J75: 2031 | K75: poe50 | L75: 171.12085 | M75: Lag | N75: NA | O75: NA
A76: VIC | B76: ATSBP | C76: =VLOOKUP(AEMO_DATA_2024[[#This Row],[CP_NAME]],'2024 Lookup'!$A$3:$B$76,2,FALSE) -> ATS_BLTS | D76: =VLOOKUP(AEMO_DATA_2024[[#This Row],[CP_NAME]],'2024 Lookup'!$A$3:$C$76,3,FALSE) -> 66 kV | E76: Altona-Brooklyn (Powercor) 66 kV | F76: Powercor | G76: MAX_DEMAND | H76: Winter | I76: Non-coincident | J76: 2032 | K76: poe10 | L76: 183.88997 | M76: Lag | N76: NA | O76: NA
A77: VIC | B77: ATSBP | C77: =VLOOKUP(AEMO_DATA_2024[[#This Row],[CP_NAME]],'2024 Lookup'!$A$3:$B$76,2,FALSE) -> ATS_BLTS | D77: =VLOOKUP(AEMO_DATA_2024[[#This Row],[CP_NAME]],'2024 Lookup'!$A$3:$C$76,3,FALSE) -> 66 kV | E77: Altona-Brooklyn (Powercor) 66 kV | F77: Powercor | G77: MAX_DEMAND | H77: Winter | I77: Non-coincident | J77: 2032 | K77: poe50 | L77: 174.99612 | M77: Lag | N77: NA | O77: NA
A78: VIC | B78: ATSWP | C78: =VLOOKUP(AEMO_DATA_2024[[#This Row],[CP_NAME]],'2024 Lookup'!$A$3:$B$76,2,FALSE) -> ATS_West | D78: =VLOOKUP(AEMO_DATA_2024[[#This Row],[CP_NAME]],'2024 Lookup'!$A$3:$C$76,3,FALSE) -> 66 kV | E78: Altona West (Powercor) 66 kV | F78: Powercor | G78: MAX_DEMAND | H78: Summer | I78: Non-coincident | J78: 2024 | K78: poe10 | L78: 258.77974 | M78: Lag | N78: 0.9680064774 | O78: 67.08050144
A79: VIC | B79: ATSWP | C79: =VLOOKUP(AEMO_DATA_2024[[#This Row],[CP_NAME]],'2024 Lookup'!$A$3:$B$76,2,FALSE) -> ATS_West | D79: =VLOOKUP(AEMO_DATA_2024[[#This Row],[CP_NAME]],'2024 Lookup'!$A$3:$C$76,3,FALSE) -> 66 kV | E79: Altona West (Powercor) 66 kV | F79: Powercor | G79: MAX_DEMAND | H79: Summer | I79: Non-coincident | J79: 2024 | K79: poe50 | L79: 226.63581 | M79: Lag | N79: 0.9677108958 | O79: 59.0325502
A80: VIC | B80: ATSWP | C80: =VLOOKUP(AEMO_DATA_2024[[#This Row],[CP_NAME]],'2024 Lookup'!$A$3:$B$76,2,FALSE) -> ATS_West | D80: =VLOOKUP(AEMO_DATA_2024[[#This Row],[CP_NAME]],'2024 Lookup'!$A$3:$C$76,3,FALSE) -> 66 kV | E80: Altona West (Powercor) 66 kV | F80: Powercor | G80: MAX_DEMAND | H80: Summer | I80: Non-coincident | J80: 2025 | K80: poe10 | L80: 260.81508 | M80: Lag | N80: 0.9677622377 | O80: 67.87858523
A81: VIC | B81: ATSWP | C81: =VLOOKUP(AEMO_DATA_2024[[#This Row],[CP_NAME]],'2024 Lookup'!$A$3:$B$76,2,FALSE) -> ATS_West | D81: =VLOOKUP(AEMO_DATA_2024[[#This Row],[CP_NAME]],'2024 Lookup'!$A$3:$C$76,3,FALSE) -> 66 kV | E81: Altona West (Powercor) 66 kV | F81: Powercor | G81: MAX_DEMAND | H81: Summer | I81: Non-coincident | J81: 2025 | K81: poe50 | L81: 229.60519 | M81: Lag | N81: 0.9674446803 | O81: 60.06449178
A82: VIC | B82: ATSWP | C82: =VLOOKUP(AEMO_DATA_2024[[#This Row],[CP_NAME]],'2024 Lookup'!$A$3:$B$76,2,FALSE) -> ATS_West | D82: =VLOOKUP(AEMO_DATA_2024[[#This Row],[CP_NAME]],'2024 Lookup'!$A$3:$C$76,3,FALSE) -> 66 kV | E82: Altona West (Powercor) 66 kV | F82: Powercor | G82: MAX_DEMAND | H82: Summer | I82: Non-coincident | J82: 2026 | K82: poe10 | L82: 263.42771 | M82: Lag | N82: 0.9675693822 | O82: 68.77363486
A83: VIC | B83: ATSWP | C83: =VLOOKUP(AEMO_DATA_2024[[#This Row],[CP_NAME]],'2024 Lookup'!$A$3:$B$76,2,FALSE) -> ATS_West | D83: =VLOOKUP(AEMO_DATA_2024[[#This Row],[CP_NAME]],'2024 Lookup'!$A$3:$C$76,3,FALSE) -> 66 kV | E83: Altona West (Powercor) 66 kV | F83: Powercor | G83: MAX_DEMAND | H83: Summer | I83: Non-coincident | J83: 2026 | K83: poe50 | L83: 233.50203 | M83: Lag | N83: 0.9672444029 | O83: 61.28107209
A84: VIC | B84: ATSWP | C84: =VLOOKUP(AEMO_DATA_2024[[#This Row],[CP_NAME]],'2024 Lookup'!$A$3:$B$76,2,FALSE) -> ATS_West | D84: =VLOOKUP(AEMO_DATA_2024[[#This Row],[CP_NAME]],'2024 Lookup'!$A$3:$C$76,3,FALSE) -> 66 kV | E84: Altona West (Powercor) 66 kV | F84: Powercor | G84: MAX_DEMAND | H84: Summer | I84: Non-coincident | J84: 2027 | K84: poe10 | L84: 269.77826 | M84: Lag | N84: 0.9674380172 | O84: 70.5813158
A85: VIC | B85: ATSWP | C85: =VLOOKUP(AEMO_DATA_2024[[#This Row],[CP_NAME]],'2024 Lookup'!$A$3:$B$76,2,FALSE) -> ATS_West | D85: =VLOOKUP(AEMO_DATA_2024[[#This Row],[CP_NAME]],'2024 Lookup'!$A$3:$C$76,3,FALSE) -> 66 kV | E85: Altona West (Powercor) 66 kV | F85: Powercor | G85: MAX_DEMAND | H85: Summer | I85: Non-coincident | J85: 2027 | K85: poe50 | L85: 241.46778 | M85: Lag | N85: 0.967124789 | O85: 63.49315444
A86: VIC | B86: ATSWP | C86: =VLOOKUP(AEMO_DATA_2024[[#This Row],[CP_NAME]],'2024 Lookup'!$A$3:$B$76,2,FALSE) -> ATS_West | D86: =VLOOKUP(AEMO_DATA_2024[[#This Row],[CP_NAME]],'2024 Lookup'!$A$3:$C$76,3,FALSE) -> 66 kV | E86: Altona West (Powercor) 66 kV | F86: Powercor | G86: MAX_DEMAND | H86: Summer | I86: Non-coincident | J86: 2028 | K86: poe10 | L86: 277.55874 | M86: Lag | N86: 0.9673022311 | O86: 72.77585564
A87: VIC | B87: ATSWP | C87: =VLOOKUP(AEMO_DATA_2024[[#This Row],[CP_NAME]],'2024 Lookup'!$A$3:$B$76,2,FALSE) -> ATS_West | D87: =VLOOKUP(AEMO_DATA_2024[[#This Row],[CP_NAME]],'2024 Lookup'!$A$3:$C$76,3,FALSE) -> 66 kV | E87: Altona West (Powercor) 66 kV | F87: Powercor | G87: MAX_DEMAND | H87: Summer | I87: Non-coincident | J87: 2028 | K87: poe50 | L87: 249.25832 | M87: Lag | N87: 0.9669828933 | O87: 65.69021302
A88: VIC | B88: ATSWP | C88: =VLOOKUP(AEMO_DATA_2024[[#This Row],[CP_NAME]],'2024 Lookup'!$A$3:$B$76,2,FALSE) -> ATS_West | D88: =VLOOKUP(AEMO_DATA_2024[[#This Row],[CP_NAME]],'2024 Lookup'!$A$3:$C$76,3,FALSE) -> 66 kV | E88: Altona West (Powercor) 66 kV | F88: Powercor | G88: MAX_DEMAND | H88: Summer | I88: Non-coincident | J88: 2029 | K88: poe10 | L88: 287.90899 | M88: Lag | N88: 0.9672067646 | O88: 75.6054389
A89: VIC | B89: ATSWP | C89: =VLOOKUP(AEMO_DATA_2024[[#This Row],[CP_NAME]],'2024 Lookup'!$A$3:$B$76,2,FALSE) -> ATS_West | D89: =VLOOKUP(AEMO_DATA_2024[[#This Row],[CP_NAME]],'2024 Lookup'!$A$3:$C$76,3,FALSE) -> 66 kV | E89: Altona West (Powercor) 66 kV | F89: Powercor | G89: MAX_DEMAND | H89: Summer | I89: Non-coincident | J89: 2029 | K89: poe50 | L89: 258.41012 | M89: Lag | N89: 0.9668743423 | O89: 68.21973755
A90: VIC | B90: ATSWP | C90: =VLOOKUP(AEMO_DATA_2024[[#This Row],[CP_NAME]],'2024 Lookup'!$A$3:$B$76,2,FALSE) -> ATS_West | D90: =VLOOKUP(AEMO_DATA_2024[[#This Row],[CP_NAME]],'2024 Lookup'!$A$3:$C$76,3,FALSE) -> 66 kV | E90: Altona West (Powercor) 66 kV | F90: Powercor | G90: MAX_DEMAND | H90: Summer | I90: Non-coincident | J90: 2030 | K90: poe10 | L90: 298.12966 | M90: Lag | N90: 0.967131533 | O90: 78.3837552
A91: VIC | B91: ATSWP | C91: =VLOOKUP(AEMO_DATA_2024[[#This Row],[CP_NAME]],'2024 Lookup'!$A$3:$B$76,2,FALSE) -> ATS_West | D91: =VLOOKUP(AEMO_DATA_2024[[#This Row],[CP_NAME]],'2024 Lookup'!$A$3:$C$76,3,FALSE) -> 66 kV | E91: Altona West (Powercor) 66 kV | F91: Powercor | G91: MAX_DEMAND | H91: Summer | I91: Non-coincident | J91: 2030 | K91: poe50 | L91: 268.35804 | M91: Lag | N91: 0.9667997953 | O91: 70.92976479
A92: VIC | B92: ATSWP | C92: =VLOOKUP(AEMO_DATA_2024[[#This Row],[CP_NAME]],'2024 Lookup'!$A$3:$B$76,2,FALSE) -> ATS_West | D92: =VLOOKUP(AEMO_DATA_2024[[#This Row],[CP_NAME]],'2024 Lookup'!$A$3:$C$76,3,FALSE) -> 66 kV | E92: Altona West (Powercor) 66 kV | F92: Powercor | G92: MAX_DEMAND | H92: Summer | I92: Non-coincident | J92: 2031 | K92: poe10 | L92: 308.00935 | M92: Lag | N92: 0.9670656475 | O92: 81.06659574
A93: VIC | B93: ATSWP | C93: =VLOOKUP(AEMO_DATA_2024[[#This Row],[CP_NAME]],'2024 Lookup'!$A$3:$B$76,2,FALSE) -> ATS_West | D93: =VLOOKUP(AEMO_DATA_2024[[#This Row],[CP_NAME]],'2024 Lookup'!$A$3:$C$76,3,FALSE) -> 66 kV | E93: Altona West (Powercor) 66 kV | F93: Powercor | G93: MAX_DEMAND | H93: Summer | I93: Non-coincident | J93: 2031 | K93: poe50 | L93: 277.84422 | M93: Lag | N93: 0.9667335549 | O93: 73.51408131
A94: VIC | B94: ATSWP | C94: =VLOOKUP(AEMO_DATA_2024[[#This Row],[CP_NAME]],'2024 Lookup'!$A$3:$B$76,2,FALSE) -> ATS_West | D94: =VLOOKUP(AEMO_DATA_2024[[#This Row],[CP_NAME]],'2024 Lookup'!$A$3:$C$76,3,FALSE) -> 66 kV | E94: Altona West (Powercor) 66 kV | F94: Powercor | G94: MAX_DEMAND | H94: Summer | I94: Non-coincident | J94: 2032 | K94: poe10 | L94: 319.02894 | M94: Lag | N94: 0.967019463 | O94: 84.02877958
A95: VIC | B95: ATSWP | C95: =VLOOKUP(AEMO_DATA_2024[[#This Row],[CP_NAME]],'2024 Lookup'!$A$3:$B$76,2,FALSE) -> ATS_West | D95: =VLOOKUP(AEMO_DATA_2024[[#This Row],[CP_NAME]],'2024 Lookup'!$A$3:$C$76,3,FALSE) -> 66 kV | E95: Altona West (Powercor) 66 kV | F95: Powercor | G95: MAX_DEMAND | H95: Summer | I95: Non-coincident | J95: 2032 | K95: poe50 | L95: 287.77469 | M95: Lag | N95: 0.966682018 | O95: 76.20357961
A96: VIC | B96: ATSWP | C96: =VLOOKUP(AEMO_DATA_2024[[#This Row],[CP_NAME]],'2024 Lookup'!$A$3:$B$76,2,FALSE) -> ATS_West | D96: =VLOOKUP(AEMO_DATA_2024[[#This Row],[CP_NAME]],'2024 Lookup'!$A$3:$C$76,3,FALSE) -> 66 kV | E96: Altona West (Powercor) 66 kV | F96: Powercor | G96: MAX_DEMAND | H96: Summer | I96: Non-coincident | J96: 2033 | K96: poe10 | L96: 329.2551 | M96: Lag | N96: 0.966972157 | O96: 86.78761499
A97: VIC | B97: ATSWP | C97: =VLOOKUP(AEMO_DATA_2024[[#This Row],[CP_NAME]],'2024 Lookup'!$A$3:$B$76,2,FALSE) -> ATS_West | D97: =VLOOKUP(AEMO_DATA_2024[[#This Row],[CP_NAME]],'2024 Lookup'!$A$3:$C$76,3,FALSE) -> 66 kV | E97: Altona West (Powercor) 66 kV | F97: Powercor | G97: MAX_DEMAND | H97: Summer | I97: Non-coincident | J97: 2033 | K97: poe50 | L97: 297.39064 | M97: Lag | N97: 0.9666339642 | O97: 78.80963532
A98: VIC | B98: ATSWP | C98: =VLOOKUP(AEMO_DATA_2024[[#This Row],[CP_NAME]],'2024 Lookup'!$A$3:$B$76,2,FALSE) -> ATS_West | D98: =VLOOKUP(AEMO_DATA_2024[[#This Row],[CP_NAME]],'2024 Lookup'!$A$3:$C$76,3,FALSE) -> 66 kV | E98: Altona West (Powercor) 66 kV | F98: Powercor | G98: MAX_DEMAND | H98: Winter | I98: Non-coincident | J98: 2024 | K98: poe10 | L98: 168.37507 | M98: Lag | N98: NA | O98: NA
A99: VIC | B99: ATSWP | C99: =VLOOKUP(AEMO_DATA_2024[[#This Row],[CP_NAME]],'2024 Lookup'!$A$3:$B$76,2,FALSE) -> ATS_West | D99: =VLOOKUP(AEMO_DATA_2024[[#This Row],[CP_NAME]],'2024 Lookup'!$A$3:$C$76,3,FALSE) -> 66 kV | E99: Altona West (Powercor) 66 kV | F99: Powercor | G99: MAX_DEMAND | H99: Winter | I99: Non-coincident | J99: 2024 | K99: poe50 | L99: 165.3187 | M99: Lag | N99: NA | O99: NA
A100: VIC | B100: ATSWP | C100: =VLOOKUP(AEMO_DATA_2024[[#This Row],[CP_NAME]],'2024 Lookup'!$A$3:$B$76,2,FALSE) -> ATS_West | D100: =VLOOKUP(AEMO_DATA_2024[[#This Row],[CP_NAME]],'2024 Lookup'!$A$3:$C$76,3,FALSE) -> 66 kV | E100: Altona West (Powercor) 66 kV | F100: Powercor | G100: MAX_DEMAND | H100: Winter | I100: Non-coincident | J100: 2025 | K100: poe10 | L100: 170.4429 | M100: Lag | N100: NA | O100: NA
A101: VIC | B101: ATSWP | C101: =VLOOKUP(AEMO_DATA_2024[[#This Row],[CP_NAME]],'2024 Lookup'!$A$3:$B$76,2,FALSE) -> ATS_West | D101: =VLOOKUP(AEMO_DATA_2024[[#This Row],[CP_NAME]],'2024 Lookup'!$A$3:$C$76,3,FALSE) -> 66 kV | E101: Altona West (Powercor) 66 kV | F101: Powercor | G101: MAX_DEMAND | H101: Winter | I101: Non-coincident | J101: 2025 | K101: poe50 | L101: 167.35296 | M101: Lag | N101: NA | O101: NA
A102: VIC | B102: ATSWP | C102: =VLOOKUP(AEMO_DATA_2024[[#This Row],[CP_NAME]],'2024 Lookup'!$A$3:$B$76,2,FALSE) -> ATS_West | D102: =VLOOKUP(AEMO_DATA_2024[[#This Row],[CP_NAME]],'2024 Lookup'!$A$3:$C$76,3,FALSE) -> 66 kV | E102: Altona West (Powercor) 66 kV | F102: Powercor | G102: MAX_DEMAND | H102: Winter | I102: Non-coincident | J102: 2026 | K102: poe10 | L102: 172.91164 | M102: Lag | N102: NA | O102: NA
A103: VIC | B103: ATSWP | C103: =VLOOKUP(AEMO_DATA_2024[[#This Row],[CP_NAME]],'2024 Lookup'!$A$3:$B$76,2,FALSE) -> ATS_West | D103: =VLOOKUP(AEMO_DATA_2024[[#This Row],[CP_NAME]],'2024 Lookup'!$A$3:$C$76,3,FALSE) -> 66 kV | E103: Altona West (Powercor) 66 kV | F103: Powercor | G103: MAX_DEMAND | H103: Winter | I103: Non-coincident | J103: 2026 | K103: poe50 | L103: 169.78935 | M103: Lag | N103: NA | O103: NA
A104: VIC | B104: ATSWP | C104: =VLOOKUP(AEMO_DATA_2024[[#This Row],[CP_NAME]],'2024 Lookup'!$A$3:$B$76,2,FALSE) -> ATS_West | D104: =VLOOKUP(AEMO_DATA_2024[[#This Row],[CP_NAME]],'2024 Lookup'!$A$3:$C$76,3,FALSE) -> 66 kV | E104: Altona West (Powercor) 66 kV | F104: Powercor | G104: MAX_DEMAND | H104: Winter | I104: Non-coincident | J104: 2027 | K104: poe10 | L104: 180.21518 | M104: Lag | N104: NA | O104: NA
A105: VIC | B105: ATSWP | C105: =VLOOKUP(AEMO_DATA_2024[[#This Row],[CP_NAME]],'2024 Lookup'!$A$3:$B$76,2,FALSE) -> ATS_West | D105: =VLOOKUP(AEMO_DATA_2024[[#This Row],[CP_NAME]],'2024 Lookup'!$A$3:$C$76,3,FALSE) -> 66 kV | E105: Altona West (Powercor) 66 kV | F105: Powercor | G105: MAX_DEMAND | H105: Winter | I105: Non-coincident | J105: 2027 | K105: poe50 | L105: 176.19374 | M105: Lag | N105: NA | O105: NA
A106: VIC | B106: ATSWP | C106: =VLOOKUP(AEMO_DATA_2024[[#This Row],[CP_NAME]],'2024 Lookup'!$A$3:$B$76,2,FALSE) -> ATS_West | D106: =VLOOKUP(AEMO_DATA_2024[[#This Row],[CP_NAME]],'2024 Lookup'!$A$3:$C$76,3,FALSE) -> 66 kV | E106: Altona West (Powercor) 66 kV | F106: Powercor | G106: MAX_DEMAND | H106: Winter | I106: Non-coincident | J106: 2028 | K106: poe10 | L106: 188.90683 | M106: Lag | N106: NA | O106: NA
A107: VIC | B107: ATSWP | C107: =VLOOKUP(AEMO_DATA_2024[[#This Row],[CP_NAME]],'2024 Lookup'!$A$3:$B$76,2,FALSE) -> ATS_West | D107: =VLOOKUP(AEMO_DATA_2024[[#This Row],[CP_NAME]],'2024 Lookup'!$A$3:$C$76,3,FALSE) -> 66 kV | E107: Altona West (Powercor) 66 kV | F107: Powercor | G107: MAX_DEMAND | H107: Winter | I107: Non-coincident | J107: 2028 | K107: poe50 | L107: 184.81824 | M107: Lag | N107: NA | O107: NA
A108: VIC | B108: ATSWP | C108: =VLOOKUP(AEMO_DATA_2024[[#This Row],[CP_NAME]],'2024 Lookup'!$A$3:$B$76,2,FALSE) -> ATS_West | D108: =VLOOKUP(AEMO_DATA_2024[[#This Row],[CP_NAME]],'2024 Lookup'!$A$3:$C$76,3,FALSE) -> 66 kV | E108: Altona West (Powercor) 66 kV | F108: Powercor | G108: MAX_DEMAND | H108: Winter | I108: Non-coincident | J108: 2029 | K108: poe10 | L108: 198.23864 | M108: Lag | N108: NA | O108: NA
A109: VIC | B109: ATSWP | C109: =VLOOKUP(AEMO_DATA_2024[[#This Row],[CP_NAME]],'2024 Lookup'!$A$3:$B$76,2,FALSE) -> ATS_West | D109: =VLOOKUP(AEMO_DATA_2024[[#This Row],[CP_NAME]],'2024 Lookup'!$A$3:$C$76,3,FALSE) -> 66 kV | E109: Altona West (Powercor) 66 kV | F109: Powercor | G109: MAX_DEMAND | H109: Winter | I109: Non-coincident | J109: 2029 | K109: poe50 | L109: 194.10024 | M109: Lag | N109: NA | O109: NA
A110: VIC | B110: ATSWP | C110: =VLOOKUP(AEMO_DATA_2024[[#This Row],[CP_NAME]],'2024 Lookup'!$A$3:$B$76,2,FALSE) -> ATS_West | D110: =VLOOKUP(AEMO_DATA_2024[[#This Row],[CP_NAME]],'2024 Lookup'!$A$3:$C$76,3,FALSE) -> 66 kV | E110: Altona West (Powercor) 66 kV | F110: Powercor | G110: MAX_DEMAND | H110: Winter | I110: Non-coincident | J110: 2030 | K110: poe10 | L110: 207.21673 | M110: Lag | N110: NA | O110: NA
A111: VIC | B111: ATSWP | C111: =VLOOKUP(AEMO_DATA_2024[[#This Row],[CP_NAME]],'2024 Lookup'!$A$3:$B$76,2,FALSE) -> ATS_West | D111: =VLOOKUP(AEMO_DATA_2024[[#This Row],[CP_NAME]],'2024 Lookup'!$A$3:$C$76,3,FALSE) -> 66 kV | E111: Altona West (Powercor) 66 kV | F111: Powercor | G111: MAX_DEMAND | H111: Winter | I111: Non-coincident | J111: 2030 | K111: poe50 | L111: 202.95752 | M111: Lag | N111: NA | O111: NA
A112: VIC | B112: ATSWP | C112: =VLOOKUP(AEMO_DATA_2024[[#This Row],[CP_NAME]],'2024 Lookup'!$A$3:$B$76,2,FALSE) -> ATS_West | D112: =VLOOKUP(AEMO_DATA_2024[[#This Row],[CP_NAME]],'2024 Lookup'!$A$3:$C$76,3,FALSE) -> 66 kV | E112: Altona West (Powercor) 66 kV | F112: Powercor | G112: MAX_DEMAND | H112: Winter | I112: Non-coincident | J112: 2031 | K112: poe10 | L112: 216.21462 | M112: Lag | N112: NA | O112: NA
A113: VIC | B113: ATSWP | C113: =VLOOKUP(AEMO_DATA_2024[[#This Row],[CP_NAME]],'2024 Lookup'!$A$3:$B$76,2,FALSE) -> ATS_West | D113: =VLOOKUP(AEMO_DATA_2024[[#This Row],[CP_NAME]],'2024 Lookup'!$A$3:$C$76,3,FALSE) -> 66 kV | E113: Altona West (Powercor) 66 kV | F113: Powercor | G113: MAX_DEMAND | H113: Winter | I113: Non-coincident | J113: 2031 | K113: poe50 | L113: 211.80767 | M113: Lag | N113: NA | O113: NA
A114: VIC | B114: ATSWP | C114: =VLOOKUP(AEMO_DATA_2024[[#This Row],[CP_NAME]],'2024 Lookup'!$A$3:$B$76,2,FALSE) -> ATS_West | D114: =VLOOKUP(AEMO_DATA_2024[[#This Row],[CP_NAME]],'2024 Lookup'!$A$3:$C$76,3,FALSE) -> 66 kV | E114: Altona West (Powercor) 66 kV | F114: Powercor | G114: MAX_DEMAND | H114: Winter | I114: Non-coincident | J114: 2032 | K114: poe10 | L114: 225.99623 | M114: Lag | N114: NA | O114: NA
A115: VIC | B115: ATSWP | C115: =VLOOKUP(AEMO_DATA_2024[[#This Row],[CP_NAME]],'2024 Lookup'!$A$3:$B$76,2,FALSE) -> ATS_West | D115: =VLOOKUP(AEMO_DATA_2024[[#This Row],[CP_NAME]],'2024 Lookup'!$A$3:$C$76,3,FALSE) -> 66 kV | E115: Altona West (Powercor) 66 kV | F115: Powercor | G115: MAX_DEMAND | H115: Winter | I115: Non-coincident | J115: 2032 | K115: poe50 | L115: 221.33789 | M115: Lag | N115: NA | O115: NA
A116: VIC | B116: BATS66C | C116: =VLOOKUP(AEMO_DATA_2024[[#This Row],[CP_NAME]],'2024 Lookup'!$A$3:$B$76,2,FALSE) -> BATS | D116: =VLOOKUP(AEMO_DATA_2024[[#This Row],[CP_NAME]],'2024 Lookup'!$A$3:$C$76,3,FALSE) -> 66 kV | E116: Ballarat (CitiPower) 66 kV | F116: Citipower | G116: MAX_DEMAND | H116: Summer | I116: Non-coincident | J116: 2024 | K116: poe10 | L116: 0.01243 | M116: Lag | N116: 0.9873796014 | O116: 0.001993718911
A117: VIC | B117: BATS66C | C117: =VLOOKUP(AEMO_DATA_2024[[#This Row],[CP_NAME]],'2024 Lookup'!$A$3:$B$76,2,FALSE) -> BATS | D117: =VLOOKUP(AEMO_DATA_2024[[#This Row],[CP_NAME]],'2024 Lookup'!$A$3:$C$76,3,FALSE) -> 66 kV | E117: Ballarat (CitiPower) 66 kV | F117: Citipower | G117: MAX_DEMAND | H117: Summer | I117: Non-coincident | J117: 2024 | K117: poe50 | L117: 0.01222 | M117: Lag | N117: 0.9873796014 | O117: 0.001960035808
A118: VIC | B118: BATS66C | C118: =VLOOKUP(AEMO_DATA_2024[[#This Row],[CP_NAME]],'2024 Lookup'!$A$3:$B$76,2,FALSE) -> BATS | D118: =VLOOKUP(AEMO_DATA_2024[[#This Row],[CP_NAME]],'2024 Lookup'!$A$3:$C$76,3,FALSE) -> 66 kV | E118: Ballarat (CitiPower) 66 kV | F118: Citipower | G118: MAX_DEMAND | H118: Summer | I118: Non-coincident | J118: 2025 | K118: poe10 | L118: 0.01251 | M118: Lag | N118: 0.9873796014 | O118: 0.002006550569
A119: VIC | B119: BATS66C | C119: =VLOOKUP(AEMO_DATA_2024[[#This Row],[CP_NAME]],'2024 Lookup'!$A$3:$B$76,2,FALSE) -> BATS | D119: =VLOOKUP(AEMO_DATA_2024[[#This Row],[CP_NAME]],'2024 Lookup'!$A$3:$C$76,3,FALSE) -> 66 kV | E119: Ballarat (CitiPower) 66 kV | F119: Citipower | G119: MAX_DEMAND | H119: Summer | I119: Non-coincident | J119: 2025 | K119: poe50 | L119: 0.0123 | M119: Lag | N119: 0.9873796014 | O119: 0.001972867466
A120: VIC | B120: BATS66C | C120: =VLOOKUP(AEMO_DATA_2024[[#This Row],[CP_NAME]],'2024 Lookup'!$A$3:$B$76,2,FALSE) -> BATS | D120: =VLOOKUP(AEMO_DATA_2024[[#This Row],[CP_NAME]],'2024 Lookup'!$A$3:$C$76,3,FALSE) -> 66 kV | E120: Ballarat (CitiPower) 66 kV | F120: Citipower | G120: MAX_DEMAND | H120: Summer | I120: Non-coincident | J120: 2026 | K120: poe10 | L120: 0.01268 | M120: Lag | N120: 0.9873796014 | O120: 0.002033817843
A121: VIC | B121: BATS66C | C121: =VLOOKUP(AEMO_DATA_2024[[#This Row],[CP_NAME]],'2024 Lookup'!$A$3:$B$76,2,FALSE) -> BATS | D121: =VLOOKUP(AEMO_DATA_2024[[#This Row],[CP_NAME]],'2024 Lookup'!$A$3:$C$76,3,FALSE) -> 66 kV | E121: Ballarat (CitiPower) 66 kV | F121: Citipower | G121: MAX_DEMAND | H121: Summer | I121: Non-coincident | J121: 2026 | K121: poe50 | L121: 0.01246 | M121: Lag | N121: 0.9873796014 | O121: 0.001998530783
A122: VIC | B122: BATS66C | C122: =VLOOKUP(AEMO_DATA_2024[[#This Row],[CP_NAME]],'2024 Lookup'!$A$3:$B$76,2,FALSE) -> BATS | D122: =VLOOKUP(AEMO_DATA_2024[[#This Row],[CP_NAME]],'2024 Lookup'!$A$3:$C$76,3,FALSE) -> 66 kV | E122: Ballarat (CitiPower) 66 kV | F122: Citipower | G122: MAX_DEMAND | H122: Summer | I122: Non-coincident | J122: 2027 | K122: poe10 | L122: 0.01337 | M122: Lag | N122: 0.9873796014 | O122: 0.002144490896
A123: VIC | B123: BATS66C | C123: =VLOOKUP(AEMO_DATA_2024[[#This Row],[CP_NAME]],'2024 Lookup'!$A$3:$B$76,2,FALSE) -> BATS | D123: =VLOOKUP(AEMO_DATA_2024[[#This Row],[CP_NAME]],'2024 Lookup'!$A$3:$C$76,3,FALSE) -> 66 kV | E123: Ballarat (CitiPower) 66 kV | F123: Citipower | G123: MAX_DEMAND | H123: Summer | I123: Non-coincident | J123: 2027 | K123: poe50 | L123: 0.01315 | M123: Lag | N123: 0.9873796014 | O123: 0.002109203836
A124: VIC | B124: BATS66C | C124: =VLOOKUP(AEMO_DATA_2024[[#This Row],[CP_NAME]],'2024 Lookup'!$A$3:$B$76,2,FALSE) -> BATS | D124: =VLOOKUP(AEMO_DATA_2024[[#This Row],[CP_NAME]],'2024 Lookup'!$A$3:$C$76,3,FALSE) -> 66 kV | E124: Ballarat (CitiPower) 66 kV | F124: Citipower | G124: MAX_DEMAND | H124: Summer | I124: Non-coincident | J124: 2028 | K124: poe10 | L124: 0.01375 | M124: Lag | N124: 0.9873796014 | O124: 0.002205441273
A125: VIC | B125: BATS66C | C125: =VLOOKUP(AEMO_DATA_2024[[#This Row],[CP_NAME]],'2024 Lookup'!$A$3:$B$76,2,FALSE) -> BATS | D125: =VLOOKUP(AEMO_DATA_2024[[#This Row],[CP_NAME]],'2024 Lookup'!$A$3:$C$76,3,FALSE) -> 66 kV | E125: Ballarat (CitiPower) 66 kV | F125: Citipower | G125: MAX_DEMAND | H125: Summer | I125: Non-coincident | J125: 2028 | K125: poe50 | L125: 0.01357 | M125: Lag | N125: 0.9873796014 | O125: 0.002176570042
A126: VIC | B126: BATS66C | C126: =VLOOKUP(AEMO_DATA_2024[[#This Row],[CP_NAME]],'2024 Lookup'!$A$3:$B$76,2,FALSE) -> BATS | D126: =VLOOKUP(AEMO_DATA_2024[[#This Row],[CP_NAME]],'2024 Lookup'!$A$3:$C$76,3,FALSE) -> 66 kV | E126: Ballarat (CitiPower) 66 kV | F126: Citipower | G126: MAX_DEMAND | H126: Summer | I126: Non-coincident | J126: 2029 | K126: poe10 | L126: 0.01426 | M126: Lag | N126: 0.9873796014 | O126: 0.002287243095
A127: VIC | B127: BATS66C | C127: =VLOOKUP(AEMO_DATA_2024[[#This Row],[CP_NAME]],'2024 Lookup'!$A$3:$B$76,2,FALSE) -> BATS | D127: =VLOOKUP(AEMO_DATA_2024[[#This Row],[CP_NAME]],'2024 Lookup'!$A$3:$C$76,3,FALSE) -> 66 kV | E127: Ballarat (CitiPower) 66 kV | F127: Citipower | G127: MAX_DEMAND | H127: Summer | I127: Non-coincident | J127: 2029 | K127: poe50 | L127: 0.01407 | M127: Lag | N127: 0.9873796014 | O127: 0.002256767906
A128: VIC | B128: BATS66C | C128: =VLOOKUP(AEMO_DATA_2024[[#This Row],[CP_NAME]],'2024 Lookup'!$A$3:$B$76,2,FALSE) -> BATS | D128: =VLOOKUP(AEMO_DATA_2024[[#This Row],[CP_NAME]],'2024 Lookup'!$A$3:$C$76,3,FALSE) -> 66 kV | E128: Ballarat (CitiPower) 66 kV | F128: Citipower | G128: MAX_DEMAND | H128: Summer | I128: Non-coincident | J128: 2030 | K128: poe10 | L128: 0.01495 | M128: Lag | N128: 0.9873796014 | O128: 0.002397916148
A129: VIC | B129: BATS66C | C129: =VLOOKUP(AEMO_DATA_2024[[#This Row],[CP_NAME]],'2024 Lookup'!$A$3:$B$76,2,FALSE) -> BATS | D129: =VLOOKUP(AEMO_DATA_2024[[#This Row],[CP_NAME]],'2024 Lookup'!$A$3:$C$76,3,FALSE) -> 66 kV | E129: Ballarat (CitiPower) 66 kV | F129: Citipower | G129: MAX_DEMAND | H129: Summer | I129: Non-coincident | J129: 2030 | K129: poe50 | L129: 0.01478 | M129: Lag | N129: 0.9873796014 | O129: 0.002370648874
A130: VIC | B130: BATS66C | C130: =VLOOKUP(AEMO_DATA_2024[[#This Row],[CP_NAME]],'2024 Lookup'!$A$3:$B$76,2,FALSE) -> BATS | D130: =VLOOKUP(AEMO_DATA_2024[[#This Row],[CP_NAME]],'2024 Lookup'!$A$3:$C$76,3,FALSE) -> 66 kV | E130: Ballarat (CitiPower) 66 kV | F130: Citipower | G130: MAX_DEMAND | H130: Summer | I130: Non-coincident | J130: 2031 | K130: poe10 | L130: 0.01546 | M130: Lag | N130: 0.9873796014 | O130: 0.002479717969
A131: VIC | B131: BATS66C | C131: =VLOOKUP(AEMO_DATA_2024[[#This Row],[CP_NAME]],'2024 Lookup'!$A$3:$B$76,2,FALSE) -> BATS | D131: =VLOOKUP(AEMO_DATA_2024[[#This Row],[CP_NAME]],'2024 Lookup'!$A$3:$C$76,3,FALSE) -> 66 kV | E131: Ballarat (CitiPower) 66 kV | F131: Citipower | G131: MAX_DEMAND | H131: Summer | I131: Non-coincident | J131: 2031 | K131: poe50 | L131: 0.01531 | M131: Lag | N131: 0.9873796014 | O131: 0.00245565861
A132: VIC | B132: BATS66C | C132: =VLOOKUP(AEMO_DATA_2024[[#This Row],[CP_NAME]],'2024 Lookup'!$A$3:$B$76,2,FALSE) -> BATS | D132: =VLOOKUP(AEMO_DATA_2024[[#This Row],[CP_NAME]],'2024 Lookup'!$A$3:$C$76,3,FALSE) -> 66 kV | E132: Ballarat (CitiPower) 66 kV | F132: Citipower | G132: MAX_DEMAND | H132: Summer | I132: Non-coincident | J132: 2032 | K132: poe10 | L132: 0.01603 | M132: Lag | N132: 0.9873796014 | O132: 0.002571143535
A133: VIC | B133: BATS66C | C133: =VLOOKUP(AEMO_DATA_2024[[#This Row],[CP_NAME]],'2024 Lookup'!$A$3:$B$76,2,FALSE) -> BATS | D133: =VLOOKUP(AEMO_DATA_2024[[#This Row],[CP_NAME]],'2024 Lookup'!$A$3:$C$76,3,FALSE) -> 66 kV | E133: Ballarat (CitiPower) 66 kV | F133: Citipower | G133: MAX_DEMAND | H133: Summer | I133: Non-coincident | J133: 2032 | K133: poe50 | L133: 0.01587 | M133: Lag | N133: 0.9873796014 | O133: 0.002545480218
A134: VIC | B134: BATS66C | C134: =VLOOKUP(AEMO_DATA_2024[[#This Row],[CP_NAME]],'2024 Lookup'!$A$3:$B$76,2,FALSE) -> BATS | D134: =VLOOKUP(AEMO_DATA_2024[[#This Row],[CP_NAME]],'2024 Lookup'!$A$3:$C$76,3,FALSE) -> 66 kV | E134: Ballarat (CitiPower) 66 kV | F134: Citipower | G134: MAX_DEMAND | H134: Summer | I134: Non-coincident | J134: 2033 | K134: poe10 | L134: 0.01673 | M134: Lag | N134: 0.9873796014 | O134: 0.002683420545
A135: VIC | B135: BATS66C | C135: =VLOOKUP(AEMO_DATA_2024[[#This Row],[CP_NAME]],'2024 Lookup'!$A$3:$B$76,2,FALSE) -> BATS | D135: =VLOOKUP(AEMO_DATA_2024[[#This Row],[CP_NAME]],'2024 Lookup'!$A$3:$C$76,3,FALSE) -> 66 kV | E135: Ballarat (CitiPower) 66 kV | F135: Citipower | G135: MAX_DEMAND | H135: Summer | I135: Non-coincident | J135: 2033 | K135: poe50 | L135: 0.01659 | M135: Lag | N135: 0.9873796014 | O135: 0.002660965143
A136: VIC | B136: BATS66C | C136: =VLOOKUP(AEMO_DATA_2024[[#This Row],[CP_NAME]],'2024 Lookup'!$A$3:$B$76,2,FALSE) -> BATS | D136: =VLOOKUP(AEMO_DATA_2024[[#This Row],[CP_NAME]],'2024 Lookup'!$A$3:$C$76,3,FALSE) -> 66 kV | E136: Ballarat (CitiPower) 66 kV | F136: Citipower | G136: MAX_DEMAND | H136: Winter | I136: Non-coincident | J136: 2024 | K136: poe10 | L136: 0.01231 | M136: Lag | N136: NA | O136: NA
A137: VIC | B137: BATS66C | C137: =VLOOKUP(AEMO_DATA_2024[[#This Row],[CP_NAME]],'2024 Lookup'!$A$3:$B$76,2,FALSE) -> BATS | D137: =VLOOKUP(AEMO_DATA_2024[[#This Row],[CP_NAME]],'2024 Lookup'!$A$3:$C$76,3,FALSE) -> 66 kV | E137: Ballarat (CitiPower) 66 kV | F137: Citipower | G137: MAX_DEMAND | H137: Winter | I137: Non-coincident | J137: 2024 | K137: poe50 | L137: 0.01146 | M137: Lag | N137: NA | O137: NA
A138: VIC | B138: BATS66C | C138: =VLOOKUP(AEMO_DATA_2024[[#This Row],[CP_NAME]],'2024 Lookup'!$A$3:$B$76,2,FALSE) -> BATS | D138: =VLOOKUP(AEMO_DATA_2024[[#This Row],[CP_NAME]],'2024 Lookup'!$A$3:$C$76,3,FALSE) -> 66 kV | E138: Ballarat (CitiPower) 66 kV | F138: Citipower | G138: MAX_DEMAND | H138: Winter | I138: Non-coincident | J138: 2025 | K138: poe10 | L138: 0.01233 | M138: Lag | N138: NA | O138: NA
A139: VIC | B139: BATS66C | C139: =VLOOKUP(AEMO_DATA_2024[[#This Row],[CP_NAME]],'2024 Lookup'!$A$3:$B$76,2,FALSE) -> BATS | D139: =VLOOKUP(AEMO_DATA_2024[[#This Row],[CP_NAME]],'2024 Lookup'!$A$3:$C$76,3,FALSE) -> 66 kV | E139: Ballarat (CitiPower) 66 kV | F139: Citipower | G139: MAX_DEMAND | H139: Winter | I139: Non-coincident | J139: 2025 | K139: poe50 | L139: 0.01147 | M139: Lag | N139: NA | O139: NA
A140: VIC | B140: BATS66C | C140: =VLOOKUP(AEMO_DATA_2024[[#This Row],[CP_NAME]],'2024 Lookup'!$A$3:$B$76,2,FALSE) -> BATS | D140: =VLOOKUP(AEMO_DATA_2024[[#This Row],[CP_NAME]],'2024 Lookup'!$A$3:$C$76,3,FALSE) -> 66 kV | E140: Ballarat (CitiPower) 66 kV | F140: Citipower | G140: MAX_DEMAND | H140: Winter | I140: Non-coincident | J140: 2026 | K140: poe10 | L140: 0.01282 | M140: Lag | N140: NA | O140: NA
A141: VIC | B141: BATS66C | C141: =VLOOKUP(AEMO_DATA_2024[[#This Row],[CP_NAME]],'2024 Lookup'!$A$3:$B$76,2,FALSE) -> BATS | D141: =VLOOKUP(AEMO_DATA_2024[[#This Row],[CP_NAME]],'2024 Lookup'!$A$3:$C$76,3,FALSE) -> 66 kV | E141: Ballarat (CitiPower) 66 kV | F141: Citipower | G141: MAX_DEMAND | H141: Winter | I141: Non-coincident | J141: 2026 | K141: poe50 | L141: 0.01188 | M141: Lag | N141: NA | O141: NA
A142: VIC | B142: BATS66C | C142: =VLOOKUP(AEMO_DATA_2024[[#This Row],[CP_NAME]],'2024 Lookup'!$A$3:$B$76,2,FALSE) -> BATS | D142: =VLOOKUP(AEMO_DATA_2024[[#This Row],[CP_NAME]],'2024 Lookup'!$A$3:$C$76,3,FALSE) -> 66 kV | E142: Ballarat (CitiPower) 66 kV | F142: Citipower | G142: MAX_DEMAND | H142: Winter | I142: Non-coincident | J142: 2027 | K142: poe10 | L142: 0.01348 | M142: Lag | N142: NA | O142: NA
A143: VIC | B143: BATS66C | C143: =VLOOKUP(AEMO_DATA_2024[[#This Row],[CP_NAME]],'2024 Lookup'!$A$3:$B$76,2,FALSE) -> BATS | D143: =VLOOKUP(AEMO_DATA_2024[[#This Row],[CP_NAME]],'2024 Lookup'!$A$3:$C$76,3,FALSE) -> 66 kV | E143: Ballarat (CitiPower) 66 kV | F143: Citipower | G143: MAX_DEMAND | H143: Winter | I143: Non-coincident | J143: 2027 | K143: poe50 | L143: 0.0125 | M143: Lag | N143: NA | O143: NA
A144: VIC | B144: BATS66C | C144: =VLOOKUP(AEMO_DATA_2024[[#This Row],[CP_NAME]],'2024 Lookup'!$A$3:$B$76,2,FALSE) -> BATS | D144: =VLOOKUP(AEMO_DATA_2024[[#This Row],[CP_NAME]],'2024 Lookup'!$A$3:$C$76,3,FALSE) -> 66 kV | E144: Ballarat (CitiPower) 66 kV | F144: Citipower | G144: MAX_DEMAND | H144: Winter | I144: Non-coincident | J144: 2028 | K144: poe10 | L144: 0.01401 | M144: Lag | N144: NA | O144: NA
A145: VIC | B145: BATS66C | C145: =VLOOKUP(AEMO_DATA_2024[[#This Row],[CP_NAME]],'2024 Lookup'!$A$3:$B$76,2,FALSE) -> BATS | D145: =VLOOKUP(AEMO_DATA_2024[[#This Row],[CP_NAME]],'2024 Lookup'!$A$3:$C$76,3,FALSE) -> 66 kV | E145: Ballarat (CitiPower) 66 kV | F145: Citipower | G145: MAX_DEMAND | H145: Winter | I145: Non-coincident | J145: 2028 | K145: poe50 | L145: 0.01301 | M145: Lag | N145: NA | O145: NA
A146: VIC | B146: BATS66C | C146: =VLOOKUP(AEMO_DATA_2024[[#This Row],[CP_NAME]],'2024 Lookup'!$A$3:$B$76,2,FALSE) -> BATS | D146: =VLOOKUP(AEMO_DATA_2024[[#This Row],[CP_NAME]],'2024 Lookup'!$A$3:$C$76,3,FALSE) -> 66 kV | E146: Ballarat (CitiPower) 66 kV | F146: Citipower | G146: MAX_DEMAND | H146: Winter | I146: Non-coincident | J146: 2029 | K146: poe10 | L146: 0.01471 | M146: Lag | N146: NA | O146: NA
A147: VIC | B147: BATS66C | C147: =VLOOKUP(AEMO_DATA_2024[[#This Row],[CP_NAME]],'2024 Lookup'!$A$3:$B$76,2,FALSE) -> BATS | D147: =VLOOKUP(AEMO_DATA_2024[[#This Row],[CP_NAME]],'2024 Lookup'!$A$3:$C$76,3,FALSE) -> 66 kV | E147: Ballarat (CitiPower) 66 kV | F147: Citipower | G147: MAX_DEMAND | H147: Winter | I147: Non-coincident | J147: 2029 | K147: poe50 | L147: 0.01368 | M147: Lag | N147: NA | O147: NA
A148: VIC | B148: BATS66C | C148: =VLOOKUP(AEMO_DATA_2024[[#This Row],[CP_NAME]],'2024 Lookup'!$A$3:$B$76,2,FALSE) -> BATS | D148: =VLOOKUP(AEMO_DATA_2024[[#This Row],[CP_NAME]],'2024 Lookup'!$A$3:$C$76,3,FALSE) -> 66 kV | E148: Ballarat (CitiPower) 66 kV | F148: Citipower | G148: MAX_DEMAND | H148: Winter | I148: Non-coincident | J148: 2030 | K148: poe10 | L148: 0.01539 | M148: Lag | N148: NA | O148: NA
A149: VIC | B149: BATS66C | C149: =VLOOKUP(AEMO_DATA_2024[[#This Row],[CP_NAME]],'2024 Lookup'!$A$3:$B$76,2,FALSE) -> BATS | D149: =VLOOKUP(AEMO_DATA_2024[[#This Row],[CP_NAME]],'2024 Lookup'!$A$3:$C$76,3,FALSE) -> 66 kV | E149: Ballarat (CitiPower) 66 kV | F149: Citipower | G149: MAX_DEMAND | H149: Winter | I149: Non-coincident | J149: 2030 | K149: poe50 | L149: 0.01433 | M149: Lag | N149: NA | O149: NA
A150: VIC | B150: BATS66C | C150: =VLOOKUP(AEMO_DATA_2024[[#This Row],[CP_NAME]],'2024 Lookup'!$A$3:$B$76,2,FALSE) -> BATS | D150: =VLOOKUP(AEMO_DATA_2024[[#This Row],[CP_NAME]],'2024 Lookup'!$A$3:$C$76,3,FALSE) -> 66 kV | E150: Ballarat (CitiPower) 66 kV | F150: Citipower | G150: MAX_DEMAND | H150: Winter | I150: Non-coincident | J150: 2031 | K150: poe10 | L150: 0.01594 | M150: Lag | N150: NA | O150: NA
A151: VIC | B151: BATS66C | C151: =VLOOKUP(AEMO_DATA_2024[[#This Row],[CP_NAME]],'2024 Lookup'!$A$3:$B$76,2,FALSE) -> BATS | D151: =VLOOKUP(AEMO_DATA_2024[[#This Row],[CP_NAME]],'2024 Lookup'!$A$3:$C$76,3,FALSE) -> 66 kV | E151: Ballarat (CitiPower) 66 kV | F151: Citipower | G151: MAX_DEMAND | H151: Winter | I151: Non-coincident | J151: 2031 | K151: poe50 | L151: 0.01485 | M151: Lag | N151: NA | O151: NA
A152: VIC | B152: BATS66C | C152: =VLOOKUP(AEMO_DATA_2024[[#This Row],[CP_NAME]],'2024 Lookup'!$A$3:$B$76,2,FALSE) -> BATS | D152: =VLOOKUP(AEMO_DATA_2024[[#This Row],[CP_NAME]],'2024 Lookup'!$A$3:$C$76,3,FALSE) -> 66 kV | E152: Ballarat (CitiPower) 66 kV | F152: Citipower | G152: MAX_DEMAND | H152: Winter | I152: Non-coincident | J152: 2032 | K152: poe10 | L152: 0.01668 | M152: Lag | N152: NA | O152: NA
A153: VIC | B153: BATS66C | C153: =VLOOKUP(AEMO_DATA_2024[[#This Row],[CP_NAME]],'2024 Lookup'!$A$3:$B$76,2,FALSE) -> BATS | D153: =VLOOKUP(AEMO_DATA_2024[[#This Row],[CP_NAME]],'2024 Lookup'!$A$3:$C$76,3,FALSE) -> 66 kV | E153: Ballarat (CitiPower) 66 kV | F153: Citipower | G153: MAX_DEMAND | H153: Winter | I153: Non-coincident | J153: 2032 | K153: poe50 | L153: 0.01555 | M153: Lag | N153: NA | O153: NA
A154: VIC | B154: BATS66P | C154: =VLOOKUP(AEMO_DATA_2024[[#This Row],[CP_NAME]],'2024 Lookup'!$A$3:$B$76,2,FALSE) -> BATS | D154: =VLOOKUP(AEMO_DATA_2024[[#This Row],[CP_NAME]],'2024 Lookup'!$A$3:$C$76,3,FALSE) -> 66 kV | E154: Ballarat (Powercor) 66 kV | F154: Powercor | G154: MAX_DEMAND | H154: Summer | I154: Non-coincident | J154: 2024 | K154: poe10 | L154: 204.12239 | M154: Lag | N154: 0.9863319781 | O154: 34.09936412
A155: VIC | B155: BATS66P | C155: =VLOOKUP(AEMO_DATA_2024[[#This Row],[CP_NAME]],'2024 Lookup'!$A$3:$B$76,2,FALSE) -> BATS | D155: =VLOOKUP(AEMO_DATA_2024[[#This Row],[CP_NAME]],'2024 Lookup'!$A$3:$C$76,3,FALSE) -> 66 kV | E155: Ballarat (Powercor) 66 kV | F155: Powercor | G155: MAX_DEMAND | H155: Summer | I155: Non-coincident | J155: 2024 | K155: poe50 | L155: 184.13731 | M155: Lag | N155: 0.9862159186 | O155: 30.89384264
A156: VIC | B156: BATS66P | C156: =VLOOKUP(AEMO_DATA_2024[[#This Row],[CP_NAME]],'2024 Lookup'!$A$3:$B$76,2,FALSE) -> BATS | D156: =VLOOKUP(AEMO_DATA_2024[[#This Row],[CP_NAME]],'2024 Lookup'!$A$3:$C$76,3,FALSE) -> 66 kV | E156: Ballarat (Powercor) 66 kV | F156: Powercor | G156: MAX_DEMAND | H156: Summer | I156: Non-coincident | J156: 2025 | K156: poe10 | L156: 204.21465 | M156: Lag | N156: 0.9861811804 | O156: 34.30639541
A157: VIC | B157: BATS66P | C157: =VLOOKUP(AEMO_DATA_2024[[#This Row],[CP_NAME]],'2024 Lookup'!$A$3:$B$76,2,FALSE) -> BATS | D157: =VLOOKUP(AEMO_DATA_2024[[#This Row],[CP_NAME]],'2024 Lookup'!$A$3:$C$76,3,FALSE) -> 66 kV | E157: Ballarat (Powercor) 66 kV | F157: Powercor | G157: MAX_DEMAND | H157: Summer | I157: Non-coincident | J157: 2025 | K157: poe50 | L157: 184.12488 | M157: Lag | N157: 0.9860473379 | O157: 31.0840821
A158: VIC | B158: BATS66P | C158: =VLOOKUP(AEMO_DATA_2024[[#This Row],[CP_NAME]],'2024 Lookup'!$A$3:$B$76,2,FALSE) -> BATS | D158: =VLOOKUP(AEMO_DATA_2024[[#This Row],[CP_NAME]],'2024 Lookup'!$A$3:$C$76,3,FALSE) -> 66 kV | E158: Ballarat (Powercor) 66 kV | F158: Powercor | G158: MAX_DEMAND | H158: Summer | I158: Non-coincident | J158: 2026 | K158: poe10 | L158: 204.72041 | M158: Lag | N158: 0.986044985 | O158: 34.56400889
A159: VIC | B159: BATS66P | C159: =VLOOKUP(AEMO_DATA_2024[[#This Row],[CP_NAME]],'2024 Lookup'!$A$3:$B$76,2,FALSE) -> BATS | D159: =VLOOKUP(AEMO_DATA_2024[[#This Row],[CP_NAME]],'2024 Lookup'!$A$3:$C$76,3,FALSE) -> 66 kV | E159: Ballarat (Powercor) 66 kV | F159: Powercor | G159: MAX_DEMAND | H159: Summer | I159: Non-coincident | J159: 2026 | K159: poe50 | L159: 184.52621 | M159: Lag | N159: 0.985895112 | O159: 31.32494546
A160: VIC | B160: BATS66P | C160: =VLOOKUP(AEMO_DATA_2024[[#This Row],[CP_NAME]],'2024 Lookup'!$A$3:$B$76,2,FALSE) -> BATS | D160: =VLOOKUP(AEMO_DATA_2024[[#This Row],[CP_NAME]],'2024 Lookup'!$A$3:$C$76,3,FALSE) -> 66 kV | E160: Ballarat (Powercor) 66 kV | F160: Powercor | G160: MAX_DEMAND | H160: Summer | I160: Non-coincident | J160: 2027 | K160: poe10 | L160: 205.5503 | M160: Lag | N160: 0.9859109329 | O160: 34.87397356
A161: VIC | B161: BATS66P | C161: =VLOOKUP(AEMO_DATA_2024[[#This Row],[CP_NAME]],'2024 Lookup'!$A$3:$B$76,2,FALSE) -> BATS | D161: =VLOOKUP(AEMO_DATA_2024[[#This Row],[CP_NAME]],'2024 Lookup'!$A$3:$C$76,3,FALSE) -> 66 kV | E161: Ballarat (Powercor) 66 kV | F161: Powercor | G161: MAX_DEMAND | H161: Summer | I161: Non-coincident | J161: 2027 | K161: poe50 | L161: 185.25261 | M161: Lag | N161: 0.9857454137 | O161: 31.61831078
A162: VIC | B162: BATS66P | C162: =VLOOKUP(AEMO_DATA_2024[[#This Row],[CP_NAME]],'2024 Lookup'!$A$3:$B$76,2,FALSE) -> BATS | D162: =VLOOKUP(AEMO_DATA_2024[[#This Row],[CP_NAME]],'2024 Lookup'!$A$3:$C$76,3,FALSE) -> 66 kV | E162: Ballarat (Powercor) 66 kV | F162: Powercor | G162: MAX_DEMAND | H162: Summer | I162: Non-coincident | J162: 2028 | K162: poe10 | L162: 206.47586 | M162: Lag | N162: 0.9857443131 | O162: 35.24201573
A163: VIC | B163: BATS66P | C163: =VLOOKUP(AEMO_DATA_2024[[#This Row],[CP_NAME]],'2024 Lookup'!$A$3:$B$76,2,FALSE) -> BATS | D163: =VLOOKUP(AEMO_DATA_2024[[#This Row],[CP_NAME]],'2024 Lookup'!$A$3:$C$76,3,FALSE) -> 66 kV | E163: Ballarat (Powercor) 66 kV | F163: Powercor | G163: MAX_DEMAND | H163: Summer | I163: Non-coincident | J163: 2028 | K163: poe50 | L163: 186.07469 | M163: Lag | N163: 0.9855593512 | O163: 31.9697552
A164: VIC | B164: BATS66P | C164: =VLOOKUP(AEMO_DATA_2024[[#This Row],[CP_NAME]],'2024 Lookup'!$A$3:$B$76,2,FALSE) -> BATS | D164: =VLOOKUP(AEMO_DATA_2024[[#This Row],[CP_NAME]],'2024 Lookup'!$A$3:$C$76,3,FALSE) -> 66 kV | E164: Ballarat (Powercor) 66 kV | F164: Powercor | G164: MAX_DEMAND | H164: Summer | I164: Non-coincident | J164: 2029 | K164: poe10 | L164: 207.85795 | M164: Lag | N164: 0.9855963229 | O164: 35.66561635
A165: VIC | B165: BATS66P | C165: =VLOOKUP(AEMO_DATA_2024[[#This Row],[CP_NAME]],'2024 Lookup'!$A$3:$B$76,2,FALSE) -> BATS | D165: =VLOOKUP(AEMO_DATA_2024[[#This Row],[CP_NAME]],'2024 Lookup'!$A$3:$C$76,3,FALSE) -> 66 kV | E165: Ballarat (Powercor) 66 kV | F165: Powercor | G165: MAX_DEMAND | H165: Summer | I165: Non-coincident | J165: 2029 | K165: poe50 | L165: 187.35333 | M165: Lag | N165: 0.9853944658 | O165: 32.37676288
A166: VIC | B166: BATS66P | C166: =VLOOKUP(AEMO_DATA_2024[[#This Row],[CP_NAME]],'2024 Lookup'!$A$3:$B$76,2,FALSE) -> BATS | D166: =VLOOKUP(AEMO_DATA_2024[[#This Row],[CP_NAME]],'2024 Lookup'!$A$3:$C$76,3,FALSE) -> 66 kV | E166: Ballarat (Powercor) 66 kV | F166: Powercor | G166: MAX_DEMAND | H166: Summer | I166: Non-coincident | J166: 2030 | K166: poe10 | L166: 209.69175 | M166: Lag | N166: 0.9854758058 | O166: 36.13380535
A167: VIC | B167: BATS66P | C167: =VLOOKUP(AEMO_DATA_2024[[#This Row],[CP_NAME]],'2024 Lookup'!$A$3:$B$76,2,FALSE) -> BATS | D167: =VLOOKUP(AEMO_DATA_2024[[#This Row],[CP_NAME]],'2024 Lookup'!$A$3:$C$76,3,FALSE) -> 66 kV | E167: Ballarat (Powercor) 66 kV | F167: Powercor | G167: MAX_DEMAND | H167: Summer | I167: Non-coincident | J167: 2030 | K167: poe50 | L167: 191.43414 | M167: Lag | N167: 0.9852877076 | O167: 33.20536268
A168: VIC | B168: BATS66P | C168: =VLOOKUP(AEMO_DATA_2024[[#This Row],[CP_NAME]],'2024 Lookup'!$A$3:$B$76,2,FALSE) -> BATS | D168: =VLOOKUP(AEMO_DATA_2024[[#This Row],[CP_NAME]],'2024 Lookup'!$A$3:$C$76,3,FALSE) -> 66 kV | E168: Ballarat (Powercor) 66 kV | F168: Powercor | G168: MAX_DEMAND | H168: Summer | I168: Non-coincident | J168: 2031 | K168: poe10 | L168: 211.49429 | M168: Lag | N168: 0.9853397724 | O168: 36.61848824
A169: VIC | B169: BATS66P | C169: =VLOOKUP(AEMO_DATA_2024[[#This Row],[CP_NAME]],'2024 Lookup'!$A$3:$B$76,2,FALSE) -> BATS | D169: =VLOOKUP(AEMO_DATA_2024[[#This Row],[CP_NAME]],'2024 Lookup'!$A$3:$C$76,3,FALSE) -> 66 kV | E169: Ballarat (Powercor) 66 kV | F169: Powercor | G169: MAX_DEMAND | H169: Summer | I169: Non-coincident | J169: 2031 | K169: poe50 | L169: 196.69657 | M169: Lag | N169: 0.9851805414 | O169: 34.24499715
A170: VIC | B170: BATS66P | C170: =VLOOKUP(AEMO_DATA_2024[[#This Row],[CP_NAME]],'2024 Lookup'!$A$3:$B$76,2,FALSE) -> BATS | D170: =VLOOKUP(AEMO_DATA_2024[[#This Row],[CP_NAME]],'2024 Lookup'!$A$3:$C$76,3,FALSE) -> 66 kV | E170: Ballarat (Powercor) 66 kV | F170: Powercor | G170: MAX_DEMAND | H170: Summer | I170: Non-coincident | J170: 2032 | K170: poe10 | L170: 216.04844 | M170: Lag | N170: 0.9852200166 | O170: 37.56290773
A171: VIC | B171: BATS66P | C171: =VLOOKUP(AEMO_DATA_2024[[#This Row],[CP_NAME]],'2024 Lookup'!$A$3:$B$76,2,FALSE) -> BATS | D171: =VLOOKUP(AEMO_DATA_2024[[#This Row],[CP_NAME]],'2024 Lookup'!$A$3:$C$76,3,FALSE) -> 66 kV | E171: Ballarat (Powercor) 66 kV | F171: Powercor | G171: MAX_DEMAND | H171: Summer | I171: Non-coincident | J171: 2032 | K171: poe50 | L171: 202.04854 | M171: Lag | N171: 0.9850644812 | O171: 35.31738356
A172: VIC | B172: BATS66P | C172: =VLOOKUP(AEMO_DATA_2024[[#This Row],[CP_NAME]],'2024 Lookup'!$A$3:$B$76,2,FALSE) -> BATS | D172: =VLOOKUP(AEMO_DATA_2024[[#This Row],[CP_NAME]],'2024 Lookup'!$A$3:$C$76,3,FALSE) -> 66 kV | E172: Ballarat (Powercor) 66 kV | F172: Powercor | G172: MAX_DEMAND | H172: Summer | I172: Non-coincident | J172: 2033 | K172: poe10 | L172: 221.43193 | M172: Lag | N172: 0.985124018 | O172: 38.62655552
A173: VIC | B173: BATS66P | C173: =VLOOKUP(AEMO_DATA_2024[[#This Row],[CP_NAME]],'2024 Lookup'!$A$3:$B$76,2,FALSE) -> BATS | D173: =VLOOKUP(AEMO_DATA_2024[[#This Row],[CP_NAME]],'2024 Lookup'!$A$3:$C$76,3,FALSE) -> 66 kV | E173: Ballarat (Powercor) 66 kV | F173: Powercor | G173: MAX_DEMAND | H173: Summer | I173: Non-coincident | J173: 2033 | K173: poe50 | L173: 207.24388 | M173: Lag | N173: 0.9849632708 | O173: 36.35085289
A174: VIC | B174: BATS66P | C174: =VLOOKUP(AEMO_DATA_2024[[#This Row],[CP_NAME]],'2024 Lookup'!$A$3:$B$76,2,FALSE) -> BATS | D174: =VLOOKUP(AEMO_DATA_2024[[#This Row],[CP_NAME]],'2024 Lookup'!$A$3:$C$76,3,FALSE) -> 66 kV | E174: Ballarat (Powercor) 66 kV | F174: Powercor | G174: MAX_DEMAND | H174: Winter | I174: Non-coincident | J174: 2024 | K174: poe10 | L174: 187.18035 | M174: Lag | N174: NA | O174: NA
A175: VIC | B175: BATS66P | C175: =VLOOKUP(AEMO_DATA_2024[[#This Row],[CP_NAME]],'2024 Lookup'!$A$3:$B$76,2,FALSE) -> BATS | D175: =VLOOKUP(AEMO_DATA_2024[[#This Row],[CP_NAME]],'2024 Lookup'!$A$3:$C$76,3,FALSE) -> 66 kV | E175: Ballarat (Powercor) 66 kV | F175: Powercor | G175: MAX_DEMAND | H175: Winter | I175: Non-coincident | J175: 2024 | K175: poe50 | L175: 182.87009 | M175: Lag | N175: NA | O175: NA
A176: VIC | B176: BATS66P | C176: =VLOOKUP(AEMO_DATA_2024[[#This Row],[CP_NAME]],'2024 Lookup'!$A$3:$B$76,2,FALSE) -> BATS | D176: =VLOOKUP(AEMO_DATA_2024[[#This Row],[CP_NAME]],'2024 Lookup'!$A$3:$C$76,3,FALSE) -> 66 kV | E176: Ballarat (Powercor) 66 kV | F176: Powercor | G176: MAX_DEMAND | H176: Winter | I176: Non-coincident | J176: 2025 | K176: poe10 | L176: 188.24195 | M176: Lag | N176: NA | O176: NA
A177: VIC | B177: BATS66P | C177: =VLOOKUP(AEMO_DATA_2024[[#This Row],[CP_NAME]],'2024 Lookup'!$A$3:$B$76,2,FALSE) -> BATS | D177: =VLOOKUP(AEMO_DATA_2024[[#This Row],[CP_NAME]],'2024 Lookup'!$A$3:$C$76,3,FALSE) -> 66 kV | E177: Ballarat (Powercor) 66 kV | F177: Powercor | G177: MAX_DEMAND | H177: Winter | I177: Non-coincident | J177: 2025 | K177: poe50 | L177: 183.90908 | M177: Lag | N177: NA | O177: NA
A178: VIC | B178: BATS66P | C178: =VLOOKUP(AEMO_DATA_2024[[#This Row],[CP_NAME]],'2024 Lookup'!$A$3:$B$76,2,FALSE) -> BATS | D178: =VLOOKUP(AEMO_DATA_2024[[#This Row],[CP_NAME]],'2024 Lookup'!$A$3:$C$76,3,FALSE) -> 66 kV | E178: Ballarat (Powercor) 66 kV | F178: Powercor | G178: MAX_DEMAND | H178: Winter | I178: Non-coincident | J178: 2026 | K178: poe10 | L178: 189.67846 | M178: Lag | N178: NA | O178: NA
A179: VIC | B179: BATS66P | C179: =VLOOKUP(AEMO_DATA_2024[[#This Row],[CP_NAME]],'2024 Lookup'!$A$3:$B$76,2,FALSE) -> BATS | D179: =VLOOKUP(AEMO_DATA_2024[[#This Row],[CP_NAME]],'2024 Lookup'!$A$3:$C$76,3,FALSE) -> 66 kV | E179: Ballarat (Powercor) 66 kV | F179: Powercor | G179: MAX_DEMAND | H179: Winter | I179: Non-coincident | J179: 2026 | K179: poe50 | L179: 185.32313 | M179: Lag | N179: NA | O179: NA
A180: VIC | B180: BATS66P | C180: =VLOOKUP(AEMO_DATA_2024[[#This Row],[CP_NAME]],'2024 Lookup'!$A$3:$B$76,2,FALSE) -> BATS | D180: =VLOOKUP(AEMO_DATA_2024[[#This Row],[CP_NAME]],'2024 Lookup'!$A$3:$C$76,3,FALSE) -> 66 kV | E180: Ballarat (Powercor) 66 kV | F180: Powercor | G180: MAX_DEMAND | H180: Winter | I180: Non-coincident | J180: 2027 | K180: poe10 | L180: 191.35772 | M180: Lag | N180: NA | O180: NA
A181: VIC | B181: BATS66P | C181: =VLOOKUP(AEMO_DATA_2024[[#This Row],[CP_NAME]],'2024 Lookup'!$A$3:$B$76,2,FALSE) -> BATS | D181: =VLOOKUP(AEMO_DATA_2024[[#This Row],[CP_NAME]],'2024 Lookup'!$A$3:$C$76,3,FALSE) -> 66 kV | E181: Ballarat (Powercor) 66 kV | F181: Powercor | G181: MAX_DEMAND | H181: Winter | I181: Non-coincident | J181: 2027 | K181: poe50 | L181: 186.98003 | M181: Lag | N181: NA | O181: NA
A182: VIC | B182: BATS66P | C182: =VLOOKUP(AEMO_DATA_2024[[#This Row],[CP_NAME]],'2024 Lookup'!$A$3:$B$76,2,FALSE) -> BATS | D182: =VLOOKUP(AEMO_DATA_2024[[#This Row],[CP_NAME]],'2024 Lookup'!$A$3:$C$76,3,FALSE) -> 66 kV | E182: Ballarat (Powercor) 66 kV | F182: Powercor | G182: MAX_DEMAND | H182: Winter | I182: Non-coincident | J182: 2028 | K182: poe10 | L182: 198.87142 | M182: Lag | N182: NA | O182: NA
A183: VIC | B183: BATS66P | C183: =VLOOKUP(AEMO_DATA_2024[[#This Row],[CP_NAME]],'2024 Lookup'!$A$3:$B$76,2,FALSE) -> BATS | D183: =VLOOKUP(AEMO_DATA_2024[[#This Row],[CP_NAME]],'2024 Lookup'!$A$3:$C$76,3,FALSE) -> 66 kV | E183: Ballarat (Powercor) 66 kV | F183: Powercor | G183: MAX_DEMAND | H183: Winter | I183: Non-coincident | J183: 2028 | K183: poe50 | L183: 193.58901 | M183: Lag | N183: NA | O183: NA
A184: VIC | B184: BATS66P | C184: =VLOOKUP(AEMO_DATA_2024[[#This Row],[CP_NAME]],'2024 Lookup'!$A$3:$B$76,2,FALSE) -> BATS | D184: =VLOOKUP(AEMO_DATA_2024[[#This Row],[CP_NAME]],'2024 Lookup'!$A$3:$C$76,3,FALSE) -> 66 kV | E184: Ballarat (Powercor) 66 kV | F184: Powercor | G184: MAX_DEMAND | H184: Winter | I184: Non-coincident | J184: 2029 | K184: poe10 | L184: 207.12677 | M184: Lag | N184: NA | O184: NA
A185: VIC | B185: BATS66P | C185: =VLOOKUP(AEMO_DATA_2024[[#This Row],[CP_NAME]],'2024 Lookup'!$A$3:$B$76,2,FALSE) -> BATS | D185: =VLOOKUP(AEMO_DATA_2024[[#This Row],[CP_NAME]],'2024 Lookup'!$A$3:$C$76,3,FALSE) -> 66 kV | E185: Ballarat (Powercor) 66 kV | F185: Powercor | G185: MAX_DEMAND | H185: Winter | I185: Non-coincident | J185: 2029 | K185: poe50 | L185: 201.77995 | M185: Lag | N185: NA | O185: NA
A186: VIC | B186: BATS66P | C186: =VLOOKUP(AEMO_DATA_2024[[#This Row],[CP_NAME]],'2024 Lookup'!$A$3:$B$76,2,FALSE) -> BATS | D186: =VLOOKUP(AEMO_DATA_2024[[#This Row],[CP_NAME]],'2024 Lookup'!$A$3:$C$76,3,FALSE) -> 66 kV | E186: Ballarat (Powercor) 66 kV | F186: Powercor | G186: MAX_DEMAND | H186: Winter | I186: Non-coincident | J186: 2030 | K186: poe10 | L186: 214.86786 | M186: Lag | N186: NA | O186: NA
A187: VIC | B187: BATS66P | C187: =VLOOKUP(AEMO_DATA_2024[[#This Row],[CP_NAME]],'2024 Lookup'!$A$3:$B$76,2,FALSE) -> BATS | D187: =VLOOKUP(AEMO_DATA_2024[[#This Row],[CP_NAME]],'2024 Lookup'!$A$3:$C$76,3,FALSE) -> 66 kV | E187: Ballarat (Powercor) 66 kV | F187: Powercor | G187: MAX_DEMAND | H187: Winter | I187: Non-coincident | J187: 2030 | K187: poe50 | L187: 209.38668 | M187: Lag | N187: NA | O187: NA
A188: VIC | B188: BATS66P | C188: =VLOOKUP(AEMO_DATA_2024[[#This Row],[CP_NAME]],'2024 Lookup'!$A$3:$B$76,2,FALSE) -> BATS | D188: =VLOOKUP(AEMO_DATA_2024[[#This Row],[CP_NAME]],'2024 Lookup'!$A$3:$C$76,3,FALSE) -> 66 kV | E188: Ballarat (Powercor) 66 kV | F188: Powercor | G188: MAX_DEMAND | H188: Winter | I188: Non-coincident | J188: 2031 | K188: poe10 | L188: 222.51037 | M188: Lag | N188: NA | O188: NA
A189: VIC | B189: BATS66P | C189: =VLOOKUP(AEMO_DATA_2024[[#This Row],[CP_NAME]],'2024 Lookup'!$A$3:$B$76,2,FALSE) -> BATS | D189: =VLOOKUP(AEMO_DATA_2024[[#This Row],[CP_NAME]],'2024 Lookup'!$A$3:$C$76,3,FALSE) -> 66 kV | E189: Ballarat (Powercor) 66 kV | F189: Powercor | G189: MAX_DEMAND | H189: Winter | I189: Non-coincident | J189: 2031 | K189: poe50 | L189: 216.86961 | M189: Lag | N189: NA | O189: NA
A190: VIC | B190: BATS66P | C190: =VLOOKUP(AEMO_DATA_2024[[#This Row],[CP_NAME]],'2024 Lookup'!$A$3:$B$76,2,FALSE) -> BATS | D190: =VLOOKUP(AEMO_DATA_2024[[#This Row],[CP_NAME]],'2024 Lookup'!$A$3:$C$76,3,FALSE) -> 66 kV | E190: Ballarat (Powercor) 66 kV | F190: Powercor | G190: MAX_DEMAND | H190: Winter | I190: Non-coincident | J190: 2032 | K190: poe10 | L190: 230.84104 | M190: Lag | N190: NA | O190: NA
A191: VIC | B191: BATS66P | C191: =VLOOKUP(AEMO_DATA_2024[[#This Row],[CP_NAME]],'2024 Lookup'!$A$3:$B$76,2,FALSE) -> BATS | D191: =VLOOKUP(AEMO_DATA_2024[[#This Row],[CP_NAME]],'2024 Lookup'!$A$3:$C$76,3,FALSE) -> 66 kV | E191: Ballarat (Powercor) 66 kV | F191: Powercor | G191: MAX_DEMAND | H191: Winter | I191: Non-coincident | J191: 2032 | K191: poe50 | L191: 224.93415 | M191: Lag | N191: NA | O191: NA
A192: VIC | B192: BETS22 | C192: =VLOOKUP(AEMO_DATA_2024[[#This Row],[CP_NAME]],'2024 Lookup'!$A$3:$B$76,2,FALSE) -> BETS | D192: =VLOOKUP(AEMO_DATA_2024[[#This Row],[CP_NAME]],'2024 Lookup'!$A$3:$C$76,3,FALSE) -> 22 kV | E192: Bendigo (Powercor) 22 kV | F192: Powercor | G192: MAX_DEMAND | H192: Summer | I192: Non-coincident | J192: 2024 | K192: poe10 | L192: 84.54569 | M192: Lag | N192: 0.9990202132 | O192: 3.745342866
A193: VIC | B193: BETS22 | C193: =VLOOKUP(AEMO_DATA_2024[[#This Row],[CP_NAME]],'2024 Lookup'!$A$3:$B$76,2,FALSE) -> BETS | D193: =VLOOKUP(AEMO_DATA_2024[[#This Row],[CP_NAME]],'2024 Lookup'!$A$3:$C$76,3,FALSE) -> 22 kV | E193: Bendigo (Powercor) 22 kV | F193: Powercor | G193: MAX_DEMAND | H193: Summer | I193: Non-coincident | J193: 2024 | K193: poe50 | L193: 73.68648 | M193: Lag | N193: 0.9990071565 | O193: 3.285994173
A194: VIC | B194: BETS22 | C194: =VLOOKUP(AEMO_DATA_2024[[#This Row],[CP_NAME]],'2024 Lookup'!$A$3:$B$76,2,FALSE) -> BETS | D194: =VLOOKUP(AEMO_DATA_2024[[#This Row],[CP_NAME]],'2024 Lookup'!$A$3:$C$76,3,FALSE) -> 22 kV | E194: Bendigo (Powercor) 22 kV | F194: Powercor | G194: MAX_DEMAND | H194: Summer | I194: Non-coincident | J194: 2025 | K194: poe10 | L194: 84.53573 | M194: Lag | N194: 0.9990082906 | O194: 3.76765152
A195: VIC | B195: BETS22 | C195: =VLOOKUP(AEMO_DATA_2024[[#This Row],[CP_NAME]],'2024 Lookup'!$A$3:$B$76,2,FALSE) -> BETS | D195: =VLOOKUP(AEMO_DATA_2024[[#This Row],[CP_NAME]],'2024 Lookup'!$A$3:$C$76,3,FALSE) -> 22 kV | E195: Bendigo (Powercor) 22 kV | F195: Powercor | G195: MAX_DEMAND | H195: Summer | I195: Non-coincident | J195: 2025 | K195: poe50 | L195: 73.61767 | M195: Lag | N195: 0.9989932854 | O195: 3.305813451
A196: VIC | B196: BETS22 | C196: =VLOOKUP(AEMO_DATA_2024[[#This Row],[CP_NAME]],'2024 Lookup'!$A$3:$B$76,2,FALSE) -> BETS | D196: =VLOOKUP(AEMO_DATA_2024[[#This Row],[CP_NAME]],'2024 Lookup'!$A$3:$C$76,3,FALSE) -> 22 kV | E196: Bendigo (Powercor) 22 kV | F196: Powercor | G196: MAX_DEMAND | H196: Summer | I196: Non-coincident | J196: 2026 | K196: poe10 | L196: 84.64174 | M196: Lag | N196: 0.9989966343 | O196: 3.794514549
A197: VIC | B197: BETS22 | C197: =VLOOKUP(AEMO_DATA_2024[[#This Row],[CP_NAME]],'2024 Lookup'!$A$3:$B$76,2,FALSE) -> BETS | D197: =VLOOKUP(AEMO_DATA_2024[[#This Row],[CP_NAME]],'2024 Lookup'!$A$3:$C$76,3,FALSE) -> 22 kV | E197: Bendigo (Powercor) 22 kV | F197: Powercor | G197: MAX_DEMAND | H197: Summer | I197: Non-coincident | J197: 2026 | K197: poe50 | L197: 73.66489 | M197: Lag | N197: 0.9989797143 | O197: 3.33018964
A198: VIC | B198: BETS22 | C198: =VLOOKUP(AEMO_DATA_2024[[#This Row],[CP_NAME]],'2024 Lookup'!$A$3:$B$76,2,FALSE) -> BETS | D198: =VLOOKUP(AEMO_DATA_2024[[#This Row],[CP_NAME]],'2024 Lookup'!$A$3:$C$76,3,FALSE) -> 22 kV | E198: Bendigo (Powercor) 22 kV | F198: Powercor | G198: MAX_DEMAND | H198: Summer | I198: Non-coincident | J198: 2027 | K198: poe10 | L198: 84.85947 | M198: Lag | N198: 0.9989851092 | O198: 3.826094893
A199: VIC | B199: BETS22 | C199: =VLOOKUP(AEMO_DATA_2024[[#This Row],[CP_NAME]],'2024 Lookup'!$A$3:$B$76,2,FALSE) -> BETS | D199: =VLOOKUP(AEMO_DATA_2024[[#This Row],[CP_NAME]],'2024 Lookup'!$A$3:$C$76,3,FALSE) -> 22 kV | E199: Bendigo (Powercor) 22 kV | F199: Powercor | G199: MAX_DEMAND | H199: Summer | I199: Non-coincident | J199: 2027 | K199: poe50 | L199: 73.82464 | M199: Lag | N199: 0.9989662974 | O199: 3.359317408
A200: VIC | B200: BETS22 | C200: =VLOOKUP(AEMO_DATA_2024[[#This Row],[CP_NAME]],'2024 Lookup'!$A$3:$B$76,2,FALSE) -> BETS | D200: =VLOOKUP(AEMO_DATA_2024[[#This Row],[CP_NAME]],'2024 Lookup'!$A$3:$C$76,3,FALSE) -> 22 kV | E200: Bendigo (Powercor) 22 kV | F200: Powercor | G200: MAX_DEMAND | H200: Summer | I200: Non-coincident | J200: 2028 | K200: poe10 | L200: 85.17469 | M200: Lag | N200: 0.9989730704 | O200: 3.863052387
... 5425 more rows

Sheet 2024 Lookup
A1: Manually update the station acronym and voltage
A2: TO BE AUTOMATED
A3: =_xlfn.UNIQUE(AEMO_DATA_2024[CP_NAME]) -> Altona-Brooklyn (Jemena) 66 kV | B3: ATS_BLTS | C3: 66 kV | E3: ATS_BLTS | F3: ATS_West | G3: BATS | H3: BETS | I3: BLTS | J3: BTS | K3: CBTS | L3: DPTS | M3: ERTS | N3: FBTS | O3: GNTS | P3: GTS | Q3: HOTS | R3: HTS | S3: HYTS | T3: KGTS | U3: KTS | V3: LY | W3: MBTS | X3: MTS | Y3: MWTS | Z3: NKHN | AA3: RCTS | AB3: RTS | AC3: RWTS | AD3: SHTS | AE3: SMTS | AF3: SVTS | AG3: TBTS | AH3: TGTS | AI3: TSTS | AJ3: TTS | AK3: WETS | AL3: WMTS | AM3: WOTS | AN3: YPS
A4: Altona-Brooklyn (Powercor) 66 kV | B4: ATS_BLTS | C4: 66 kV | E4: =_xlfn.UNIQUE(_xlfn._xlws.FILTER(AEMO_DATA_2024[[Voltage]:[Voltage]],AEMO_DATA_2024[[Station]:[Station]]=E$3)) -> 66 kV | F4: =_xlfn.UNIQUE(_xlfn._xlws.FILTER(AEMO_DATA_2024[[Voltage]:[Voltage]],AEMO_DATA_2024[[Station]:[Station]]=F$3)) -> 66 kV | G4: =_xlfn.UNIQUE(_xlfn._xlws.FILTER(AEMO_DATA_2024[[Voltage]:[Voltage]],AEMO_DATA_2024[[Station]:[Station]]=G$3)) -> 66 kV | H4: =_xlfn.UNIQUE(_xlfn._xlws.FILTER(AEMO_DATA_2024[[Voltage]:[Voltage]],AEMO_DATA_2024[[Station]:[Station]]=H$3)) -> 22 kV | I4: =_xlfn.UNIQUE(_xlfn._xlws.FILTER(AEMO_DATA_2024[[Voltage]:[Voltage]],AEMO_DATA_2024[[Station]:[Station]]=I$3)) -> 22 kV | J4: =_xlfn.UNIQUE(_xlfn._xlws.FILTER(AEMO_DATA_2024[[Voltage]:[Voltage]],AEMO_DATA_2024[[Station]:[Station]]=J$3)) -> 22 kV | K4: =_xlfn.UNIQUE(_xlfn._xlws.FILTER(AEMO_DATA_2024[[Voltage]:[Voltage]],AEMO_DATA_2024[[Station]:[Station]]=K$3)) -> 66 kV | L4: =_xlfn.UNIQUE(_xlfn._xlws.FILTER(AEMO_DATA_2024[[Voltage]:[Voltage]],AEMO_DATA_2024[[Station]:[Station]]=L$3)) -> 66 kV | M4: =_xlfn.UNIQUE(_xlfn._xlws.FILTER(AEMO_DATA_2024[[Voltage]:[Voltage]],AEMO_DATA_2024[[Station]:[Station]]=M$3)) -> 66 kV | N4: =_xlfn.UNIQUE(_xlfn._xlws.FILTER(AEMO_DATA_2024[[Voltage]:[Voltage]],AEMO_DATA_2024[[Station]:[Station]]=N$3)) -> 66 kV | O4: =_xlfn.UNIQUE(_xlfn._xlws.FILTER(AEMO_DATA_2024[[Voltage]:[Voltage]],AEMO_DATA_2024[[Station]:[Station]]=O$3)) -> 66 kV | P4: =_xlfn.UNIQUE(_xlfn._xlws.FILTER(AEMO_DATA_2024[[Voltage]:[Voltage]],AEMO_DATA_2024[[Station]:[Station]]=P$3)) -> 66 kV | Q4: =_xlfn.UNIQUE(_xlfn._xlws.FILTER(AEMO_DATA_2024[[Voltage]:[Voltage]],AEMO_DATA_2024[[Station]:[Station]]=Q$3)) -> 66 kV | R4: =_xlfn.UNIQUE(_xlfn._xlws.FILTER(AEMO_DATA_2024[[Voltage]:[Voltage]],AEMO_DATA_2024[[Station]:[Station]]=R$3)) -> 66 kV | S4: =_xlfn.UNIQUE(_xlfn._xlws.FILTER(AEMO_DATA_2024[[Voltage]:[Voltage]],AEMO_DATA_2024[[Station]:[Station]]=S$3)) -> 22 kV | T4: =_xlfn.UNIQUE(_xlfn._xlws.FILTER(AEMO_DATA_2024[[Voltage]:[Voltage]],AEMO_DATA_2024[[Station]:[Station]]=T$3)) -> 22 kV | U4: =_xlfn.UNIQUE(_xlfn._xlws.FILTER(AEMO_DATA_2024[[Voltage]:[Voltage]],AEMO_DATA_2024[[Station]:[Station]]=U$3)) -> 66 kV | V4: =_xlfn.UNIQUE(_xlfn._xlws.FILTER(AEMO_DATA_2024[[Voltage]:[Voltage]],AEMO_DATA_2024[[Station]:[Station]]=V$3)) -> 66 kV | W4: =_xlfn.UNIQUE(_xlfn._xlws.FILTER(AEMO_DATA_2024[[Voltage]:[Voltage]],AEMO_DATA_2024[[Station]:[Station]]=W$3)) -> 66 kV | X4: =_xlfn.UNIQUE(_xlfn._xlws.FILTER(AEMO_DATA_2024[[Voltage]:[Voltage]],AEMO_DATA_2024[[Station]:[Station]]=X$3)) -> 22 kV | Y4: =_xlfn.UNIQUE(_xlfn._xlws.FILTER(AEMO_DATA_2024[[Voltage]:[Voltage]],AEMO_DATA_2024[[Station]:[Station]]=Y$3)) -> 66 kV | Z4: =_xlfn.UNIQUE(_xlfn._xlws.FILTER(AEMO_DATA_2024[[Voltage]:[Voltage]],AEMO_DATA_2024[[Station]:[Station]]=Z$3)) -> 11 kV | AA4: =_xlfn.UNIQUE(_xlfn._xlws.FILTER(AEMO_DATA_2024[[Voltage]:[Voltage]],AEMO_DATA_2024[[Station]:[Station]]=AA$3)) -> 22 kV | AB4: =_xlfn.UNIQUE(_xlfn._xlws.FILTER(AEMO_DATA_2024[[Voltage]:[Voltage]],AEMO_DATA_2024[[Station]:[Station]]=AB$3)) -> 22 kV | AC4: =_xlfn.UNIQUE(_xlfn._xlws.FILTER(AEMO_DATA_2024[[Voltage]:[Voltage]],AEMO_DATA_2024[[Station]:[Station]]=AC$3)) -> 66 kV | AD4: =_xlfn.UNIQUE(_xlfn._xlws.FILTER(AEMO_DATA_2024[[Voltage]:[Voltage]],AEMO_DATA_2024[[Station]:[Station]]=AD$3)) -> 66 kV | AE4: =_xlfn.UNIQUE(_xlfn._xlws.FILTER(AEMO_DATA_2024[[Voltage]:[Voltage]],AEMO_DATA_2024[[Station]:[Station]]=AE$3)) -> 66 kV | AF4: =_xlfn.UNIQUE(_xlfn._xlws.FILTER(AEMO_DATA_2024[[Voltage]:[Voltage]],AEMO_DATA_2024[[Station]:[Station]]=AF$3)) -> 66 kV | AG4: =_xlfn.UNIQUE(_xlfn._xlws.FILTER(AEMO_DATA_2024[[Voltage]:[Voltage]],AEMO_DATA_2024[[Station]:[Station]]=AG$3)) -> 66 kV | AH4: =_xlfn.UNIQUE(_xlfn._xlws.FILTER(AEMO_DATA_2024[[Voltage]:[Voltage]],AEMO_DATA_2024[[Station]:[Station]]=AH$3)) -> 66 kV | AI4: =_xlfn.UNIQUE(_xlfn._xlws.FILTER(AEMO_DATA_2024[[Voltage]:[Voltage]],AEMO_DATA_2024[[Station]:[Station]]=AI$3)) -> 66 kV | AJ4: =_xlfn.UNIQUE(_xlfn._xlws.FILTER(AEMO_DATA_2024[[Voltage]:[Voltage]],AEMO_DATA_2024[[Station]:[Station]]=AJ$3)) -> 66 kV | AK4: =_xlfn.UNIQUE(_xlfn._xlws.FILTER(AEMO_DATA_2024[[Voltage]:[Voltage]],AEMO_DATA_2024[[Station]:[Station]]=AK$3)) -> 66 kV | AL4: =_xlfn.UNIQUE(_xlfn._xlws.FILTER(AEMO_DATA_2024[[Voltage]:[Voltage]],AEMO_DATA_2024[[Station]:[Station]]=AL$3)) -> 22 kV | AM4: =_xlfn.UNIQUE(_xlfn._xlws.FILTER(AEMO_DATA_2024[[Voltage]:[Voltage]],AEMO_DATA_2024[[Station]:[Station]]=AM$3)) -> 22 kV | AN4: =_xlfn.UNIQUE(_xlfn._xlws.FILTER(AEMO_DATA_2024[[Voltage]:[Voltage]],AEMO_DATA_2024[[Station]:[Station]]=AN$3)) -> 11 kV
A5: Altona West (Powercor) 66 kV | B5: ATS_West | C5: 66 kV | H5: 66 kV | I5: 66 kV | J5: 66 kV | T5: 66 kV | X5: 66 kV | AA5: 66 kV | AB5: 66 kV | AC5: 22 kV | AL5: 66 kV | AM5: 66 kV
A6: Ballarat (CitiPower) 66 kV | B6: BATS | C6: 66 kV
A7: Ballarat (Powercor) 66 kV | B7: BATS | C7: 66 kV
A8: Bendigo (Powercor) 22 kV | B8: BETS | C8: 22 kV
A9: Bendigo (Powercor) 66 kV | B9: BETS | C9: 66 kV
A10: Brooklyn (Jemena) 22 kV | B10: BLTS | C10: 22 kV
A11: Brooklyn (Powercor) 22 kV | B11: BLTS | C11: 22 kV
A12: Brooklyn (Jemena) 66 kV | B12: BLTS | C12: 66 kV
A13: Brooklyn (Powercor) 66 kV | B13: BLTS | C13: 66 kV
A14: Brunswick (CitiPower) 22 kV | B14: BTS | C14: 22 kV
A15: Brunswick (Jemena) 22 kV | B15: BTS | C15: 22 kV
A16: Brunswick (CitiPower) 66 kV | B16: BTS | C16: 66 kV
A17: Cranbourne (AusNet) 66 kV | B17: CBTS | C17: 66 kV
A18: Cranbourne (United Energy) 66 kV | B18: CBTS | C18: 66 kV
A19: Deer Park (Powercor) 66 kV | B19: DPTS | C19: 66 kV
A20: East Rowville 12 (AusNet) 66 kV | B20: ERTS | C20: 66 kV
A21: East Rowville 12 (United Energy) 66 kV | B21: ERTS | C21: 66 kV
A22: East Rowville 34 (AusNet) 66 kV | B22: ERTS | C22: 66 kV
A23: East Rowville 34 (United Energy) 66 kV | B23: ERTS | C23: 66 kV
A24: Fishermans Bend (Citipower) 66 kV | B24: FBTS | C24: 66 kV
A25: Fishermans Bend (Powercor) 66 kV | B25: FBTS | C25: 66 kV
A26: Glenrowan (AusNet) 66 kV | B26: GNTS | C26: 66 kV
A27: Geelong 12 (Powercor) 66 kV | B27: GTS | C27: 66 kV
A28: Geelong 34 (Powercor) 66 kV | B28: GTS | C28: 66 kV
A29: Horsham (Powercor) 66 kV | B29: HOTS | C29: 66 kV
A30: Heatherton (United Energy) 66 kV | B30: HTS | C30: 66 kV
A31: Heywood (Powercor) 22 kV | B31: HYTS | C31: 22 kV
A32: Kerang (Powercor) 22 kV | B32: KGTS | C32: 22 kV
A33: Kerang (Powercor) 66 kV | B33: KGTS | C33: 66 kV
A34: Keilor East (Jemena) 66 kV | B34: KTS | C34: 66 kV
A35: Keilor East (Powercor) 66 kV | B35: KTS | C35: 66 kV
A36: Keilor West (Jemena) 66 kV | B36: KTS | C36: 66 kV
A37: Keilor West (Powercor) 66 kV | B37: KTS | C37: 66 kV
A38: Loy Yang (AusNet) 66 kV | B38: LY | C38: 66 kV
A39: Mt Beauty (AusNet) 66 kV | B39: MBTS | C39: 66 kV
A40: Malvern (United Energy) 22 kV | B40: MTS | C40: 22 kV
A41: Malvern (United Energy) 66 kV | B41: MTS | C41: 66 kV
A42: Morwell (Ausnet) 66 kV | B42: MWTS | C42: 66 kV
A43: Khancoban (Essential Energy) 11 kV | B43: NKHN | C43: 11 kV
A44: Red Cliffs (Powercor) 22 kV | B44: RCTS | C44: 22 kV
A45: Red Cliffs (Powercor) 66 kV | B45: RCTS | C45: 66 kV
A46: Richmond (CitiPower) 22kV | B46: RTS | C46: 22 kV
A47: Richmond 66kV (Citipower Total) | B47: RTS | C47: 66 kV
A48: Richmond 66kV (United Energy Total) | B48: RTS | C48: 66 kV
A49: Ringwood 13 (AusNet) 66 kV | B49: RWTS | C49: 66 kV
A50: Ringwood 13 (United Energy) 66 kV | B50: RWTS | C50: 66 kV
A51: Ringwood (AusNet) 22 kV | B51: RWTS | C51: 22 kV
A52: Ringwood (United Energy) 22 kV | B52: RWTS | C52: 22 kV
A53: Ringwood 24 (AusNet) 66 kV | B53: RWTS | C53: 66 kV
A54: Ringwood 24 (United Energy) 66kV | B54: RWTS | C54: 66 kV
A55: Shepparton (Powercor) 66 kV | B55: SHTS | C55: 66 kV
A56: South Morang (AusNet) 66 kV | B56: SMTS | C56: 66 kV
A57: South Morang (Jemena) 66 kV | B57: SMTS | C57: 66 kV
A58: Springvale 12 (United Energy) 66 kV | B58: SVTS | C58: 66 kV
A59: Springvale 34 (CitiPower) 66 kV | B59: SVTS | C59: 66 kV
A60: Springvale 34 (United Energy) 66 kV | B60: SVTS | C60: 66 kV
A61: Tyabb (United Energy) 66 kV | B61: TBTS | C61: 66 kV
A62: Terang (Powercor) 66 kV | B62: TGTS | C62: 66 kV
A63: Templestowe (AusNet) 66 kV | B63: TSTS | C63: 66 kV
A64: Templestowe (CitiPower) 66 kV | B64: TSTS | C64: 66 kV
A65: Templestowe (Jemena) 66 kV | B65: TSTS | C65: 66 kV
A66: Templestowe (United Energy) 66 kV | B66: TSTS | C66: 66 kV
A67: Thomastown 12 (AusNet) 66 kV | B67: TTS | C67: 66 kV
A68: Thomastown 12 (Jemena) 66 kV | B68: TTS | C68: 66 kV
A69: Thomastown 34 (Jemena) 66 kV | B69: TTS | C69: 66 kV
A70: Wemen (Powercor) 66 kV | B70: WETS | C70: 66 kV
A71: West Melbourne (CitiPower) 22 kV | B71: WMTS | C71: 22 kV
A72: West Melbourne (CitiPower) 66 kV | B72: WMTS | C72: 66 kV
A73: West Melbourne (Jemena) 66 kV | B73: WMTS | C73: 66 kV
A74: Wodonga (AusNet) 22 kV | B74: WOTS | C74: 22 kV
A75: Wodonga (AusNet) 66 kV | B75: WOTS | C75: 66 kV
A76: Yallourn (AusNet) 11 kV | B76: YPS | C76: 11 kV
